Department Family,Entity,Date,Expense Type,Expense Area (rev),Supplier,Transaction No,Amount ,Item Text,Postal Code,,
Department for Transport,Department for Transport,01/11/2016,Agency Staff Costs,Local,BROOK STREET (UK) LIMITED,2000013732,760.57,Agency Staff Costs ,AL1 4JB,,
Department for Transport,Department for Transport,01/11/2016,Agency Staff Costs,Marine Accident Investigation Branch,BROOK STREET (UK) LIMITED,2000013732,632.9,#,AL1 4JB,,
Department for Transport,Department for Transport,01/11/2016,Agency Staff Costs,Group Finance,CAPITA BUSINESS SERVICES LTD,2000013713,5284.32,#,DL1 9HN,,
Department for Transport,Department for Transport,01/11/2016,Agency Staff Costs,Group Finance,CAPITA BUSINESS SERVICES LTD,2000013713,2321.16,#,DL1 9HN,,
Department for Transport,Department for Transport,01/11/2016,Agency Staff Costs,Group Finance,Allen Lane,2000013716,4474.85,#,SW1Y 6RJ,,
Department for Transport,Department for Transport,01/11/2016,Agency Staff Costs,HSR Programme and Funding,CAPITA BUSINESS SERVICES LTD,2000013713,3123.66,#,DL1 9HN,,
Department for Transport,Department for Transport,01/11/2016,Agents Fees,Group Communications,Carat,2000013721,36.4,#,NW31 3BF,,
Department for Transport,Department for Transport,01/11/2016,Agents Fees,DG_Rail - Passenger Services,Government Legal Department,2000013712,160,#,WC2B 4TS,,
Department for Transport,Department for Transport,01/11/2016,Car Tax & Insurance,"Road Safety, Standards and Services",Jaguar Cars Limited,2000013737,185,#,CV3 4LF,,
Department for Transport,Department for Transport,01/11/2016,Hospitality,Group Commercial Services,AMEY COMMUNITY LIMITED,2000013717,2590.88,Amey - Hospitality Charges - August 2016,OX4 4DQ,,
Department for Transport,Department for Transport,01/11/2016,Hospitality,Group Commercial Services,AMEY COMMUNITY LIMITED,2000013717,4794.14,Amey - Hospitality Charges - Sept 2016,OX4 4DQ,,
Department for Transport,Department for Transport,01/11/2016,Legal Consultancy,Maritime,LANDMARK CHAMBERS,2000013724,840,#,EC4A 2HG,,
Department for Transport,Department for Transport,01/11/2016,Legal Consultancy,DG_Rail - Passenger Services,Eversheds LLP,2000013735,11631,#,EC2V 7WS,,
Department for Transport,Department for Transport,01/11/2016,Legal Consultancy,DG_Rail - Passenger Services,Government Legal Department,2000013712,3308.28,#,WC2B 4TS,,
Department for Transport,Department for Transport,01/11/2016,Prog&ProjMgmt Consul,Local,STEER DAVIES & GLEAVE LTD,2000013731,61630.66,Bikeability Support Services,SE1 9PD,,
Department for Transport,Department for Transport,01/11/2016,Publicity,Group Communications,ABBOTT MEAD VICKERS BBDO LTD,2000013715,12942.5,#,NW1 5QE,,
Department for Transport,Department for Transport,01/11/2016,Publicity,Group Communications,ABBOTT MEAD VICKERS BBDO LTD,2000013715,17472.5,#,NW1 5QE,,
Department for Transport,Department for Transport,01/11/2016,Publicity,Group Communications,Carat,2000013721,55518.24,#,NW31 3BF,,
Department for Transport,Department for Transport,01/11/2016,Research,Local,NATIONAL CENTRE FOR SOCIAL RESEARCH,2000013726,22060.8,National Travel Survey,EC1V 0AX,,
Department for Transport,Department for Transport,01/11/2016,Research,Local,NATIONAL CENTRE FOR SOCIAL RESEARCH,2000013726,127000,National Travel Survey,EC1V 0AX,,
Department for Transport,Department for Transport,01/11/2016,Research,Local,NATIONAL CENTRE FOR SOCIAL RESEARCH,2000013726,10172.64,National Travel Survey,EC1V 0AX,,
Department for Transport,Department for Transport,01/11/2016,Research,Local,NATIONAL CENTRE FOR SOCIAL RESEARCH,2000013726,-22060.8,National Travel Survey,EC1V 0AX,,
Department for Transport,Department for Transport,01/11/2016,Room Hire,DG_RAIL - Rail Strategy & Security,FCO Services,2000013723,1964.36,#,MK19 7BH,,
Department for Transport,Department for Transport,01/11/2016,Support Services,Aviation,BOURNEMOUTH INTERNATIONAL AIRPORT,2000013720,31542.9,#,BH23 6SE,,
Department for Transport,Department for Transport,01/11/2016,Training,Group Commercial Services,Open Data Institute,2000013740,430.4,#,EC2A 4JE,,
Department for Transport,Department for Transport,01/11/2016,Training,DG_Rail - Passenger Services,LEARNING TREE INTERNATIONAL LTD,2000013714,1450,#,KT22 7AD,,
Department for Transport,Department for Transport,01/11/2016,Translation Services,"Road Safety, Standards and Services",THEBIGWORD INTERPRETING,2000013719,1079.05,#,LS12 6AB,,
Department for Transport,Department for Transport,01/11/2016,Transport  Consult,DG_Rail - Passenger Services,Xanta Limited,2000013739,2520,#,EC4A 2BH,,
Department for Transport,Department for Transport,01/11/2016,Transport  Consult,DG_Rail - Passenger Services,OVE ARUP & PARTNERS,2000013727,30516.58,#,NE1 3PL,,
Department for Transport,Department for Transport,01/11/2016,Transport  Consult,DG_Rail - Passenger Services,ATKINS LTD (TRANSPORT PLANNING),2000013718,14233.9,#,WR5 1TX,,
Department for Transport,Department for Transport,01/11/2016,Transport  Consult,DG_RAIL - Network Services,STEER DAVIES & GLEAVE LTD,2000013731,29746.67,Technical advice,SE1 9PD,,
Department for Transport,Department for Transport,01/11/2016,Transport  Consult,DG_RAIL - Network Services,STEER DAVIES & GLEAVE LTD,2000013731,18532,Technical advice,SE1 9PD,,
Department for Transport,Department for Transport,01/11/2016,Transport  Consult,DG_RAIL - Network Services,STEER DAVIES & GLEAVE LTD,2000013731,32737.98,Technical advice,SE1 9PD,,
Department for Transport,Department for Transport,01/11/2016,Transport  Consult,DG_Rail - Passenger Services,WSP UK Ltd T/A Parsons Brinckerhoff,2000013728,15905.16,#,RG21 4HJ,,
Department for Transport,Department for Transport,01/11/2016,Vehicles Cap Cost,"Road Safety, Standards and Services",Jaguar Cars Limited,2000013737,-0.01,#,CV3 4LF,,
Department for Transport,Department for Transport,02/11/2016,Agency Staff Costs,Local,BROOK STREET (UK) LIMITED,2000013822,641.58,Agency Staff Costs ,AL1 4JB,,
Department for Transport,Department for Transport,02/11/2016,Agency Staff Costs,Marine Accident Investigation Branch,BROOK STREET (UK) LIMITED,2000013822,795.1,#,AL1 4JB,,
Department for Transport,Department for Transport,02/11/2016,Agency Staff Costs,Group Finance,CAPITA BUSINESS SERVICES LTD,2000013811,2120.11,#,DL1 9HN,,
Department for Transport,Department for Transport,02/11/2016,Cap Grt Pri Sec-Cos.,Local,Keynsham & District Mencap Society,2000013844,33819.2,Community Transport Minibus Fund Round 1,BS31 1HG,,
Department for Transport,Department for Transport,02/11/2016,Car Tax & Insurance,"Road Safety, Standards and Services",Jaguar Cars Limited,2000013835,185,#,CV3 4LF,,
Department for Transport,Department for Transport,02/11/2016,Cars Maintenance,"Road Safety, Standards and Services",Stapletons Tyre Services,2000013836,499.8,#,SG6 2HU,,
Department for Transport,Department for Transport,02/11/2016,Computer Consumables,Group Commercial Services,XMA LIMITED GOSC,2000013830,2635.32,A2XN03D,NG11 7EP,,
Department for Transport,Department for Transport,02/11/2016,Computer Consumables,Group Commercial Services,XMA LIMITED GOSC,2000013830,2461.92,A161R71311,NG11 7EP,,
Department for Transport,Department for Transport,02/11/2016,Computer Consumables,Group Commercial Services,XMA LIMITED GOSC,2000013830,2461.92,A161R71311 Transfer Roller Kits,NG11 7EP,,
Department for Transport,Department for Transport,02/11/2016,Electricity,DG_IS - Rail Accident Investigation Branch,BRITISH GAS BUSINESS,100018736,-579.94,Credit for 1900000012,GU95 1AW,,
Department for Transport,Department for Transport,02/11/2016,Electricity,DG_IS - Rail Accident Investigation Branch,BRITISH GAS BUSINESS,100018736,579.94,24.11 to 17.12.2015 - Renewable Source,GU95 1AW,,
Department for Transport,Department for Transport,02/11/2016,Eurotunnel Admin Pay,DG_Rail - Passenger Services,SNCF Caisse Generale,2000013771,5588314.18,#,93633,,
Department for Transport,Department for Transport,02/11/2016,Eurotunnel Admin Pay,DG_Rail - Passenger Services,SNCF TRESORERIE ENC RHT VFE,2000013770,6140823.51,#,75014,,
Department for Transport,Department for Transport,02/11/2016,IT Consultancy,Group Commercial Services,Info-Assure Ltd,2000013842,1125,#,GU14 0LX,,
Department for Transport,Department for Transport,02/11/2016,IT Consultancy,DG_Rail - Passenger Services,Worldline IT Services UK Limited,2000013840,14837.23,#,WV10 6UH,,
Department for Transport,Department for Transport,02/11/2016,Legal Consultancy,Group Commercial Services,CRIPPS HARRIES HALL LLP,2000013827,892.8,#,TN1 1EG,,
Department for Transport,Department for Transport,02/11/2016,Legal Consultancy,DG_Rail - Passenger Services,Eversheds LLP,2000013826,528,#,EC2V 7WS,,
Department for Transport,Department for Transport,02/11/2016,Maintenance Other,Strategic Roads,TDC SYSTEMS LIMITED,2000013821,1259.2,#,BS24 9BP,,
Department for Transport,Department for Transport,02/11/2016,Maintenance Other,Strategic Roads,TDC SYSTEMS LIMITED,2000013821,4255,#,BS24 9BP,,
Department for Transport,Department for Transport,02/11/2016,Non Stock Machine Co,Group Commercial Services,XMA LIMITED GOSC,2000013830,2397.12,Konica Minolta Bizhub C224E / C284E / C3,NG11 7EP,,
Department for Transport,Department for Transport,02/11/2016,Non Stock Machine Co,Group Commercial Services,XMA LIMITED GOSC,2000013830,2324.16,#,NG11 7EP,,
Department for Transport,Department for Transport,02/11/2016,Non Stock Machine Co,Group Commercial Services,XMA LIMITED GOSC,2000013830,577.32,Konica Minolta Bizhub C224E / C284E / C3,NG11 7EP,,
Department for Transport,Department for Transport,02/11/2016,Non Stock Machine Co,Group Commercial Services,XMA LIMITED GOSC,2000013830,692.78,Konica Minolta Bizhub C224E / C284E / C3,NG11 7EP,,
Department for Transport,Department for Transport,02/11/2016,Non Stock Machine Co,Group Commercial Services,XMA LIMITED GOSC,2000013830,2655.67,#,NG11 7EP,,
Department for Transport,Department for Transport,02/11/2016,Printing,Air Accident Investigation Branch,Williams Lea,2000013828,3404.5,#,NR3 1PD,,
Department for Transport,Department for Transport,02/11/2016,Printing,Air Accident Investigation Branch,Williams Lea,2000013828,1746.81,#,NR3 1PD,,
Department for Transport,Department for Transport,02/11/2016,Prog&ProjMgmt Consul,HSR Programme and Funding,WSP UK Ltd,2000013817,230519.98,#,RG21 4HJ,,
Department for Transport,Department for Transport,02/11/2016,Publications for Res,Group Communications,Domarn Limited,2000013820,5050,#,EC1A 4EN,,
Department for Transport,Department for Transport,02/11/2016,Research,Environment & International Transport Analysis,Civil Aviation Authority,2000013814,8750,#,RH6 0YR,,
Department for Transport,Department for Transport,02/11/2016,Research,Environment & International Transport Analysis,Civil Aviation Authority,2000013814,12500,#,RH6 0YR,,
Department for Transport,Department for Transport,02/11/2016,Research,Environment & International Transport Analysis,Civil Aviation Authority,2000013814,55000,#,RH6 0YR,,
Department for Transport,Department for Transport,02/11/2016,Research Grant-PS,Analysis & Strategy,CycleStreets Ltd,2000013845,50934.45,T-TRIG 30% Payments July Open Call,CB1 2PY,,
Department for Transport,Department for Transport,02/11/2016,Secondments,Group Human Resources,DRIVER & VEHICLE LICENSING AGENCY,2000013823,3015.43,#,SA6 7JL,,
Department for Transport,Department for Transport,02/11/2016,Secondments,Transport Security Co-ordination & Response,HOME OFFICE SHARED SERVICE CENTRE,2000013809,3435,#,NP20 9BB,,
Department for Transport,Department for Transport,02/11/2016,Secondments,Transport Security Co-ordination & Response,HOME OFFICE SHARED SERVICE CENTRE,2000013809,7291.06,#,NP20 9BB,,
Department for Transport,Department for Transport,02/11/2016,Services prov by OGD,Strategic Roads,Driver & Vehicle Licensing Agency,2000013815,2016703.82,#,SA6 7JL,,
Department for Transport,Department for Transport,02/11/2016,Small Software,Group Commercial Services,Comparex UK Ltd,2000013841,4987.22,#,HA1 3EL,,
Department for Transport,Department for Transport,02/11/2016,Support Services,Air Accident Investigation Branch,DFT ONE TIME VENDOR,2000013852,15451.2,#,SW1P 4DR,,
Department for Transport,Department for Transport,02/11/2016,Support Services,Group Commercial Services,Driver & Vehicle Standards Agency,2000013808,6845.15,#,NG1 6LP,,
Department for Transport,Department for Transport,02/11/2016,Support Services,Analysis & Strategy,HOME OFFICE SHARED SERVICE CENTRE,2000013809,7610.37,#,NP20 9BB,,
Department for Transport,Department for Transport,02/11/2016,Support Services,"Road Safety, Standards and Services",The Scottish Government,2000013810,33401.25,#,EH6 6QQ,,
Department for Transport,Department for Transport,02/11/2016,Support Services,Aviation,Civil Aviation Authority,2000013814,82693.17,#,RH6 0YR,,
Department for Transport,Department for Transport,02/11/2016,Translation Services,DG_RAIL - Rail Strategy & Security,FCO Services,2000013816,1300,FCO INTERPRETER 2015-2016,MK19 7BH,,
Department for Transport,Department for Transport,02/11/2016,Translation Services,DG_RAIL - Rail Strategy & Security,FCO Services,2000013816,1324.6,#,MK19 7BH,,
Department for Transport,Department for Transport,02/11/2016,Transport  Consult,DG_IS - ISE DG Office,Ashurst LLP,2000013839,6705.07,#,EC2A 2HA,,
Department for Transport,Department for Transport,02/11/2016,Transport  Consult,Transport Security Co-ordination & Response,QinetiQ Limited,2000013818,37383.12,#,GU14 0LX,,
Department for Transport,Department for Transport,02/11/2016,Transport  Consult,DG_RAIL - Network Services,ATKINS LTD (TRANSPORT PLANNING),2000013813,42731.26,#,WR5 1TX,,
Department for Transport,Department for Transport,02/11/2016,Transport  Consult,DG_Rail - Passenger Services,Pillar Strategy,2000013843,11576.4,#,SW4 9JL,,
Department for Transport,Department for Transport,02/11/2016,Vehicles Cap Cost,"Road Safety, Standards and Services",Jaguar Cars Limited,2000013835,-0.01,#,CV3 4LF,,
Department for Transport,Department for Transport,03/11/2016,Agency Staff Costs,Group Communications,CAPITA BUSINESS SERVICES LTD,2000013913,4047.98,#,DL1 9HN,,
Department for Transport,Department for Transport,03/11/2016,Agency Staff Costs,Group Commercial Services,BROOK STREET (UK) LIMITED,2000013923,713.58,#,AL1 4JB,,
Department for Transport,Department for Transport,03/11/2016,Agency Staff Costs,Group Commercial Services,CAPITA BUSINESS SERVICES LTD,2000013913,6655.92,#,DL1 9HN,,
Department for Transport,Department for Transport,03/11/2016,Agency Staff Costs,Group Commercial Services,CAPITA BUSINESS SERVICES LTD,2000013913,13798.98,#,DL1 9HN,,
Department for Transport,Department for Transport,03/11/2016,Agency Staff Costs,Group Commercial Services,CAPITA BUSINESS SERVICES LTD,2000013913,5729.47,#,DL1 9HN,,
Department for Transport,Department for Transport,03/11/2016,Agency Staff Costs,Major Projects,CAPITA BUSINESS SERVICES LTD,2000013913,2852.5,Interim resource,DL1 9HN,,
Department for Transport,Department for Transport,03/11/2016,Agency Staff Costs,Major Projects,Experis Ltd,2000013917,6040.02,Interim resource,EC2M 2RB,,
Department for Transport,Department for Transport,03/11/2016,Agency Staff Costs,Major Projects,Experis Ltd,2000013917,4733.46,Interim resource,EC2M 2RB,,
Department for Transport,Department for Transport,03/11/2016,Agency Staff Costs,Group Finance,CAPITA BUSINESS SERVICES LTD,2000013913,2642.16,#,DL1 9HN,,
Department for Transport,Department for Transport,03/11/2016,Agency Staff Costs,Group Finance,CAPITA BUSINESS SERVICES LTD,2000013913,2321.16,#,DL1 9HN,,
Department for Transport,Department for Transport,03/11/2016,Agency Staff Costs,DG_Rail - Passenger Services,CAPITA BUSINESS SERVICES LTD,2000013913,4050.12,#,DL1 9HN,,
Department for Transport,Department for Transport,03/11/2016,Agency Staff Costs,DG_Rail - Passenger Services,CAPITA BUSINESS SERVICES LTD,2000013913,3194.16,#,DL1 9HN,,
Department for Transport,Department for Transport,03/11/2016,Agency Staff Costs,DG_Rail - Passenger Services,CAPITA BUSINESS SERVICES LTD,2000013913,5149.44,#,DL1 9HN,,
Department for Transport,Department for Transport,03/11/2016,Agency Staff Costs,HSR Programme and Funding,CAPITA BUSINESS SERVICES LTD,2000013913,2882.16,#,DL1 9HN,,
Department for Transport,Department for Transport,03/11/2016,Agency Staff Costs,DG_RAIL - Network Services,CAPITA BUSINESS SERVICES LTD,2000013913,5825.16,Interim resource,DL1 9HN,,
Department for Transport,Department for Transport,03/11/2016,Agency Staff Costs,HSR Programme and Funding,CAPITA BUSINESS SERVICES LTD,2000013913,2642.16,#,DL1 9HN,,
Department for Transport,Department for Transport,03/11/2016,Agency Staff Costs,DG_Rail - Passenger Services,CAPITA BUSINESS SERVICES LTD,2000013913,5066.16,#,DL1 9HN,,
Department for Transport,Department for Transport,03/11/2016,Agency Staff Costs,HSR Programme and Funding,CAPITA BUSINESS SERVICES LTD,2000013913,6388.32,#,DL1 9HN,,
Department for Transport,Department for Transport,03/11/2016,Agency Staff Costs,DG_Rail - Passenger Services,CAPITA BUSINESS SERVICES LTD,2000013913,2644.32,#,DL1 9HN,,
Department for Transport,Department for Transport,03/11/2016,Agency Staff Costs,DG_Rail - Passenger Services,CAPITA BUSINESS SERVICES LTD,2000013913,4294.14,#,DL1 9HN,,
Department for Transport,Department for Transport,03/11/2016,Agency Staff Costs,Group Finance,CAPITA BUSINESS SERVICES LTD,2000013913,3284.16,#,DL1 9HN,,
Department for Transport,Department for Transport,03/11/2016,Agency Staff Costs,DG_Rail - Passenger Services,CAPITA BUSINESS SERVICES LTD,2000013913,2680.14,#,DL1 9HN,,
Department for Transport,Department for Transport,03/11/2016,Agency Staff Costs,DG_Rail - Passenger Services,CAPITA BUSINESS SERVICES LTD,2000013913,5149.44,#,DL1 9HN,,
Department for Transport,Department for Transport,03/11/2016,Agency Staff Costs,DG_Rail - Passenger Services,CAPITA BUSINESS SERVICES LTD,2000013913,7652.28,#,DL1 9HN,,
Department for Transport,Department for Transport,03/11/2016,Agency Staff Costs,HSR Programme and Funding,CAPITA BUSINESS SERVICES LTD,2000013913,1585.3,#,DL1 9HN,,
Department for Transport,Department for Transport,03/11/2016,Agency Staff Costs,DG_Rail - Passenger Services,CAPITA BUSINESS SERVICES LTD,2000013913,2680.14,#,DL1 9HN,,
Department for Transport,Department for Transport,03/11/2016,Agency Staff Costs,DG_Rail - Passenger Services,CAPITA BUSINESS SERVICES LTD,2000013913,785.94,#,DL1 9HN,,
Department for Transport,Department for Transport,03/11/2016,Agency Staff Costs,DG_Rail - Passenger Services,CAPITA BUSINESS SERVICES LTD,2000013913,4874.64,#,DL1 9HN,,
Department for Transport,Department for Transport,03/11/2016,Agency Staff Costs,DG_RAIL - Network Services,CAPITA BUSINESS SERVICES LTD,2000013913,4451.28,Interim resource,DL1 9HN,,
Department for Transport,Department for Transport,03/11/2016,Agency Staff Costs,DG_Rail - Passenger Services,CAPITA BUSINESS SERVICES LTD,2000013913,6712.02,#,DL1 9HN,,
Department for Transport,Department for Transport,03/11/2016,Agency Staff Costs,DG_RAIL - Network Services,CAPITA BUSINESS SERVICES LTD,2000013913,3961.14,Interim resource,DL1 9HN,,
Department for Transport,Department for Transport,03/11/2016,Agency Staff Costs,DG_Rail - Passenger Services,CAPITA BUSINESS SERVICES LTD,2000013913,4093.44,#,DL1 9HN,,
Department for Transport,Department for Transport,03/11/2016,Agency Staff Costs,HSR Phase 1 Sponsor,CAPITA BUSINESS SERVICES LTD,2000013913,5095.74,#,DL1 9HN,,
Department for Transport,Department for Transport,03/11/2016,Agency Staff Costs,DG_Rail - Passenger Services,CAPITA BUSINESS SERVICES LTD,2000013913,4067.88,#,DL1 9HN,,
Department for Transport,Department for Transport,03/11/2016,Agency Staff Costs,HSR Programme and Funding,CAPITA BUSINESS SERVICES LTD,2000013913,1874.2,#,DL1 9HN,,
Department for Transport,Department for Transport,03/11/2016,Agency Staff Costs,DG_Rail - Passenger Services,CAPITA BUSINESS SERVICES LTD,2000013913,4104.2,#,DL1 9HN,,
Department for Transport,Department for Transport,03/11/2016,Agency Staff Costs,DG_Rail - Passenger Services,CAPITA BUSINESS SERVICES LTD,2000013913,5284.32,#,DL1 9HN,,
Department for Transport,Department for Transport,03/11/2016,Agency Staff Costs,DG_Rail - Passenger Services,CAPITA BUSINESS SERVICES LTD,2000013913,3333.06,#,DL1 9HN,,
Department for Transport,Department for Transport,03/11/2016,Conferences / Semina,Group Communications,STENNIK ADVERTISING LTD,2000013930,590,2x Attendees National Road Safety Conf16,IP22 1SH,,
Department for Transport,Department for Transport,03/11/2016,CurrGrt Las in AEF/A,DG_RAIL - Rail Strategy & Security,MERSEY TRAVEL,2000013927,6165580.92,Mersey Travel P8 Payment,L3   2AN,,
Department for Transport,Department for Transport,03/11/2016,Eurotunnel Admin Pay,DG_Rail - Passenger Services,Eurotunnel,2000013911,5520867.47,ET payment re Opex and Usage Oct 16,CT18 8XX,,
Department for Transport,Department for Transport,03/11/2016,Eurotunnel Admin Pay,DG_Rail - Passenger Services,EUROTUNNEL,2000013942,4875553.48,ET payment re Opex and Usage Oct 16,CT18 8XY,,
Department for Transport,Department for Transport,03/11/2016,Financial Consultanc,DG_Rail - Passenger Services,GRANT THORNTON UK LLP,2000013926,86873.45,#,NN4 7YE,,
Department for Transport,Department for Transport,03/11/2016,Grt Aid to NDPBs,Rail NDPB's,NETWORK RAIL INFRASTRUCTURE LTD,2000013928,1771059.76,NR Cash funded Thameslink,M60 7WY,,
Department for Transport,Department for Transport,03/11/2016,IT Consultancy,Group Commercial Services,Info-Assure Ltd,2000013936,10219.19,#,GU14 0LX,,
Department for Transport,Department for Transport,03/11/2016,IT Consultancy,DG_RAIL - Network Services,Lockheed Martin Business,2000013935,3750,Database development,PA4 9LH,,
Department for Transport,Department for Transport,03/11/2016,IT Ser Running Costs,Group Commercial Services,BASEMAP LIMITED,2000013933,2328.79,#,GU2 7YG,,
Department for Transport,Department for Transport,03/11/2016,Legal Consultancy,Major Projects,DLA PIPER UK LLP,2000013916,21347.76,Legal Fees,M2 3DL,,
Department for Transport,Department for Transport,03/11/2016,Other Advertising,Local,Penna Communications,2000013929,11340.15,Statutory Advertising ,EC4M 7RD,,
Department for Transport,Department for Transport,03/11/2016,Other Advertising,Local,Penna Communications,2000013929,7509.18,Statutory Advertising ,EC4M 7RD,,
Department for Transport,Department for Transport,03/11/2016,Printing,Marine Accident Investigation Branch,Williams Lea,2000013932,6612.1,#,NR3 1PD,,
Department for Transport,Department for Transport,03/11/2016,Publicity,Group Communications,ABBOTT MEAD VICKERS BBDO LTD,2000013914,5009,#,NW1 5QE,,
Department for Transport,Department for Transport,03/11/2016,Publicity,Group Communications,ABBOTT MEAD VICKERS BBDO LTD,2000013914,12212.5,#,NW1 5QE,,
Department for Transport,Department for Transport,03/11/2016,Publicity,Group Communications,TNS UK LTD,2000013921,20725.8,#,W5 1UA,,
Department for Transport,Department for Transport,03/11/2016,Purchasing Card Char,Group Finance,The Royal Bank of Scotland plc,2000013937,180198.23,Account 1384189 - 24.9.16 to 25.10.16Natwest - DFT,EC2M 4RB,,
Department for Transport,Department for Transport,03/11/2016,Secondments,Aviation,HOME OFFICE SHARED SERVICE CENTRE,2000013944,4255.54,#,NP20 9BB,,
Department for Transport,Department for Transport,03/11/2016,Security,"Road Safety, Standards and Services",Info-Assure Ltd,2000013936,13535.71,#,GU14 0LX,,
Department for Transport,Department for Transport,03/11/2016,Storage & Distributi,Marine Accident Investigation Branch,Williams Lea,2000013932,5461.75,#,NR3 1PD,,
Department for Transport,Department for Transport,03/11/2016,Support Services,Aviation,Civil Aviation Authority,2000013915,197254.06,#,RH6 0YR,,
Department for Transport,Department for Transport,03/11/2016,Support Services,Aviation,Civil Aviation Authority,2000013915,82850.1,#,RH6 0YR,,
Department for Transport,Department for Transport,03/11/2016,Training,Group Human Resources,DFT ONE TIME VENDOR,2000013910,600,#,SW1P 4DR,,
Department for Transport,Department for Transport,03/11/2016,Transport  Consult,DG_RAIL - Network Services,First Class Partnerships Ltd,2000013925,8160,Technical advice,SW19 2RR,,
Department for Transport,Department for Transport,03/11/2016,Transport  Consult,DG_RAIL - Network Services,First Class Partnerships Ltd,2000013925,7344,Technical advice,SW19 2RR,,
Department for Transport,Department for Transport,03/11/2016,Transport  Consult,DG_RAIL - Network Services,First Class Partnerships Ltd,2000013925,28560,Technical advice,SW19 2RR,,
Department for Transport,Department for Transport,03/11/2016,Transport  Consult,DG_RAIL - Rail Strategy & Security,OVE ARUP & PARTNERS,2000013919,49335.84,#,NE1 3PL,,
Department for Transport,Department for Transport,03/11/2016,Transport  Consult,DG_Rail - Passenger Services,Steer Davies Gleaves (Bikeability),2000013931,15528,#,SE1 9PD,,
Department for Transport,Department for Transport,03/11/2016,Transport  Consult,DG_Rail - Passenger Services,WSP UK Ltd T/A Parsons Brinckerhoff,2000013920,4180.57,#,RG21 4HJ,,
Department for Transport,Department for Transport,03/11/2016,Transport  Consult,DG_Rail - Passenger Services,WSP UK Ltd T/A Parsons Brinckerhoff,2000013920,13337.51,#,RG21 4HJ,,
Department for Transport,Department for Transport,04/11/2016,Agency Staff Costs,Group Commercial Services,BROOK STREET (UK) LIMITED,2000013988,733.97,#,AL1 4JB,,
Department for Transport,Department for Transport,04/11/2016,Agency Staff Costs,Group Commercial Services,BROOK STREET (UK) LIMITED,2000013988,747.7,#,AL1 4JB,,
Department for Transport,Department for Transport,04/11/2016,Agency Staff Costs,Local,CAPITA BUSINESS SERVICES LTD,2000013978,985.97,Agency Staff Costs ,DL1 9HN,,
Department for Transport,Department for Transport,04/11/2016,Agency Staff Costs,DG_Rail - Passenger Services,BROOK STREET (UK) LIMITED,2000013988,1022.59,#,AL1 4JB,,
Department for Transport,Department for Transport,04/11/2016,Agency Staff Costs,DG_Rail - Passenger Services,CAPITA BUSINESS SERVICES LTD,2000013978,913.98,#,DL1 9HN,,
Department for Transport,Department for Transport,04/11/2016,Agency Staff Costs,DG_Rail - Passenger Services,CAPITA BUSINESS SERVICES LTD,2000013978,4922.88,#,DL1 9HN,,
Department for Transport,Department for Transport,04/11/2016,Agency Staff Costs,DG_Rail - Passenger Services,CAPITA BUSINESS SERVICES LTD,2000013978,790.36,#,DL1 9HN,,
Department for Transport,Department for Transport,04/11/2016,Agency Staff Costs,Group Commercial Services,CAPITA BUSINESS SERVICES LTD,2000013978,2996.88,#,DL1 9HN,,
Department for Transport,Department for Transport,04/11/2016,Agency Staff Costs,DG_Rail - Passenger Services,CAPITA BUSINESS SERVICES LTD,2000013978,3333.06,#,DL1 9HN,,
Department for Transport,Department for Transport,04/11/2016,Agency Staff Costs,DG_Rail - Passenger Services,CAPITA BUSINESS SERVICES LTD,2000013978,2650.14,#,DL1 9HN,,
Department for Transport,Department for Transport,04/11/2016,Agency Staff Costs,DG_Rail - Passenger Services,CAPITA BUSINESS SERVICES LTD,2000013978,2260.08,#,DL1 9HN,,
Department for Transport,Department for Transport,04/11/2016,Agency Staff Costs,DG_Rail - Passenger Services,CAPITA BUSINESS SERVICES LTD,2000013978,11365.49,#,DL1 9HN,,
Department for Transport,Department for Transport,04/11/2016,Cars Maintenance,"Road Safety, Standards and Services",Stapletons Tyre Services,2000013996,525.1,#,SG6 2HU,,
Department for Transport,Department for Transport,04/11/2016,Financial Consultanc,DG_Rail - Passenger Services,GRANT THORNTON UK LLP,2000013990,49759.08,#,NN4 7YE,,
Department for Transport,Department for Transport,04/11/2016,Home Phone Charges,DG_IS - Rail Accident Investigation Branch,MAIN-TEL,2000013982,526.67,#,TS17 0AQ,,
Department for Transport,Department for Transport,04/11/2016,IT Ser Running Costs,Group Communications,Intelogy Limited,2000014000,1596,#,TW16 7DY,,
Department for Transport,Department for Transport,04/11/2016,Legal Consultancy,Major Projects,WINCKWORTH SHERWOOD,2000013987,592.8,Legal Consultancy Fees,SE1 9BB,,
Department for Transport,Department for Transport,04/11/2016,Legal Consultancy,"Road Safety, Standards and Services",Government Legal Department,2000013977,641.7,#,WC2B 4TS,,
Department for Transport,Department for Transport,04/11/2016,Legal Consultancy,"Road Safety, Standards and Services",Government Legal Department,2000013977,1075.6,#,WC2B 4TS,,
Department for Transport,Department for Transport,04/11/2016,Legal Consultancy,HSR Phase 1 Sponsor,Counsel,2000013987,306898.2,#,SE1 9BB,,
Department for Transport,Department for Transport,04/11/2016,Media & Press,Group Communications,"GORKANA GROUP LTD (""GCL"")",2000013993,3114.68,#,EC1Y 8QE,,
Department for Transport,Department for Transport,04/11/2016,Property Consultancy,Maritime,FAITHFUL & GOULD LTD,2000013976,1460.64,#,CF24 0AD,,
Department for Transport,Department for Transport,04/11/2016,Property Maintenance,DG_IS - Rail Accident Investigation Branch,Interserve,2000013992,928.94,#,B70 1DA,,
Department for Transport,Department for Transport,04/11/2016,Research,DG_RAIL - Rail Corporate Centre,STEER DAVIES & GLEAVE LTD,2000013986,48992,#,SE1 9PD,,
Department for Transport,Department for Transport,04/11/2016,Secondments,Group Communications,DWP Shared Services,100020574,4594.21,#,FY5 3TA,,
Department for Transport,Department for Transport,04/11/2016,Secondments,Group Communications,DWP Shared Services,100020574,-4594.21,#,FY5 3TA,,
Department for Transport,Department for Transport,04/11/2016,Support Services,"Road Safety, Standards and Services",Environmental Scientifics Group,2000013979,4538.4,#,OX9 3SZ,,
Department for Transport,Department for Transport,04/11/2016,Support Services,Group Finance,Thompsons Solicitors,2000013999,55000,#,HA1 3AP,,
Department for Transport,Department for Transport,04/11/2016,Training,Group Human Resources,Capita Business Services Ltd,2000013974,1424,#,B24 9FD,,
Department for Transport,Department for Transport,04/11/2016,Transport  Consult,DG_Rail - Passenger Services,OVE ARUP & PARTNERS,2000013983,3527.38,#,NE1 3PL,,
Department for Transport,Department for Transport,04/11/2016,Water,DG_IS - Rail Accident Investigation Branch,Severn Trent Water,2000013985,770.88,#,DH1 1RR,,
Department for Transport,Department for Transport,07/11/2016,Agency Staff Costs,DG_Rail - Passenger Services,BROOK STREET (UK) LIMITED,2000014071,985.32,#,AL1 4JB,,
Department for Transport,Department for Transport,07/11/2016,Cars Maintenance,"Road Safety, Standards and Services",Cannon's MSA Ltd,2000014078,654,#,CR4 4NB,,
Department for Transport,Department for Transport,07/11/2016,Conferences / Semina,HSR Phase 2 Sponsor,Calder Conferences Limited,2000014086,708.33,#,LS16 6RF,,
Department for Transport,Department for Transport,07/11/2016,Conferences / Semina,DG_Rail - Passenger Services,Calder Conferences Limited,2000014086,1062,#,LS16 6RF,,
Department for Transport,Department for Transport,07/11/2016,Electricity,Group Commercial Services,EDF ENERGY,2000014060,47381.55,EDF - Trfc C'ting - 01.09.16 - 30.09.16,DA6 8ET,,
Department for Transport,Department for Transport,07/11/2016,Electricity,Group Commercial Services,BRITISH GAS BUSINESS,2000014057,674.89,306a St James Rd - Oct 2016 - Electricity,GU95 1AW,,
Department for Transport,Department for Transport,07/11/2016,Gas,DG_IS - Rail Accident Investigation Branch,Mawasem Limited T/A Clarity Travel,2000014087,71.26,Clarity - October 2016,ST18 0WN,,
Department for Transport,Department for Transport,07/11/2016,Insurance,"Road Safety, Standards and Services",SCOTLAND OFFICE,2000014053,2700,#,EH3 7HW,,
Department for Transport,Department for Transport,07/11/2016,IT Consultancy,DG_RAIL - Network Services,CAPITA PROPERTY & INFRASTRUCTURE,2000014058,65152.12,Database development,CA6 4SJ,,
Department for Transport,Department for Transport,07/11/2016,IT Ser Running Costs,Group Commercial Services,SPECIALIST COMPUTER CENTRES PLC,2000014072,8160,#,B11 2LE,,
Department for Transport,Department for Transport,07/11/2016,Legal Consultancy,Airport Capacity,DLA PIPER UK LLP,2000014059,11400,#,M2 3DL,,
Department for Transport,Department for Transport,07/11/2016,Legal Consultancy,Airport Capacity,DLA PIPER UK LLP,2000014059,2942.28,#,M2 3DL,,
Department for Transport,Department for Transport,07/11/2016,Legal Consultancy,Airport Capacity,DLA PIPER UK LLP,2000014059,5030.04,#,M2 3DL,,
Department for Transport,Department for Transport,07/11/2016,Legal Consultancy,DG_Rail - Passenger Services,DLA PIPER UK LLP,2000014059,38643.18,#,M2 3DL,,
Department for Transport,Department for Transport,07/11/2016,Legal Consultancy,DG_Rail - Passenger Services,Eversheds LLP,2000014076,652.08,#,EC2V 7WS,,
Department for Transport,Department for Transport,07/11/2016,Other Advertising,DG_Rail - Passenger Services,Penna Communications,2000014074,6847.47,#,EC4M 7RD,,
Department for Transport,Department for Transport,07/11/2016,Recruitment,DG_Rail - Passenger Services,PENNA PLC,2000014064,2915,#,EC4M 7RD,,
Department for Transport,Department for Transport,07/11/2016,Recruitment,DG_Rail - Passenger Services,PENNA PLC,2000014064,15625,#,EC4M 7RD,,
Department for Transport,Department for Transport,07/11/2016,Research,DG_RAIL - Rail Strategy & Security,TRANSPORT RESEARCH LABORATORY,2000014067,13500,#,RG40 3GA,,
Department for Transport,Department for Transport,07/11/2016,Research,Transport Security Co-ordination & Response,University of Huddersfield,2000014079,12540.64,#,HD1 3DH,,
Department for Transport,Department for Transport,07/11/2016,Secondments,Group Communications,Department for Education,2000014082,4594.21,#,FY5 3TA,,
Department for Transport,Department for Transport,07/11/2016,Support Services,Air Accident Investigation Branch,BASSOM COMPUTER CONSULTANCY,2000014056,20790,BASSOM SCR500 SOFTWARE 261016,GU9 8LS,,
Department for Transport,Department for Transport,07/11/2016,Support Services,Air Accident Investigation Branch,QinetiQ Limited,2000014065,833.34,#,GU14 0LX,,
Department for Transport,Department for Transport,07/11/2016,Support Services,Aviation,CORNWALL AIRPORT LTD,2000014073,31542.9,#,TR8 4RQ,,
Department for Transport,Department for Transport,07/11/2016,Support Services,Group Finance,Crawford & Co Adjusters (UK) Ltd,2000014081,449189.15,"Top  of DFT Owned Client Acc, ST 9-450859",B2 2PF,,
Department for Transport,Department for Transport,07/11/2016,Telephone charges,Air Accident Investigation Branch,BT Payment SVCS Ltd (T/phone Bills),2000014070,4080,#,DH98 1BT,,
Department for Transport,Department for Transport,07/11/2016,Trade Plate Expenses,Local,Minibus Options Limited,2000014088,25715.65,Community Transport Minibus Fund Round 1,SK23 7LY,,
Department for Transport,Department for Transport,07/11/2016,Trade Plate Expenses,Local,Minibus Options Limited,2000014088,32733.6,Community Transport Minibus Fund Round 1,SK23 7LY,,
Department for Transport,Department for Transport,07/11/2016,Trade Plate Expenses,Local,Minibus Options Limited,2000014088,32733.6,Community Transport Minibus Fund Round 1,SK23 7LY,,
Department for Transport,Department for Transport,07/11/2016,Trade Plate Expenses,Local,Minibus Options Limited,2000014088,27504.56,Community Transport Minibus Fund Round 1,SK23 7LY,,
Department for Transport,Department for Transport,07/11/2016,Trade Plate Expenses,Local,Minibus Options Limited,2000014088,27504.56,Community Transport Minibus Fund Round 1,SK23 7LY,,
Department for Transport,Department for Transport,07/11/2016,Training,DG_Rail - Passenger Services,LEARNING TREE INTERNATIONAL LTD,2000014054,4350,#,KT22 7AD,,
Department for Transport,Department for Transport,07/11/2016,Transport  Consult,DG_RAIL - Network Services,Mott MacDonald Limited,2000014063,10104,Modelling Wider Economic Impacts,CR0 2EE,,
Department for Transport,Department for Transport,08/11/2016,Agency Staff Costs,HSR Commercial Operations Sponsor,BROOK STREET (UK) LIMITED,2000014135,862.25,#,AL1 4JB,,
Department for Transport,Department for Transport,08/11/2016,Cap Grt Loc Auth,DG_RAIL - Network Services,SOUTH YORKSHIRE PTE,2000014137,5027.1,SL0071394-Claim51,S1 2BQ,,
Department for Transport,Department for Transport,08/11/2016,Cap Grt Pri Sec-Cos.,"Energy, Technology and International",EV Charging Solutions,2000014142,23500,EV Charging Solutions Sep 16 #23500,NG7 3EN,,
Department for Transport,Department for Transport,08/11/2016,Computer equipment,Group Commercial Services,Probrand Limited,2000014123,955.8,#,B1 3BP,,
Department for Transport,Department for Transport,08/11/2016,Courier Charges,Group Commercial Services,DX Network Services Ltd,2000014122,1751.55,#,NN4 7BH,,
Department for Transport,Department for Transport,08/11/2016,Grt Aid to NDPBs,Rail NDPB's,NETWORK RAIL INFRASTRUCTURE LTD,2000014139,1655825,NR Cash funded Sheffield Tram Train,M60 7WY,,
Department for Transport,Department for Transport,08/11/2016,IT Equip Cap Cost,Air Accident Investigation Branch,BASSOM COMPUTER CONSULTANCY,2000014125,8098.01,#,GU9 8LS,,
Department for Transport,Department for Transport,08/11/2016,IT Ser Running Costs,Group Human Resources,INVOTRA Ltd,2000014147,3576,#,GU21 5BN,,
Department for Transport,Department for Transport,08/11/2016,IT Ser Running Costs,Group Finance,NTT Data UK Limited,2000014144,5022,#,EC3V 3DG,,
Department for Transport,Department for Transport,08/11/2016,L&B Excl Dwellings,Maritime,Apex Air Conditioning Ltd,2000014150,71637.89,#,BS21 6XU,,
Department for Transport,Department for Transport,08/11/2016,Legal Consultancy,"Road Safety, Standards and Services",Ashfords LLP,2000014143,3040.2,#,EX1 3LH,,
Department for Transport,Department for Transport,08/11/2016,Legal Consultancy,HSR Phase 2 Sponsor,Counsel,2000014134,25488,#,SE1 9BB,,
Department for Transport,Department for Transport,08/11/2016,Maintenance Other,Strategic Roads,TDC SYSTEMS LIMITED,2000014133,747.6,#,BS24 9BP,,
Department for Transport,Department for Transport,08/11/2016,Maintenance Other,Strategic Roads,TDC SYSTEMS LIMITED,2000014133,3880,#,BS24 9BP,,
Department for Transport,Department for Transport,08/11/2016,Minor Developments,Strategic Roads,SYMOLOGY LTD,2000014138,1500,#,LU1 4AJ,,
Department for Transport,Department for Transport,08/11/2016,Periodicals & Subs,"Road Safety, Standards and Services",Road Transport Media Limited,2000014146,612.5,TCs subscription to Motor Transport,RH16 3DH,,
Department for Transport,Department for Transport,08/11/2016,Research,Aviation,Civil Aviation Authority,2000014127,54565,#,RH6 0YR,,
Department for Transport,Department for Transport,08/11/2016,Research,DG_Rail - Passenger Services,Transport Focus,2000014141,160000,#,M1 2WD,,
Department for Transport,Department for Transport,08/11/2016,Secondments,Aviation,Civil Aviation Authority,2000014127,30036.17,#,RH6 0YR,,
Department for Transport,Department for Transport,08/11/2016,Secondments,Group Human Resources,HM REVENUE & CUSTOMS,2000014129,23897.09,#,BN12 4XH,,
Department for Transport,Department for Transport,08/11/2016,Services prov by OGD,Group Commercial Services,Driver & Vehicle Licensing Agency,2000014128,12654.92,#,SA6 7JL,,
Department for Transport,Department for Transport,08/11/2016,Small Software,Marine Accident Investigation Branch,Regs4ships Limited,2000014145,1524,#,SO18 1AD,,
Department for Transport,Department for Transport,08/11/2016,Support Services,Group Human Resources,Edenred,2000014120,5100,#,SW1V 2RS,,
Department for Transport,Department for Transport,08/11/2016,Support Services,Group Finance,HOME OFFICE SHARED SERVICE CENTRE,2000014151,6072.12,#,NP20 9BB,,
Department for Transport,Department for Transport,08/11/2016,Support Services,Aviation,CAA INTERNATIONAL LTD,2000014126,24940,#,RH6 0YR,,
Department for Transport,Department for Transport,08/11/2016,Trade Plate Expenses,Local,Minibus Options Limited,2000014148,33869.92,Community Transport Minibus Fund Round 1,SK23 7LY,,
Department for Transport,Department for Transport,08/11/2016,Training,Transport Security Co-ordination & Response,Escal Institute of Advanced,2000014153,4782.22,#,SA3 9BB,,
Department for Transport,Department for Transport,08/11/2016,Transport  Consult,Airport Capacity,IATA,2000014152,5880,Expert panel Advice,H4Z 1M1,,
Department for Transport,Department for Transport,08/11/2016,Transport  Consult,HSR Phase 2 Sponsor, (TRANSPORT PLANNING),2000014124,9382.5,#,WR5 1TX,,
Department for Transport,Department for Transport,09/11/2016,Agency Staff Costs,Local,BROOK STREET (UK) LIMITED,2000014190,760.57,Agency Staff Costs ,AL1 4JB,,
Department for Transport,Department for Transport,09/11/2016,Agency Staff Costs,DG_RAIL - Network Services,CAPITA BUSINESS SERVICES LTD,2000014184,11193.32,Interim resource,DL1 9HN,,
Department for Transport,Department for Transport,09/11/2016,Agency Staff Costs,DG_Rail - Passenger Services,CAPITA BUSINESS SERVICES LTD,2000014184,2642.16,#,DL1 9HN,,
Department for Transport,Department for Transport,09/11/2016,Agency Staff Costs,Group Finance,CAPITA BUSINESS SERVICES LTD,2000014184,2955.74,#,DL1 9HN,,
Department for Transport,Department for Transport,09/11/2016,Agency Staff Costs,DG_Rail - Passenger Services,CAPITA BUSINESS SERVICES LTD,2000014184,3793.28,#,DL1 9HN,,
Department for Transport,Department for Transport,09/11/2016,Cap Grt Pri Sec-Cos.,Rail NDPB's,Network Rail Infstrcture (Treasury),2000014180,100000000,#,NW1 2DN,,
Department for Transport,Department for Transport,09/11/2016,Cap Grt Pri Sec-Cos.,Rail NDPB's,Network Rail Infstrcture (Treasury),2000014180,60000000,Network Rail Loan Payment,NW1 2DN,,
Department for Transport,Department for Transport,09/11/2016,Cars Maintenance,"Road Safety, Standards and Services",ATS Euromaster Ltd,2000014185,1286.76,#,EN11 1HH,,
Department for Transport,Department for Transport,09/11/2016,Cars Maintenance,"Road Safety, Standards and Services",Goodyear Dunlop Tyres UK Ltd,2000014202,1577.03,#,B24 9HY,,
Department for Transport,Department for Transport,09/11/2016,Maintenance Other,Strategic Roads,TDC SYSTEMS LIMITED,2000014189,675,#,BS24 9BP,,
Department for Transport,Department for Transport,09/11/2016,Maintenance Other,Strategic Roads,TDC SYSTEMS LIMITED,2000014189,3618.4,#,BS24 9BP,,
Department for Transport,Department for Transport,09/11/2016,Maintenance Other,Strategic Roads,TDC SYSTEMS LIMITED,2000014189,522,#,BS24 9BP,,
Department for Transport,Department for Transport,09/11/2016,Mobile Phone charges,Group Commercial Services,VODAFONE LTD,2000014191,36647.77,Vodafone Charges - 15.10.2016,RG14 5FF,,
Department for Transport,Department for Transport,09/11/2016,Other Professional F,Maritime,Engie Services Ltd,2000014217,4596.6,#,NE12 8EX,,
Department for Transport,Department for Transport,09/11/2016,Other Professional F,Group Finance,Arvato Ltd,2000014206,-101953.41,#,HU10 6FE,,
Department for Transport,Department for Transport,09/11/2016,Other Professional F,Group Finance,Arvato Ltd,2000014206,-101953.41,#,HU10 6FE,,
Department for Transport,Department for Transport,09/11/2016,Other Professional F,Group Finance,Arvato Ltd,2000014206,224955,#,HU10 6FE,,
Department for Transport,Department for Transport,09/11/2016,Other Professional F,Group Finance,Arvato Ltd,2000014206,123001.59,#,HU10 6FE,,
Department for Transport,Department for Transport,09/11/2016,Other Professional F,Group Finance,Arvato Ltd,2000014206,-224955,#,HU10 6FE,,
Department for Transport,Department for Transport,09/11/2016,Other Professional F,Group Finance,Arvato Ltd,2000014206,101953.41,#,HU10 6FE,,
Department for Transport,Department for Transport,09/11/2016,Other Professional F,Group Finance,Arvato Ltd,2000014206,-101953.41,#,HU10 6FE,,
Department for Transport,Department for Transport,09/11/2016,Other Professional F,Group Finance,Arvato Ltd,2000014206,224955,#,HU10 6FE,,
Department for Transport,Department for Transport,09/11/2016,Pte Cost Of Servs Ch,DG_Rail - Passenger Services,Transport for Greater Manchester,2000014196,118082.78,1708 Wk3 16/17 Rail Admin Grant + Indexation - Tra,M1 3BG,,
Department for Transport,Department for Transport,09/11/2016,Pte Cost Of Servs Ch,DG_Rail - Passenger Services,NEXUS (TYNE & WEAR),2000014194,20137.33,1708 Wk3 16/17 Rail Admin Grant + Indexation - Nex,NE1 4AX,,
Department for Transport,Department for Transport,09/11/2016,Pte Cost Of Servs Ch,DG_Rail - Passenger Services,SOUTH YORKSHIRE PTE,2000014195,97102,1708 Wk3 16/17 Rail Admin Grant + Indexation - Sou,S2 5YT,,
Department for Transport,Department for Transport,09/11/2016,Pte Cost Of Servs Ch,DG_Rail - Passenger Services,WEST YORKSHIRE PTA,2000014197,70744.23,1708 Wk3 16/17 Rail Admin Grant + Indexation - Wes,LS1 2DE,,
Department for Transport,Department for Transport,09/11/2016,Research Grant-CG,"Road Safety, Standards and Services",Transfaction Limited,2000014215,7470,Transfaction Initial 30% ITS T-TRIG Grant Payment,IP32 7PA,,
Department for Transport,Department for Transport,09/11/2016,Research Grant-CG,"Road Safety, Standards and Services",Zipabout Limited,2000014216,11640,Zipabout - Initial 30% ITS T-TRIG Grant Payment,OX1 3HJ,,
Department for Transport,Department for Transport,09/11/2016,Secondments,Group Human Resources,FCO Foreign and Commonwealth Office,2000014199,657.38,#,MK10 1PX,,
Department for Transport,Department for Transport,09/11/2016,Secondments,Aviation,Innoaviate Limited,2000014211,7587.2,#,KT12 5HD,,
Department for Transport,Department for Transport,09/11/2016,Small Software,Group Commercial Services,Comparex UK Ltd,2000014212,980.64,#,HA1 3EL,,
Department for Transport,Department for Transport,09/11/2016,Subsidies Private Se,"Road Safety, Standards and Services",APPIAN TRADING LTD,2000014205,10000,Traffic Signs De-cluttering taskforce,N1 7JE,,
Department for Transport,Department for Transport,09/11/2016,Support Services,Group Finance,Charles Lucas & Marshall,2000014207,55000,Industrial Injury Claim,RG14 5EU,,
Department for Transport,Department for Transport,09/11/2016,Support Services,Group Finance,Withy King LLP,2000014208,145534.2,#,BA1 2JE,,
Department for Transport,Department for Transport,09/11/2016,Training,Group Commercial Services,Global Knowledge Network,2000014186,1326.5,#,RG41 2GY,,
Department for Transport,Department for Transport,09/11/2016,Training,Group Commercial Services,Global Knowledge Network,2000014186,1326.5,#,RG41 2GY,,
Department for Transport,Department for Transport,09/11/2016,Training,Strategic Roads,Lumia Development,2000014209,2710,#,BS1 5HX,,
Department for Transport,Department for Transport,09/11/2016,Translation Services,DG_RAIL - Rail Strategy & Security,FCO Services,100020719,-1324.6,FCO INTERPRETER 2015-2016,MK19 7BH,,
Department for Transport,Department for Transport,09/11/2016,Translation Services,DG_RAIL - Rail Strategy & Security,FCO Services,100020719,-1300,FCO INTERPRETER 2015-2016,MK19 7BH,,
Department for Transport,Department for Transport,09/11/2016,Translation Services,DG_RAIL - Rail Strategy & Security,FCO Services,100020719,1300,#,MK19 7BH,,
Department for Transport,Department for Transport,09/11/2016,Translation Services,DG_RAIL - Rail Strategy & Security,FCO Services,100020719,1324.6,#,MK19 7BH,,
Department for Transport,Department for Transport,09/11/2016,Transport  Consult,DG_Rail - Passenger Services,ATKINS LTD (TRANSPORT PLANNING),2000014187,28705.13,#,WR5 1TX,,
Department for Transport,Department for Transport,09/11/2016,Transport  Consult,DG_Rail - Passenger Services,ATKINS LTD (TRANSPORT PLANNING),2000014187,14178,#,WR5 1TX,,
Department for Transport,Department for Transport,10/11/2016,Agency Staff Costs,Airport Capacity,CAPITA BUSINESS SERVICES LTD,2000014259,6009.72,#,DL1 9HN,,
Department for Transport,Department for Transport,10/11/2016,Agency Staff Costs,Local,BROOK STREET (UK) LIMITED,2000014263,982.98,Agency Staff Costs ,AL1 4JB,,
Department for Transport,Department for Transport,10/11/2016,Agency Staff Costs,Group Communications,CAPITA BUSINESS SERVICES LTD,2000014259,1884.7,#,DL1 9HN,,
Department for Transport,Department for Transport,10/11/2016,Agency Staff Costs,Group Communications,CAPITA BUSINESS SERVICES LTD,2000014259,1705.38,#,DL1 9HN,,
Department for Transport,Department for Transport,10/11/2016,Agency Staff Costs,Group Communications,CAPITA BUSINESS SERVICES LTD,2000014259,1705.38,#,DL1 9HN,,
Department for Transport,Department for Transport,10/11/2016,Agency Staff Costs,Group Commercial Services,CAPITA BUSINESS SERVICES LTD,2000014259,6870.62,#,DL1 9HN,,
Department for Transport,Department for Transport,10/11/2016,Agency Staff Costs,Local,CAPITA BUSINESS SERVICES LTD,2000014259,1643.28,Agency Staff Costs ,DL1 9HN,,
Department for Transport,Department for Transport,10/11/2016,Agency Staff Costs,Major Projects,CAPITA BUSINESS SERVICES LTD,2000014259,2852.5,Interim resource,DL1 9HN,,
Department for Transport,Department for Transport,10/11/2016,Agency Staff Costs,Group Finance,CAPITA BUSINESS SERVICES LTD,2000014259,2316.42,#,DL1 9HN,,
Department for Transport,Department for Transport,10/11/2016,Agency Staff Costs,Group Finance,CAPITA BUSINESS SERVICES LTD,2000014259,2113.73,#,DL1 9HN,,
Department for Transport,Department for Transport,10/11/2016,Agency Staff Costs,DG_Rail - Passenger Services,BROOK STREET (UK) LIMITED,2000014263,946.19,#,AL1 4JB,,
Department for Transport,Department for Transport,10/11/2016,Agency Staff Costs,"Energy, Technology and International",CAPITA BUSINESS SERVICES LTD,2000014259,11828.88,#,DL1 9HN,,
Department for Transport,Department for Transport,10/11/2016,Agency Staff Costs,DG_Rail - Passenger Services,CAPITA BUSINESS SERVICES LTD,2000014259,5066.16,#,DL1 9HN,,
Department for Transport,Department for Transport,10/11/2016,Agency Staff Costs,DG_Rail - Passenger Services,CAPITA BUSINESS SERVICES LTD,2000014259,9749.28,#,DL1 9HN,,
Department for Transport,Department for Transport,10/11/2016,Agency Staff Costs,HSR Programme and Funding,CAPITA BUSINESS SERVICES LTD,2000014259,2642.16,#,DL1 9HN,,
Department for Transport,Department for Transport,10/11/2016,Agency Staff Costs,HSR Programme and Funding,CAPITA BUSINESS SERVICES LTD,2000014259,1777.9,#,DL1 9HN,,
Department for Transport,Department for Transport,10/11/2016,Agency Staff Costs,DG_Rail - Passenger Services,CAPITA BUSINESS SERVICES LTD,2000014259,2650.14,#,DL1 9HN,,
Department for Transport,Department for Transport,10/11/2016,Agency Staff Costs,DG_Rail - Passenger Services,CAPITA BUSINESS SERVICES LTD,2000014259,1863.31,#,DL1 9HN,,
Department for Transport,Department for Transport,10/11/2016,Agency Staff Costs,HSR Programme and Funding,CAPITA BUSINESS SERVICES LTD,2000014259,2642.16,#,DL1 9HN,,
Department for Transport,Department for Transport,10/11/2016,Agency Staff Costs,DG_Rail - Passenger Services,CAPITA BUSINESS SERVICES LTD,2000014259,3333.06,#,DL1 9HN,,
Department for Transport,Department for Transport,10/11/2016,Agency Staff Costs,HSR Programme and Funding,CAPITA BUSINESS SERVICES LTD,2000014259,3123.66,#,DL1 9HN,,
Department for Transport,Department for Transport,10/11/2016,Agency Staff Costs,DG_Rail - Passenger Services,CAPITA BUSINESS SERVICES LTD,2000014259,4306.62,#,DL1 9HN,,
Department for Transport,Department for Transport,10/11/2016,Agency Staff Costs,DG_Rail - Passenger Services,CAPITA BUSINESS SERVICES LTD,2000014259,7652.28,#,DL1 9HN,,
Department for Transport,Department for Transport,10/11/2016,Agency Staff Costs,HSR Programme and Funding,CAPITA BUSINESS SERVICES LTD,2000014259,3194.16,#,DL1 9HN,,
Department for Transport,Department for Transport,10/11/2016,Agency Staff Costs,DG_Rail - Passenger Services,CAPITA BUSINESS SERVICES LTD,2000014259,2680.14,#,DL1 9HN,,
Department for Transport,Department for Transport,10/11/2016,Agency Staff Costs,DG_Rail - Passenger Services,CAPITA BUSINESS SERVICES LTD,2000014259,2680.14,#,DL1 9HN,,
Department for Transport,Department for Transport,10/11/2016,Agency Staff Costs,DG_Rail - Passenger Services,CAPITA BUSINESS SERVICES LTD,2000014259,4922.88,#,DL1 9HN,,
Department for Transport,Department for Transport,10/11/2016,Agency Staff Costs,DG_Rail - Passenger Services,CAPITA BUSINESS SERVICES LTD,2000014259,3435.31,#,DL1 9HN,,
Department for Transport,Department for Transport,10/11/2016,Agency Staff Costs,DG_Rail - Passenger Services,CAPITA BUSINESS SERVICES LTD,2000014259,4050.12,#,DL1 9HN,,
Department for Transport,Department for Transport,10/11/2016,Agency Staff Costs,DG_Rail - Passenger Services,CAPITA BUSINESS SERVICES LTD,2000014259,5515.69,#,DL1 9HN,,
Department for Transport,Department for Transport,10/11/2016,Agency Staff Costs,DG_Rail - Passenger Services,CAPITA BUSINESS SERVICES LTD,2000014259,9281.09,#,DL1 9HN,,
Department for Transport,Department for Transport,10/11/2016,Agency Staff Costs,DG_Rail - Passenger Services,CAPITA BUSINESS SERVICES LTD,2000014259,2001.5,#,DL1 9HN,,
Department for Transport,Department for Transport,10/11/2016,Agency Staff Costs,DG_Rail - Passenger Services,CAPITA BUSINESS SERVICES LTD,2000014259,4090.44,#,DL1 9HN,,
Department for Transport,Department for Transport,10/11/2016,Agency Staff Costs,DG_Rail - Passenger Services,CAPITA BUSINESS SERVICES LTD,2000014259,2260.08,#,DL1 9HN,,
Department for Transport,Department for Transport,10/11/2016,Agency Staff Costs,DG_Rail - Passenger Services,CAPITA BUSINESS SERVICES LTD,2000014259,4114.74,#,DL1 9HN,,
Department for Transport,Department for Transport,10/11/2016,Agency Staff Costs,DG_Rail - Passenger Services,CAPITA BUSINESS SERVICES LTD,2000014259,2574.72,#,DL1 9HN,,
Department for Transport,Department for Transport,10/11/2016,Agency Staff Costs,DG_Rail - Passenger Services,CAPITA BUSINESS SERVICES LTD,2000014259,3421.1,#,DL1 9HN,,
Department for Transport,Department for Transport,10/11/2016,Agency Staff Costs,DG_Rail - Passenger Services,CAPITA BUSINESS SERVICES LTD,2000014259,7012.32,#,DL1 9HN,,
Department for Transport,Department for Transport,10/11/2016,Agency Staff Costs,DG_Rail - Passenger Services,CAPITA BUSINESS SERVICES LTD,2000014259,5415.17,#,DL1 9HN,,
Department for Transport,Department for Transport,10/11/2016,Agency Staff Costs,DG_Rail - Passenger Services,CAPITA BUSINESS SERVICES LTD,2000014259,913.98,#,DL1 9HN,,
Department for Transport,Department for Transport,10/11/2016,Agency Staff Costs,DG_Rail - Passenger Services,CAPITA BUSINESS SERVICES LTD,2000014259,4003.01,#,DL1 9HN,,
Department for Transport,Department for Transport,10/11/2016,Agency Staff Costs,DG_RAIL - Network Services,CAPITA BUSINESS SERVICES LTD,2000014259,5825.16,Interim resource,DL1 9HN,,
Department for Transport,Department for Transport,10/11/2016,Agency Staff Costs,DG_Rail - Passenger Services,CAPITA BUSINESS SERVICES LTD,2000014259,785.94,#,DL1 9HN,,
Department for Transport,Department for Transport,10/11/2016,Agency Staff Costs,DG_Rail - Passenger Services,CAPITA BUSINESS SERVICES LTD,2000014259,1322.16,#,DL1 9HN,,
Department for Transport,Department for Transport,10/11/2016,Agency Staff Costs,One Railway,CAPITA BUSINESS SERVICES LTD,2000014259,8194.14,#,DL1 9HN,,
Department for Transport,Department for Transport,10/11/2016,Agency Staff Costs,DG_RAIL - Rail Corporate Centre,CAPITA BUSINESS SERVICES LTD,2000014259,4866.66,#,DL1 9HN,,
Department for Transport,Department for Transport,10/11/2016,Cap Grt Loc Auth,Regional Transport Strategies,GREATER LONDON AUTHORITY,2000014290,72615385,GLA Transport Grant payment November 16/17,SE1 2UT,,
Department for Transport,Department for Transport,10/11/2016,Cap Grt Loc Auth,Regional Transport Strategies,Sheffield City Region,2000014264,1850000,Development for setting up Transport for North,S1 4PL,,
Department for Transport,Department for Transport,10/11/2016,Cap Grt Pri Sec-Cos.,"Energy, Technology and International",Armstrong Renewables,2000014277,1000,Armstrong Jul 16 #1000,NE37 2SH,,
Department for Transport,Department for Transport,10/11/2016,Cap Grt Pri Sec-Cos.,"Energy, Technology and International",Blythe Electrical (Warwickshire),2000014278,5500,Blythe Elec Aug 16 #5500,B46 2JA,,
Department for Transport,Department for Transport,10/11/2016,Cap Grt Pri Sec-Cos.,"Energy, Technology and International",East Green Energy Limited,2000014286,500,East Green Energy May 16 #500,IP12 1BH,,
Department for Transport,Department for Transport,10/11/2016,Cap Grt Pri Sec-Cos.,"Energy, Technology and International",EV Charging Solutions,2000014276,700,EV Charging Solutions Oct 15 #700,NG7 3EN,,
Department for Transport,Department for Transport,10/11/2016,Cap Grt Pri Sec-Cos.,"Energy, Technology and International",Link Solar Limited,2000014284,1000,Link Solar Jul 16 #1000,GU10 4LB,,
Department for Transport,Department for Transport,10/11/2016,Cap Grt Pri Sec-Cos.,Transport Security Co-ordination & Response,LumOptica Limited,2000014287,8584.8,LumOptica 30% Early Payment AvSec Innovation Grant,BS15 4PJ,,
Department for Transport,Department for Transport,10/11/2016,Cap Grt Pri Sec-Cos.,"Energy, Technology and International",Macken & Cleare Ltd,2000014283,500,Macken & Cleare Apr 16 #500,EN1 3UJ,,
Department for Transport,Department for Transport,10/11/2016,Cap Grt Pri Sec-Cos.,Rail NDPB's,Network Rail Infstrcture (Treasury),2000014226,250000000,Network Rail Loan - UR087,NW1 2DN,,
Department for Transport,Department for Transport,10/11/2016,Cap Grt Pri Sec-Cos.,"Energy, Technology and International",Pod Point,2000014275,500,POD Point May 16 #500,E1 1EE,,
Department for Transport,Department for Transport,10/11/2016,Cap Grt Pri Sec-Cos.,"Energy, Technology and International",Rolec Services Limited,2000014274,2800,ROLEC Oct 2015 #2800,PE20 1Q,,
Department for Transport,Department for Transport,10/11/2016,Cap Grt Pri Sec-Cos.,"Energy, Technology and International",Rolec Services Limited,2000014274,2800,ROLEC Nov 2015 #2800,PE20 1Q,,
Department for Transport,Department for Transport,10/11/2016,Cap Grt Pri Sec-Cos.,"Energy, Technology and International",Rolec Services Limited,2000014274,500,ROLEC Mar 2016 #500,PE20 1Q,,
Department for Transport,Department for Transport,10/11/2016,Cap Grt Pri Sec-Cos.,Transport Security Co-ordination & Response,Security Screening Technology Ltd,2000014289,6458.18,SST 30% Early Payment AvSec Innovation Grant,S33 6RQ,,
Department for Transport,Department for Transport,10/11/2016,Cap Grt Pri Sec-Cos.,"Energy, Technology and International",Shield Environmental Services Ltd,2000014285,500,Shield Environmental Apr 16 #500,BS30 8XJ,,
Department for Transport,Department for Transport,10/11/2016,Cap Grt Pri Sec-Cos.,Transport Security Co-ordination & Response,University of Southampton,2000014288,10809.9,SOU 30% Early Payment AvSec Innovation Grant,SO17 1BJ,,
Department for Transport,Department for Transport,10/11/2016,Conferences / Semina,Local,CAMBRIDGE UNIVERSITY,2000014260,4500,Cycling Workshop,CB2 1PZ,,
Department for Transport,Department for Transport,10/11/2016,Conferences / Semina,Environment & International Transport Analysis,Buchwerk GmH,1700000041,-970.31,Reversal of 1900001177,14482,,
Department for Transport,Department for Transport,10/11/2016,Conferences / Semina,Environment & International Transport Analysis,Buchwerk GmH,1700000041,970.31,Reversal of 1900001177,14482,,
Department for Transport,Department for Transport,10/11/2016,Conferences / Semina,Environment & International Transport Analysis,Buchwerk GmH,1700000042,-970.31,"EURO Payment (1,090.00 Euro)",14482,,
Department for Transport,Department for Transport,10/11/2016,Conferences / Semina,Environment & International Transport Analysis,Buchwerk GmH,1700000042,970.31,"EURO Payment (1,090.00 Euro)",14482,,
Department for Transport,Department for Transport,10/11/2016,Conferences / Semina,Environment & International Transport Analysis,Buchwerk GmH,2000014257,957.11,"EURO Payment (1,090.00 Euro)",14482,,
Department for Transport,Department for Transport,10/11/2016,CurrGrt Las in AEF/A,Regional Transport Strategies,GREATER LONDON AUTHORITY,2000014290,36488799,GLA Transport Grant payment November 16/17,SE1 2UT,,
Department for Transport,Department for Transport,10/11/2016,CurrGrt Las in AEF/A,Regional Transport Strategies,Sheffield City Region,2000014264,9100000,Development for setting up Transport for North,S1 4PL,,
Department for Transport,Department for Transport,10/11/2016,Electricity,Group Commercial Services,EDF ENERGY,2000014261,44946.33,EDF - GMH - October 2016,DA6 8ET,,
Department for Transport,Department for Transport,10/11/2016,Financial Consultanc,Strategic Roads,N M Rothschild & Sons Ltd,2000014279,75000,#,EC4N 8AL,,
Department for Transport,Department for Transport,10/11/2016,Grt Aid to NDPBs,HSR DG's Office,High Speed Two (HS2) Ltd,2000014267,25000000,Grant,E14 5AB,,
Department for Transport,Department for Transport,10/11/2016,Legal Consultancy,DG_Rail - Passenger Services,CAPITA BUSINESS SERVICES LTD,2000014259,14792.58,#,DL1 9HN,,
Department for Transport,Department for Transport,10/11/2016,Legal Consultancy,DG_Rail - Passenger Services,Eversheds LLP,2000014269,9035.4,#,EC2V 7WS,,
Department for Transport,Department for Transport,10/11/2016,Legal Consultancy,HSR Phase 1 Sponsor,Counsel,2000014280,12780,#,EC4Y 7BY,,
Department for Transport,Department for Transport,10/11/2016,Other Advertising,Local,Penna Communications,2000014268,14874.15,Statutory Advertising ,EC4M 7RD,,
Department for Transport,Department for Transport,10/11/2016,Rent - L&B (non-PFI),Marine Accident Investigation Branch,Maritime & Coastguard Agency,2000014253,212088,MCA ? Rent charges 24.06.2016 to 24.12.2016,SO15 1EG,,
Department for Transport,Department for Transport,10/11/2016,Research,"Energy, Technology and International",LOUGHBOROUGH UNIVERSITY,100020773,-48601.07,#,LE11 3TU,,
Department for Transport,Department for Transport,10/11/2016,Research,"Energy, Technology and International",LOUGHBOROUGH UNIVERSITY,100020773,48601.07,#,LE11 3TU,,
Department for Transport,Department for Transport,10/11/2016,Research,Major Projects,OVE ARUP & PARTNERS,2000014262,54097.76,Research,NE1 3PL,,
Department for Transport,Department for Transport,10/11/2016,Services prov by OGD,Group Commercial Services,Crown Commercial Services,2000014255,335000,#,L3 9PP,,
Department for Transport,Department for Transport,10/11/2016,Services prov by OGD,Maritime,THE ROYAL MINT,2000014271,455,#,CF72 8YT,,
Department for Transport,Department for Transport,10/11/2016,Small Software,Group Commercial Services,Everest Software LP,2000014256,2429.81,#,15017,,
Department for Transport,Department for Transport,10/11/2016,Support Services,Group Commercial Services,DWP Shared Services,2000014252,23859.78,#,FY5 3TA,,
Department for Transport,Department for Transport,10/11/2016,Support Services,Group Commercial Services,DWP Shared Services,2000014252,23859.78,#,FY5 3TA,,
Department for Transport,Department for Transport,10/11/2016,Support Services,Local,Driver and Vehicle Standards Agency,2000014254,14315.54,BSOG Q2 Charges,SA1 8AN,,
Department for Transport,Department for Transport,10/11/2016,Support Services,HSR Programme and Funding,Government Legal Department,2000014258,220,#,WC2B 4TS,,
Department for Transport,Department for Transport,10/11/2016,Support Services,Group Human Resources,RAILWAYS PENSION MANAGEMENT LT,2000014265,4237.41,#,DL3 6EH,,
Department for Transport,Department for Transport,10/11/2016,Trade Plate Expenses,Local,Minibus Options Limited,2000014282,18442.9,Community Transport Minibus Fund Round 1,SK23 7LY,,
Department for Transport,Department for Transport,10/11/2016,Trade Plate Expenses,Local,Minibus Options Limited,2000014282,17580,Community Transport Minibus Fund Round 1,SK23 7LY,,
Department for Transport,Department for Transport,10/11/2016,Trade Plate Expenses,Local,Minibus Options Limited,2000014282,22258.66,Community Transport Minibus Fund Round 1,SK23 7LY,,
Department for Transport,Department for Transport,10/11/2016,Trade Plate Expenses,Local,Minibus Options Limited,2000014282,22194.54,Community Transport Minibus Fund Round 1,SK23 7LY,,
Department for Transport,Department for Transport,10/11/2016,Trade Plate Expenses,Local,Minibus Options Limited,2000014282,23154.96,Community Transport Minibus Fund Round 1,SK23 7LY,,
Department for Transport,Department for Transport,10/11/2016,Trade Plate Expenses,Local,Minibus Options Limited,2000014282,20390.81,Community Transport Minibus Fund Round 1,SK23 7LY,,
Department for Transport,Department for Transport,10/11/2016,Trade Plate Expenses,Local,Minibus Options Limited,2000014282,38391.6,Community Transport Minibus Fund Round 1,SK23 7LY,,
Department for Transport,Department for Transport,10/11/2016,Treasury Solicitors,HSR Programme and Funding,Government Legal Department,2000014258,10217.28,#,WC2B 4TS,,
Department for Transport,Department for Transport,11/11/2016,Agency Staff Costs,Local,CAPITA BUSINESS SERVICES LTD,2000014326,713.71,Agency Staff Costs ,DL1 9HN,,
Department for Transport,Department for Transport,11/11/2016,Agency Staff Costs,Group Commercial Services,BROOK STREET (UK) LIMITED,2000014345,733.97,#,AL1 4JB,,
Department for Transport,Department for Transport,11/11/2016,Agency Staff Costs,Group Commercial Services,BROOK STREET (UK) LIMITED,2000014345,872.32,#,AL1 4JB,,
Department for Transport,Department for Transport,11/11/2016,Agency Staff Costs,DG_Rail - Passenger Services,BROOK STREET (UK) LIMITED,2000014345,985.32,#,AL1 4JB,,
Department for Transport,Department for Transport,11/11/2016,Agency Staff Costs,DG_RAIL - Network Services,BROOK STREET (UK) LIMITED,2000014345,647.46,Interim resource,AL1 4JB,,
Department for Transport,Department for Transport,11/11/2016,Agency Staff Costs,DG_Rail - Passenger Services,CAPITA BUSINESS SERVICES LTD,2000014326,2666.45,#,DL1 9HN,,
Department for Transport,Department for Transport,11/11/2016,Agency Staff Costs,DG_Rail - Passenger Services,CAPITA BUSINESS SERVICES LTD,2000014326,3691.28,#,DL1 9HN,,
Department for Transport,Department for Transport,11/11/2016,Agency Staff Costs,DG_Rail - Passenger Services,CAPITA BUSINESS SERVICES LTD,2000014326,2023.56,#,DL1 9HN,,
Department for Transport,Department for Transport,11/11/2016,Agency Staff Costs,DG_Rail - Passenger Services,CAPITA BUSINESS SERVICES LTD,2000014326,5066.16,#,DL1 9HN,,
Department for Transport,Department for Transport,11/11/2016,Agency Staff Costs,Group Finance,CAPITA BUSINESS SERVICES LTD,2000014326,2955.74,#,DL1 9HN,,
Department for Transport,Department for Transport,11/11/2016,Agency Staff Costs,DG_Rail - Passenger Services,CAPITA BUSINESS SERVICES LTD,2000014326,787.96,#,DL1 9HN,,
Department for Transport,Department for Transport,11/11/2016,Agency Staff Costs,DG_Rail - Passenger Services,CAPITA BUSINESS SERVICES LTD,2000014326,4067.88,#,DL1 9HN,,
Department for Transport,Department for Transport,11/11/2016,Agency Staff Costs,DG_Rail - Passenger Services,CAPITA BUSINESS SERVICES LTD,2000014326,2364.98,#,DL1 9HN,,
Department for Transport,Department for Transport,11/11/2016,Agency Staff Costs,DG_Rail - Passenger Services,CAPITA BUSINESS SERVICES LTD,2000014326,4093.44,#,DL1 9HN,,
Department for Transport,Department for Transport,11/11/2016,Agency Staff Costs,DG_Rail - Passenger Services,CAPITA BUSINESS SERVICES LTD,2000014326,7062.96,#,DL1 9HN,,
Department for Transport,Department for Transport,11/11/2016,Agency Staff Costs,DG_Rail - Passenger Services,CAPITA BUSINESS SERVICES LTD,2000014326,4874.64,#,DL1 9HN,,
Department for Transport,Department for Transport,11/11/2016,Agency Staff Costs,DG_RAIL - Network Services,CAPITA BUSINESS SERVICES LTD,2000014326,3961.14,Interim resource,DL1 9HN,,
Department for Transport,Department for Transport,11/11/2016,Agency Staff Costs,DG_Rail - Passenger Services,CAPITA BUSINESS SERVICES LTD,2000014326,9845.76,#,DL1 9HN,,
Department for Transport,Department for Transport,11/11/2016,Agency Staff Costs,DG_Rail - Passenger Services,CAPITA BUSINESS SERVICES LTD,2000014326,1806.53,#,DL1 9HN,,
Department for Transport,Department for Transport,11/11/2016,Agency Staff Costs,DG_RAIL - Network Services,CAPITA BUSINESS SERVICES LTD,2000014326,4451.28,Interim resource,DL1 9HN,,
Department for Transport,Department for Transport,11/11/2016,Agency Staff Costs,DG_Rail - Passenger Services,CAPITA BUSINESS SERVICES LTD,2000014326,2574.72,#,DL1 9HN,,
Department for Transport,Department for Transport,11/11/2016,Agency Staff Costs,DG_Rail - Passenger Services,CAPITA BUSINESS SERVICES LTD,2000014326,666.61,#,DL1 9HN,,
Department for Transport,Department for Transport,11/11/2016,Agency Staff Costs,DG_Rail - Passenger Services,CAPITA BUSINESS SERVICES LTD,2000014326,3194.16,#,DL1 9HN,,
Department for Transport,Department for Transport,11/11/2016,Agency Staff Costs,DG_Rail - Passenger Services,CAPITA BUSINESS SERVICES LTD,2000014326,3333.06,#,DL1 9HN,,
Department for Transport,Department for Transport,11/11/2016,Agency Staff Costs,Group Commercial Services,CAPITA BUSINESS SERVICES LTD,2000014326,4513.92,#,DL1 9HN,,
Department for Transport,Department for Transport,11/11/2016,Agency Staff Costs,DG_Rail - Passenger Services,CAPITA BUSINESS SERVICES LTD,2000014326,2890.14,#,DL1 9HN,,
Department for Transport,Department for Transport,11/11/2016,Agency Staff Costs,DG_Rail - Passenger Services,CAPITA BUSINESS SERVICES LTD,2000014326,2642.16,#,DL1 9HN,,
Department for Transport,Department for Transport,11/11/2016,Agency Staff Costs,DG_Rail - Passenger Services,CAPITA BUSINESS SERVICES LTD,2000014326,4050.12,#,DL1 9HN,,
Department for Transport,Department for Transport,11/11/2016,Agency Staff Costs,DG_Rail - Passenger Services,CAPITA BUSINESS SERVICES LTD,2000014326,4866.66,#,DL1 9HN,,
Department for Transport,Department for Transport,11/11/2016,Agency Staff Costs,HSR Phase 1 Sponsor,CAPITA BUSINESS SERVICES LTD,2000014326,3506.16,#,DL1 9HN,,
Department for Transport,Department for Transport,11/11/2016,Agency Staff Costs,DG_Rail - Passenger Services,CAPITA BUSINESS SERVICES LTD,2000014326,2650.14,#,DL1 9HN,,
Department for Transport,Department for Transport,11/11/2016,Agency Staff Costs,DG_Rail - Passenger Services,CAPITA BUSINESS SERVICES LTD,2000014326,8552.76,#,DL1 9HN,,
Department for Transport,Department for Transport,11/11/2016,Agency Staff Costs,One Railway,CAPITA BUSINESS SERVICES LTD,2000014326,2903.26,#,DL1 9HN,,
Department for Transport,Department for Transport,11/11/2016,Cap Grt Pri Sec-Cos.,"Energy, Technology and International",BMM Contracts Ltd,2000014362,2000,BMM Jul 16 #2000,ML6 8NY,,
Department for Transport,Department for Transport,11/11/2016,Cap Grt Pri Sec-Cos.,HSR Programme and Funding,EVERSHEDS LLP,2000014334,451597.3,HS2 Property Purchase,LS11 5DR,,
Department for Transport,Department for Transport,11/11/2016,Cap Grt Pri Sec-Cos.,Rail NDPB's,Network Rail Infstrcture (Treasury),2000014227,50000000,Network Rail Loan - UR088,NW1 2DN,,
Department for Transport,Department for Transport,11/11/2016,Cap Grt Pri Sec-Cos.,Rail NDPB's,Network Rail Infstrcture (Treasury),2000014227,50000000,#,NW1 2DN,,
Department for Transport,Department for Transport,11/11/2016,Cap Grt Pri Sec-Cos.,Rail NDPB's,Network Rail Infstrcture (Treasury),2000014227,200000000,NR Loan UR090,NW1 2DN,,
Department for Transport,Department for Transport,11/11/2016,Conferences / Semina,"Energy, Technology and International",Cenex - LCV 11,2000014352,586.5,#,LE11 3QF,,
Department for Transport,Department for Transport,11/11/2016,CurrGrt Las in AEF/A,Strategic Roads,SOUTH GLOUCESTERSHIRE COUNCIL,2000014366,250000,M4 Junction 18a Road Study Grant,BS15 9DW,,
Department for Transport,Department for Transport,11/11/2016,CurrGrtPriSec-P&NPIS,"Road Safety, Standards and Services",ROSPA ENTERPRISES LTD,2000014349,100940,DOM -L&R ACPO ROAD SAFETY GRANT,B15 1RP,,
Department for Transport,Department for Transport,11/11/2016,Electricity,DG_IS - Rail Accident Investigation Branch,BRITISH GAS BUSINESS,2000014332,962.06,4.10.16 to 4.11.16  - Electricity - Derby DE21 4BA,GU95 1AW,,
Department for Transport,Department for Transport,11/11/2016,Grt Aid to NDPBs,Rail NDPB's,NETWORK RAIL INFRASTRUCTURE LTD,2000014351,5724000,NR Cash Funded Grant Goblin,M60 7WY,,
Department for Transport,Department for Transport,11/11/2016,Hospitality,Aviation,FCO Foreign and Commonwealth Office,2000014350,2709,#,MK10 1PX,,
Department for Transport,Department for Transport,11/11/2016,IT Ser Running Costs,Analysis & Strategy,NETFUNDI LTD,2000014339,1620,#,LA1 1SQ,,
Department for Transport,Department for Transport,11/11/2016,Legal Consultancy,"Road Safety, Standards and Services",Government Legal Department,2000014325,1982.1,#,WC2B 4TS,,
Department for Transport,Department for Transport,11/11/2016,Legal Consultancy,"Road Safety, Standards and Services",Government Legal Department,2000014325,4923.9,#,WC2B 4TS,,
Department for Transport,Department for Transport,11/11/2016,Legal Consultancy,DG_Rail - Passenger Services,CAPITA BUSINESS SERVICES LTD,2000014326,16764.92,#,DL1 9HN,,
Department for Transport,Department for Transport,11/11/2016,Legal Consultancy,HSR Phase 1 Sponsor,Counsel,2000014356,10464,#,EC4A 2HG,,
Department for Transport,Department for Transport,11/11/2016,Legal Consultancy,HSR Phase 1 Sponsor,Counsel,2000014343,36828,#,EC4A 2HG,,
Department for Transport,Department for Transport,11/11/2016,Maintenance Other,Strategic Roads,TDC SYSTEMS LIMITED,2000014342,11738,#,BS24 9BP,,
Department for Transport,Department for Transport,11/11/2016,Maintenance Other,"Road Safety, Standards and Services",ARVAL,2000014327,706.4,#,SN5 6PE,,
Department for Transport,Department for Transport,11/11/2016,Management Consultan,Airport Capacity,WSP UK Ltd T/A Parsons Brinckerhoff,2000014341,44255.89,#,RG21 4HJ,,
Department for Transport,Department for Transport,11/11/2016,Manual Handling Equi,"Road Safety, Standards and Services",Gemco Services Limited,2000014357,785,#,HX2 6JB,,
Department for Transport,Department for Transport,11/11/2016,Property Consultancy,Maritime,FAITHFUL & GOULD LTD,2000014324,4420.13,#,CF24 0AD,,
Department for Transport,Department for Transport,11/11/2016,Research,Local,TNS UK LTD,2000014344,15344.7,Local Raod Users Survey,W5 1UA,,
Department for Transport,Department for Transport,11/11/2016,Research,Local,TNS UK LTD,2000014344,12787.25,Local Raod Users Survey,W5 1UA,,
Department for Transport,Department for Transport,11/11/2016,Research,Local,HALCROW GROUP LTD,2000014336,5474.75,Collection of drink drive data,W6 7EF,,
Department for Transport,Department for Transport,11/11/2016,Secondments,Group Human Resources,HOME OFFICE SHARED SERVICE CENTRE,2000014323,9663.8,#,NP20 9BB,,
Department for Transport,Department for Transport,11/11/2016,Support Services,Air Accident Investigation Branch,BASSOM COMPUTER CONSULTANCY,2000014331,797.6,BASSOM COMPONENTS BLANKET 2016-2017,GU9 8LS,,
Department for Transport,Department for Transport,11/11/2016,Support Services,Aviation,FCO Foreign and Commonwealth Office,2000014350,102,#,MK10 1PX,,
Department for Transport,Department for Transport,11/11/2016,Support Services,Marine Accident Investigation Branch,CCD Marine Ltd,2000014364,4396.48,#,KY8 3RS,,
Department for Transport,Department for Transport,11/11/2016,Telephone charges,Air Accident Investigation Branch,ALTERNATIVE NETWORKS PLC,2000014353,1086.32,#,SW11 3UL,,
Department for Transport,Department for Transport,11/11/2016,Training,Air Accident Investigation Branch,CRANFIELD UNIVERSITY,2000014333,4600,#,MK43 0AL,,
Department for Transport,Department for Transport,11/11/2016,Training,Group Commercial Services,ACT NOW TRAINING LTD,2000014329,1750,#,WF13 2DU,,
Department for Transport,Department for Transport,11/11/2016,Training,Group Finance,GOVNET COMMUNICATIONS,2000014335,900,#,M1 6PP,,
Department for Transport,Department for Transport,11/11/2016,Transport  Consult,Major Projects,JACOBS UK LTD,2000014338,151492.5,Project Representative Fees,G2 7HX,,
Department for Transport,Department for Transport,11/11/2016,Transport  Consult,DG_RAIL - Network Services,OVE ARUP & PARTNERS,2000014340,28067.77,Model Support/Development,NE1 3PL,,
Department for Transport,Department for Transport,11/11/2016,Transport  Consult,DG_Rail - Passenger Services,ATKINS LTD (TRANSPORT PLANNING),2000014330,56808.23,#,WR5 1TX,,
Department for Transport,Department for Transport,11/11/2016,Treasury Solicitors,Group Commercial Services,Government Legal Department,2000014325,2592.36,#,WC2B 4TS,,
Department for Transport,Department for Transport,12/11/2016,HR Consultancy,Group Human Resources,OH Assist Ltd,2000014363,589.06,#,PR2 2YB,,
Department for Transport,Department for Transport,14/11/2016,Agency Staff Costs,Major Projects,CAPITA BUSINESS SERVICES LTD,2000014438,3803.33,Interim resource,DL1 9HN,,
Department for Transport,Department for Transport,14/11/2016,Agency Staff Costs,Strategic Roads,BROOK STREET (UK) LIMITED,2000014450,635.81,#,AL1 4JB,,
Department for Transport,Department for Transport,14/11/2016,Agency Staff Costs,Strategic Roads,BROOK STREET (UK) LIMITED,2000014450,506.93,#,AL1 4JB,,
Department for Transport,Department for Transport,14/11/2016,Agency Staff Costs,Group Finance,CAPITA BUSINESS SERVICES LTD,2000014438,2513.76,#,DL1 9HN,,
Department for Transport,Department for Transport,14/11/2016,Agency Staff Costs,Group Finance,CAPITA BUSINESS SERVICES LTD,2000014438,2321.16,#,DL1 9HN,,
Department for Transport,Department for Transport,14/11/2016,Agency Staff Costs,HSR Strategy,BROOK STREET (UK) LIMITED,2000014450,1032.74,#,AL1 4JB,,
Department for Transport,Department for Transport,14/11/2016,Agency Staff Costs,HSR Commercial Operations Sponsor,CAPITA BUSINESS SERVICES LTD,2000014438,9772.75,#,DL1 9HN,,
Department for Transport,Department for Transport,14/11/2016,Agency Staff Costs,HSR Programme and Funding,CAPITA BUSINESS SERVICES LTD,2000014438,2882.16,#,DL1 9HN,,
Department for Transport,Department for Transport,14/11/2016,Agency Staff Costs,HSR Programme and Funding,CAPITA BUSINESS SERVICES LTD,2000014438,3194.16,#,DL1 9HN,,
Department for Transport,Department for Transport,14/11/2016,Agency Staff Costs,HSR Programme and Funding,CAPITA BUSINESS SERVICES LTD,2000014438,2113.73,#,DL1 9HN,,
Department for Transport,Department for Transport,14/11/2016,Agency Staff Costs,HSR Programme and Funding,CAPITA BUSINESS SERVICES LTD,2000014438,2113.73,#,DL1 9HN,,
Department for Transport,Department for Transport,14/11/2016,Agency Staff Costs,Group Commercial Services,CAPITA BUSINESS SERVICES LTD,2000014438,2996.88,#,DL1 9HN,,
Department for Transport,Department for Transport,14/11/2016,Agency Staff Costs,DG_Rail - Passenger Services,CAPITA BUSINESS SERVICES LTD,2000014438,2642.16,#,DL1 9HN,,
Department for Transport,Department for Transport,14/11/2016,Agency Staff Costs,HSR Programme and Funding,CAPITA BUSINESS SERVICES LTD,2000014438,3269.16,#,DL1 9HN,,
Department for Transport,Department for Transport,14/11/2016,Agency Staff Costs,HSR Programme and Funding,CAPITA BUSINESS SERVICES LTD,2000014438,3123.66,#,DL1 9HN,,
Department for Transport,Department for Transport,14/11/2016,Agency Staff Costs,"Energy, Technology and International",CAPITA BUSINESS SERVICES LTD,2000014438,7885.92,#,DL1 9HN,,
Department for Transport,Department for Transport,14/11/2016,Agency Staff Costs,HSR Programme and Funding,CAPITA BUSINESS SERVICES LTD,2000014438,2963.16,#,DL1 9HN,,
Department for Transport,Department for Transport,14/11/2016,Agency Staff Costs,DG_Rail - Passenger Services,CAPITA BUSINESS SERVICES LTD,2000014438,5459.46,#,DL1 9HN,,
Department for Transport,Department for Transport,14/11/2016,Cap Grt Pri Sec-Cos.,Local,Arun Community Transport,2000014479,33381.81,Community Transport Minibus Fund Round 1,BN18 0BD,,
Department for Transport,Department for Transport,14/11/2016,Cap Grt Pri Sec-Cos.,"Energy, Technology and International",API Electrical Limited,2000014484,3000,API Electrical Aug 16 #3000,M28 1UG,,
Department for Transport,Department for Transport,14/11/2016,Cap Grt Pri Sec-Cos.,"Energy, Technology and International",AW Matthews Heating & Plumbing Ltd,2000014487,500,A W Matthews Sep 16 #500,HR4 0EH,,
Department for Transport,Department for Transport,14/11/2016,Cap Grt Pri Sec-Cos.,"Energy, Technology and International",Blythe Electrical (Warwickshire),2000014472,1460.7,Blythe Elec Jul 16 #1460.70,B46 2JA,,
Department for Transport,Department for Transport,14/11/2016,Cap Grt Pri Sec-Cos.,"Energy, Technology and International",Blythe Electrical (Warwickshire),2000014472,4500,Blythe Elec Sep 16 #4500,B46 2JA,,
Department for Transport,Department for Transport,14/11/2016,Cap Grt Pri Sec-Cos.,"Energy, Technology and International",BMM Contracts Ltd,2000014475,5000,BMM Energy Solutions Sep 16 #5000,ML6 8NY,,
Department for Transport,Department for Transport,14/11/2016,Cap Grt Pri Sec-Cos.,"Energy, Technology and International",DDR Electrical Ltd,2000014488,500,DDR Electrical Aug 16 #500,DL8 5AS,,
Department for Transport,Department for Transport,14/11/2016,Cap Grt Pri Sec-Cos.,"Energy, Technology and International",Doyle Electrical Services Ltd,2000014474,500,Doyle Elec Sep 16 #500,IP5 3RY,,
Department for Transport,Department for Transport,14/11/2016,Cap Grt Pri Sec-Cos.,"Energy, Technology and International",Earth Electrical (Southern) Ltd,2000014473,13500,Earth Electrical Sep 16 #13500,GU14 8DS,,
Department for Transport,Department for Transport,14/11/2016,Cap Grt Pri Sec-Cos.,HSR Programme and Funding,Eversheds LLP,2000014466,922500,#,CF10 5BT,,
Department for Transport,Department for Transport,14/11/2016,Cap Grt Pri Sec-Cos.,HSR Programme and Funding,Eversheds LLP,2000014466,355000,#,CF10 5BT,,
Department for Transport,Department for Transport,14/11/2016,Cap Grt Pri Sec-Cos.,HSR Programme and Funding,Eversheds LLP,2000014466,3625000,#,CF10 5BT,,
Department for Transport,Department for Transport,14/11/2016,Cap Grt Pri Sec-Cos.,"Energy, Technology and International",Firehawk Ltd,2000014470,500,FIREHAWK Sep 2016 #500,M35 0UF,,
Department for Transport,Department for Transport,14/11/2016,Cap Grt Pri Sec-Cos.,"Energy, Technology and International",Fuel Cell Systems Ltd,2000014482,85576.07,Payment to FCS as part of HRS Grants Scheme,RG17 0YU,,
Department for Transport,Department for Transport,14/11/2016,Cap Grt Pri Sec-Cos.,"Energy, Technology and International",Jorro Ltd,2000014469,8500,Jorro Aug 2016 #8500,FK8 1JR,,
Department for Transport,Department for Transport,14/11/2016,Cap Grt Pri Sec-Cos.,"Energy, Technology and International",Jorro Ltd,2000014469,9500,Jorro Sep 2016 #9500,FK8 1JR,,
Department for Transport,Department for Transport,14/11/2016,Cap Grt Pri Sec-Cos.,"Energy, Technology and International",Link Solar Limited,2000014485,1000,Link Solar Sep 16 #1000,GU10 4LB,,
Department for Transport,Department for Transport,14/11/2016,Cap Grt Pri Sec-Cos.,Rail NDPB's,Network Rail Infstrcture (Treasury),2000014432,125000000,#,NW1 2DN,,
Department for Transport,Department for Transport,14/11/2016,Cap Grt Pri Sec-Cos.,Rail NDPB's,Network Rail Infstrcture (Treasury),2000014432,300000000,#,NW1 2DN,,
Department for Transport,Department for Transport,14/11/2016,Cap Grt Pri Sec-Cos.,Rail NDPB's,Network Rail Infstrcture (Treasury),2000014432,125000000,Network Rail Loan - UR093,NW1 2DN,,
Department for Transport,Department for Transport,14/11/2016,Cap Grt Pri Sec-Cos.,"Energy, Technology and International",Pod Point,2000014462,71000,POD Point Aug 16 #71000,E1 1EE,,
Department for Transport,Department for Transport,14/11/2016,Cap Grt Pri Sec-Cos.,"Energy, Technology and International",Power Pac Ltd,2000014486,500,Power Pac Aug 16 #500,LE67 5DJ,,
Department for Transport,Department for Transport,14/11/2016,Cap Grt Pri Sec-Cos.,"Energy, Technology and International",Puragen,2000014468,2000,Puragen Sep 2016 #2000,DT1 3AR,,
Department for Transport,Department for Transport,14/11/2016,Cap Grt Pri Sec-Cos.,"Energy, Technology and International",Rolec Services Limited,2000014461,68000,"""ROLEC Aug 2016 #68,000""",PE20 1Q,,
Department for Transport,Department for Transport,14/11/2016,Cap Grt Pri Sec-Cos.,"Energy, Technology and International",Schneider Electric,2000014463,13000,SCHNEIDER ELEC Aug 16 #13000,W1W 6XX,,
Department for Transport,Department for Transport,14/11/2016,Cap Grt Pri Sec-Cos.,"Energy, Technology and International",SRG Electrical Ltd,2000014478,4000,SRG Elec Sep 16 #4000,CR8 1HA,,
Department for Transport,Department for Transport,14/11/2016,Cap Grt Pri Sec-Cos.,"Energy, Technology and International",WB Electrical Services Ltd,2000014476,1000,WB Elec Aug 16 #1000,ML9 2EX,,
Department for Transport,Department for Transport,14/11/2016,Cap Grt Pri Sec-Cos.,"Energy, Technology and International",WB Electrical Services Ltd,2000014476,3500,WB Elec Sep 16 #3500,ML9 2EX,,
Department for Transport,Department for Transport,14/11/2016,Cars Maintenance,"Road Safety, Standards and Services",Intelligent Security Ltd,2000014480,39064,#,SG17 5JU,,
Department for Transport,Department for Transport,14/11/2016,Cars Maintenance,"Road Safety, Standards and Services",Intelligent Security Ltd,2000014480,41664,#,SG17 5JU,,
Department for Transport,Department for Transport,14/11/2016,Cars Maintenance,"Road Safety, Standards and Services",Intelligent Security Ltd,2000014480,23440,#,SG17 5JU,,
Department for Transport,Department for Transport,14/11/2016,Computer equipment,Air Accident Investigation Branch,Software Box Ltd,2000014436,2860.26,#,YO61 1ET,,
Department for Transport,Department for Transport,14/11/2016,Grt Aid to NDPBs,Rail NDPB's,Network Rail Istre (Capital Grants),2000014452,301237923.7,NR November Grant Payment,NW1 2DN,,
Department for Transport,Department for Transport,14/11/2016,IT Ser Running Costs,Group Communications,RACKSPACE LTD,2000014446,1105.14,#,UB3 4AZ,,
Department for Transport,Department for Transport,14/11/2016,IT Ser Running Costs,Group Communications,RACKSPACE LTD,2000014446,941.63,#,UB3 4AZ,,
Department for Transport,Department for Transport,14/11/2016,Legal Consultancy,Major Projects,DLA PIPER UK LLP,2000014441,10584.12,Legal Fees,M2 3DL,,
Department for Transport,Department for Transport,14/11/2016,Legal Consultancy,"Energy, Technology and International",Government Legal Department,2000014437,198.6,#,WC2B 4TS,,
Department for Transport,Department for Transport,14/11/2016,Legal Consultancy,HSR Phase 1 Sponsor,Counsel,2000014454,28896,#,WC2A 1DD,,
Department for Transport,Department for Transport,14/11/2016,Legal Consultancy,HSR Phase 1 Sponsor,Counsel,2000014454,21168,#,WC2A 1DD,,
Department for Transport,Department for Transport,14/11/2016,Market&Comm Consul,Airport Capacity,Office for Public Management Ltd,2000014489,3990,#,WC1X 8XG,,
Department for Transport,Department for Transport,14/11/2016,Market&Comm Consul,Airport Capacity,Office for Public Management Ltd,2000014489,4200,#,WC1X 8XG,,
Department for Transport,Department for Transport,14/11/2016,Rent - L&B (non-PFI),Maritime,International Oil Pollutions,2000014443,68800,#,SE1 7SR,,
Department for Transport,Department for Transport,14/11/2016,Research,"Road Safety, Standards and Services",ATKINS LTD (TRANSPORT PLANNING),2000014440,2100,#,WR5 1TX,,
Department for Transport,Department for Transport,14/11/2016,Research,Local,NATIONAL CENTRE FOR SOCIAL RESEARCH,2000014445,4000,National Travel Survey,EC1V 0AX,,
Department for Transport,Department for Transport,14/11/2016,Research,Local,NATIONAL CENTRE FOR SOCIAL RESEARCH,2000014445,20131,National Travel Survey,EC1V 0AX,,
Department for Transport,Department for Transport,14/11/2016,Research,Local,NATIONAL CENTRE FOR SOCIAL RESEARCH,2000014445,10488,National Travel Survey,EC1V 0AX,,
Department for Transport,Department for Transport,14/11/2016,Research,Aviation,TNS UK LTD,2000014448,91620.4,#,W5 1UA,,
Department for Transport,Department for Transport,14/11/2016,Security,"Road Safety, Standards and Services",Info-Assure Ltd,2000014477,3982.5,#,GU14 0LX,,
Department for Transport,Department for Transport,14/11/2016,Support Services,Air Accident Investigation Branch,Health & Safety Laboratory,2000014442,5225,#,SK17 9JN,,
Department for Transport,Department for Transport,14/11/2016,Support Services,DG_RAIL - Network Services,HOME OFFICE SHARED SERVICE CENTRE,2000014433,4352.59,#,NP20 9BB,,
Department for Transport,Department for Transport,14/11/2016,Support Services,"Energy, Technology and International",Government Legal Department,2000014437,300,#,WC2B 4TS,,
Department for Transport,Department for Transport,14/11/2016,Telecom Equipment,Group Commercial Services,Azzurri Communications Ltd,2000014457,5088,Azzurri Maintenance - 10.10.2016 - 09.10.2017,BB11 5FH,,
Department for Transport,Department for Transport,14/11/2016,Telephone charges,Group Commercial Services,Vodafone Ltd,2000014435,5203.09,#,M22 5RR,,
Department for Transport,Department for Transport,14/11/2016,Trade Plate Expenses,Local,Minibus Options Limited,2000014483,29007.44,Community Transport Minibus Fund Round 1,SK23 7LY,,
Department for Transport,Department for Transport,14/11/2016,Trade Plate Expenses,Local,Minibus Options Limited,2000014483,36441.71,Community Transport Minibus Fund Round 1,SK23 7LY,,
Department for Transport,Department for Transport,14/11/2016,Trade Plate Expenses,Local,Minibus Options Limited,2000014483,28785.53,Community Transport Minibus Fund Round 1,SK23 7LY,,
Department for Transport,Department for Transport,14/11/2016,Trade Plate Expenses,Local,Minibus Options Limited,2000014483,26171.82,Community Transport Minibus Fund Round 1,SK23 7LY,,
Department for Transport,Department for Transport,14/11/2016,Trade Plate Expenses,Local,Minibus Options Limited,2000014483,36683.35,Community Transport Minibus Fund Round 1,SK23 7LY,,
Department for Transport,Department for Transport,14/11/2016,Trade Plate Expenses,Local,Minibus Options Limited,2000014483,24502.5,Community Transport Minibus Fund Round 1,SK23 7LY,,
Department for Transport,Department for Transport,14/11/2016,Trade Plate Expenses,Local,Minibus Options Limited,2000014483,24502.5,Community Transport Minibus Fund Round 1,SK23 7LY,,
Department for Transport,Department for Transport,14/11/2016,Training,DG_RAIL - Rail Corporate Centre,TMS Development International Ltd,2000014471,2086.2,#,YO24 4FL,,
Department for Transport,Department for Transport,14/11/2016,Transport  Consult,DG_Rail - Passenger Services,Steer Davies Gleaves (Bikeability),2000014458,163173.52,#,SE1 9PD,,
Department for Transport,Department for Transport,15/11/2016,Agency Staff Costs,Group Commercial Services,BROOK STREET (UK) LIMITED,2000014716,618.73,#,AL1 4JB,,
Department for Transport,Department for Transport,15/11/2016,Agency Staff Costs,Local,BROOK STREET (UK) LIMITED,2000014716,1443.37,Agency Staff Costs ,AL1 4JB,,
Department for Transport,Department for Transport,15/11/2016,Agency Staff Costs,Local,BROOK STREET (UK) LIMITED,2000014716,1327.04,Agency Staff Costs ,AL1 4JB,,
Department for Transport,Department for Transport,15/11/2016,Agency Staff Costs,Marine Accident Investigation Branch,BROOK STREET (UK) LIMITED,2000014716,851.89,#,AL1 4JB,,
Department for Transport,Department for Transport,15/11/2016,Agency Staff Costs,Marine Accident Investigation Branch,BROOK STREET (UK) LIMITED,2000014716,611.23,#,AL1 4JB,,
Department for Transport,Department for Transport,15/11/2016,Agency Staff Costs,Marine Accident Investigation Branch,BROOK STREET (UK) LIMITED,2000014716,862.21,#,AL1 4JB,,
Department for Transport,Department for Transport,15/11/2016,Cap Grt Loc Auth,Local,BEDFORD BC,2000014718,950000,Local Highways Maint Challenge Fund November 2016,MK40 1SJ,,
Department for Transport,Department for Transport,15/11/2016,Cap Grt Loc Auth,Local,BLACKPOOL BC,2000014692,300000,Local Highways Maint Challenge Fund November 2016,FY1 1LZ,,
Department for Transport,Department for Transport,15/11/2016,Cap Grt Loc Auth,Local,BOLTON MBC,2000014690,1850000,Local Highways Maint Challenge Fund November 2016,BL1 1RX,,
Department for Transport,Department for Transport,15/11/2016,Cap Grt Loc Auth,Local,BRISTOL CITY COUNCIL,2000014693,2717000,Local Highways Maint Challenge Fund November 2016,BS99 7BL,,
Department for Transport,Department for Transport,15/11/2016,Cap Grt Loc Auth,Local,DARLINGTON BC,2000014694,500000,Local Highways Maint Challenge Fund November 2016,TS19 1JA,,
Department for Transport,Department for Transport,15/11/2016,Cap Grt Loc Auth,Local,DEVON COUNTY COUNCIL,2000014695,1100000,Local Highways Maint Challenge Fund November 2016,EX2 4QJ,,
Department for Transport,Department for Transport,15/11/2016,Cap Grt Loc Auth,Local,GLOUCESTERSHIRE COUNTY COUNCIL,2000014691,1200000,Local Highways Maint Challenge Fund November 2016,GL1 2TJ,,
Department for Transport,Department for Transport,15/11/2016,Cap Grt Loc Auth,Local,Lancashire County Council,2000014696,1500000,Local Highways Maint Challenge Fund November 2016,PR1 0LD,,
Department for Transport,Department for Transport,15/11/2016,Cap Grt Loc Auth,Local,LIVERPOOL CITY COUNCIL,2000014719,3700000,Local Highways Maint Challenge Fund November 2016,L2 2DH,,
Department for Transport,Department for Transport,15/11/2016,Cap Grt Loc Auth,Local,MANCHESTER CITY COUNCIL,2000014702,1500000,Local Highways Maint Challenge Fund November 2016,M60 2LA,,
Department for Transport,Department for Transport,15/11/2016,Cap Grt Loc Auth,Local,Newcastle City Council,2000014720,950000,Local Highways Maint Challenge Fund November 2016,NE1 8QH,,
Department for Transport,Department for Transport,15/11/2016,Cap Grt Loc Auth,Local,NORFOLK COUNTY COUNCIL,2000014698,850000,Local Highways Maint Challenge Fund November 2016,NR1 2UG,,
Department for Transport,Department for Transport,15/11/2016,Cap Grt Loc Auth,Local,Northumberland County Council,2000014721,950000,Local Highways Maint Challenge Fund November 2016,NE61 2EF,,
Department for Transport,Department for Transport,15/11/2016,Cap Grt Loc Auth,Local,PLYMOUTH CITY COUNCIL,2000014697,500000,Local Highways Maint Challenge Fund November 2016,PL1 2AA,,
Department for Transport,Department for Transport,15/11/2016,Cap Grt Loc Auth,Local,SOUTH GLOUCESTERSHIRE COUNCIL,2000014699,1500000,Local Highways Maint Challenge Fund November 2016,BS15 9DW,,
Department for Transport,Department for Transport,15/11/2016,Cap Grt Loc Auth,Local,SOUTHEND-ON-SEA BC,2000014722,850000,Local Highways Maint Challenge Fund November 2016,SS2 6AN,,
Department for Transport,Department for Transport,15/11/2016,Cap Grt Loc Auth,Local,Tameside Metropolitan Borough,2000014700,550000,Local Highways Maint Challenge Fund November 2016,SK15 1ST,,
Department for Transport,Department for Transport,15/11/2016,Cap Grt Loc Auth,Local,WEST BERKSHIRE DC,2000014701,650000,Local Highways Maint Challenge Fund November 2016,RG14 2AF,,
Department for Transport,Department for Transport,15/11/2016,Cap Grt Loc Auth,Local,West Midlands Combined Authority,2000014724,4500000,Local Highways Maint Challenge Fund November 2016,B19 3SD,,
Department for Transport,Department for Transport,15/11/2016,Cap Grt Loc Auth,Local,Wirral Council,2000014727,950000,Local Highways Maint Challenge Fund November 2016,CH41 6BU,,
Department for Transport,Department for Transport,15/11/2016,Cap Grt Loc Auth,DG_RAIL - Network Services,SOUTH YORKSHIRE PTE,2000014725,5023.27,SL0071457-Claim52,S1 2BQ,,
Department for Transport,Department for Transport,15/11/2016,Cap Grt Pri Sec-Cos.,"Energy, Technology and International",Audi UK,2000014740,70000,"""PICG Audi October 2016 #70,000""",MK14 5AN,,
Department for Transport,Department for Transport,15/11/2016,Cap Grt Pri Sec-Cos.,"Energy, Technology and International",CITROEN AUTOMOBILES UK LTD,2000014728,25204.92,"""PICG Citroen October 2016 #25,204.92""",CV3 1ND,,
Department for Transport,Department for Transport,15/11/2016,Cap Grt Pri Sec-Cos.,HSR Programme and Funding,Eversheds LLP,2000014737,266500,#,CF10 5BT,,
Department for Transport,Department for Transport,15/11/2016,Cap Grt Pri Sec-Cos.,"Energy, Technology and International",Hyundai Motor UK Limited,2000014746,45000,"""PICG Hyundai October 2016 #45,000""",HP11 1HE,,
Department for Transport,Department for Transport,15/11/2016,Cap Grt Pri Sec-Cos.,"Energy, Technology and International",Kia Motors (UK) Ltd,2000014742,224000,"""PICG KIA October 2016 #224,000""",KT12 1FJ,,
Department for Transport,Department for Transport,15/11/2016,Cap Grt Pri Sec-Cos.,"Energy, Technology and International",Mahindra International UK Limited,2000014745,9000,"""PICG Mahindra October 2016 #9,000""",W4 5PY,,
Department for Transport,Department for Transport,15/11/2016,Cap Grt Pri Sec-Cos.,Rail NDPB's,Network Rail Infstrcture (Treasury),2000014748,200000000,Ur094,NW1 2DN,,
Department for Transport,Department for Transport,15/11/2016,Cap Grt Pri Sec-Cos.,"Energy, Technology and International",PEUGEOT MOTOR COMPANY,2000014729,73755,"""PICG Peugeot October 2016 #73,755""",CV3 1ND,,
Department for Transport,Department for Transport,15/11/2016,Cap Grt Pri Sec-Cos.,"Energy, Technology and International",RENAULT,2000014730,408085.29,"""PICG Renault October 2016 #408,085.29""",WD3 9YS,,
Department for Transport,Department for Transport,15/11/2016,Cap Grt Pri Sec-Cos.,"Energy, Technology and International",Volkswagen UK,2000014739,438500,"""PICG Volkswagen September 2016 #438,500""",MK14 5AN,,
Department for Transport,Department for Transport,15/11/2016,Cap Grt Pri Sec-Cos.,"Energy, Technology and International",Volkswagen UK,2000014739,312000,"""PICG Volkswagen August 2016 #312,000""",MK14 5AN,,
Department for Transport,Department for Transport,15/11/2016,Cap Grt Pri Sec-Cos.,"Energy, Technology and International",Volvo Car UK Limited,2000014735,477500,"""PICG Volvo September 2016 #477,500""",SL6 4FL,,
Department for Transport,Department for Transport,15/11/2016,Cap Grt Pri Sec-Cos.,"Energy, Technology and International",York Teaching Hospital NHS FT,2000014743,29416.35,"""York Teaching NHS Chargepoints #29,416.35""",YO30 4RY,,
Department for Transport,Department for Transport,15/11/2016,Cars Maintenance,"Road Safety, Standards and Services",Stapletons Tyre Services,2000014733,632.2,#,SG6 2HU,,
Department for Transport,Department for Transport,15/11/2016,CurrGrt Las in AEF/A,"Energy, Technology and International",WEST BERKSHIRE DC,2000014701,1635.58,"""ULEVR West berks DC Cable/Tel/Sign #3,798.74""",RG14 2AF,,
Department for Transport,Department for Transport,15/11/2016,CurrGrt LAs out AEF/,"Energy, Technology and International",York Teaching Hospital NHS FT,2000014743,27608.31,"""York Teaching NHS 1st Yr VL #27,608.31""",YO30 4RY,,
Department for Transport,Department for Transport,15/11/2016,CurrGrtPriSec-P&NPIS,"Energy, Technology and International",SMMT,2000014734,308420.19,SMMT Q3 (to Sept) ULEV Grant payment,SW1P 2BN,,
Department for Transport,Department for Transport,15/11/2016,IT Ser Running Costs,"Energy, Technology and International",TRIAD GROUP PLC,2000014713,933.4,#,GU7 1XE,,
Department for Transport,Department for Transport,15/11/2016,Research,Transport Security Co-ordination & Response,DEFENCE SCIENCE & TECHNOLOGY,2000014709,776584,#,PO14 9HL,,
Department for Transport,Department for Transport,15/11/2016,Research,Transport Security Co-ordination & Response,DEFENCE SCIENCE & TECHNOLOGY,2000014709,-776584,#,PO14 9HL,,
Department for Transport,Department for Transport,15/11/2016,Research,Transport Security Co-ordination & Response,DEFENCE SCIENCE & TECHNOLOGY,2000014709,776548,#,PO14 9HL,,
Department for Transport,Department for Transport,15/11/2016,Secondments,Principal Priv. Secretary & Head of Private Office,Cabinet Office,2000014703,7494.46,#,FY5 3TA,,
Department for Transport,Department for Transport,15/11/2016,Small Software,Group Commercial Services,Messageware Incorporated,2000014704,16005,#,L5N 2W3,,
Department for Transport,Department for Transport,15/11/2016,Small Software,Group Commercial Services,Comparex UK Ltd,2000014741,48959.23,#,HA1 3EL,,
Department for Transport,Department for Transport,15/11/2016,Small Software,Group Commercial Services,Comparex UK Ltd,2000014741,964.22,#,HA1 3EL,,
Department for Transport,Department for Transport,15/11/2016,Small Software,Group Commercial Services,Comparex UK Ltd,2000014741,-4338.43,#,HA1 3EL,,
Department for Transport,Department for Transport,15/11/2016,Subsidies Private Se,Local,1st Bus Stop Minibus,2000014638,16931.22,1st BUS STOP MINIBUS,DA12 2RU,,
Department for Transport,Department for Transport,15/11/2016,Subsidies Private Se,Local,A LYLES & SON,2000014647,4165.45,A LYLES & SON,WF17 6LA,,
Department for Transport,Department for Transport,15/11/2016,Subsidies Private Se,Local,A P L TRAVEL,2000014502,4297.78,APL TRAVEL LTD,SN16 9ES,,
Department for Transport,Department for Transport,15/11/2016,Subsidies Private Se,Local,ABUS LTD,2000014503,14280.41,ABUS Ltd,BS4 3NL,,
Department for Transport,Department for Transport,15/11/2016,Subsidies Private Se,Local,Amber Coaches Ltd,2000014653,7998.41,AMBER COACHES LTD,SS6 9RL,,
Department for Transport,Department for Transport,15/11/2016,Subsidies Private Se,Local,ANGLIAN BUS LTD,2000014504,34043.94,ANGLIAN BUS LTD,NR34 7TH,,
Department for Transport,Department for Transport,15/11/2016,Subsidies Private Se,Local,AOT TRAVEL,2000014505,5387.76,AOT TRAVEL,NG5 5DX,,
Department for Transport,Department for Transport,15/11/2016,Subsidies Private Se,Local,ARRIVA CYMRU LTD,2000014506,43492.87,Arriva Buses Wales (Cross Border),L9 5AE,,
Department for Transport,Department for Transport,15/11/2016,Subsidies Private Se,Local,Arriva Durham County,2000014507,725142.71,ARRIVA DURHAM COUNTY,SR3 3XP,,
Department for Transport,Department for Transport,15/11/2016,Subsidies Private Se,Local,Arriva Durham County,2000014507,419349.29,ARRIVA NORTHUMBRIA LTD,SR3 3XP,,
Department for Transport,Department for Transport,15/11/2016,Subsidies Private Se,Local,ARRIVA MERSEYSIDE LTD,2000014508,1322091.91,ARRIVA MERSEYSIDE LIMITED,L9 5AE,,
Department for Transport,Department for Transport,15/11/2016,Subsidies Private Se,Local,Arriva Midlands Ltd,2000014509,492687.3,ARRIVA MIDLANDS LTD,LE4 8PH,,
Department for Transport,Department for Transport,15/11/2016,Subsidies Private Se,Local,Arriva Midlands North Ltd,2000014590,579900.86,ARRIVA MIDLANDS NORTH LTD,LE4 8PH,,
Department for Transport,Department for Transport,15/11/2016,Subsidies Private Se,Local,ARRIVA NORTH WEST LTD,2000014510,371458.45,ARRIVA NORTH WEST LTD,L9 5AE,,
Department for Transport,Department for Transport,15/11/2016,Subsidies Private Se,Local,Arriva Thameside,2000014594,828070.8,ARRIVA THAMESIDE,ME15 6TX,,
Department for Transport,Department for Transport,15/11/2016,Subsidies Private Se,Local,Arriva The Shires,2000014511,677163.12,ARRIVA THE SHIRES,LU4 8DS,,
Department for Transport,Department for Transport,15/11/2016,Subsidies Private Se,Local,ARRIVA YORKSHIRE LTD,2000014512,724756.43,ARRIVA YORKSHIRE LTD,WF1 5JX,,
Department for Transport,Department for Transport,15/11/2016,Subsidies Private Se,Local,B L TRAVEL,2000014514,12335.2,B L TRAVEL,WF9 5JB,,
Department for Transport,Department for Transport,15/11/2016,Subsidies Private Se,Local,B P BROWN TRAVEL LTD,2000014644,2619.35,Select Bus Service,ST19 5TA,,
Department for Transport,Department for Transport,15/11/2016,Subsidies Private Se,Local,BANGA BUSES,2000014634,12888.82,BANGA BUSES,WV2 1DT,,
Department for Transport,Department for Transport,15/11/2016,Subsidies Private Se,Local,BARTON BUSES,2000014515,194508.98,BARTON BUSES LTD,DE75 7BG,,
Department for Transport,Department for Transport,15/11/2016,Subsidies Private Se,Local,BARTON BUSES,2000014515,16017,BARTON BUSES LTD - BBA,DE75 7BG,,
Department for Transport,Department for Transport,15/11/2016,Subsidies Private Se,Local,Bath Bus Company Ltd,2000014516,26040.43,BATH BUS COMPANY LTD,BA1 1LF,,
Department for Transport,Department for Transport,15/11/2016,Subsidies Private Se,Local,Beestons (Hadleigh) Limited,2000014517,17374.23,BEESTONS (HADLEIGH) LTD,IP7 6BG,,
Department for Transport,Department for Transport,15/11/2016,Subsidies Private Se,Local,Berry's Coaches (Taunton) Ltd,2000014518,9025.63,Berry's Coaches (Taunton) Ltd,TA2 6BX,,
Department for Transport,Department for Transport,15/11/2016,Subsidies Private Se,Local,Bexhill Community Bus Ltd,2000014519,537.87,BEXHILL COMMUNITY BUS LTD,TN39 3JY,,
Department for Transport,Department for Transport,15/11/2016,Subsidies Private Se,Local,Borderbus Ltd,2000014655,34207.98,BORDERBUS LTD,NR34 7TQ,,
Department for Transport,Department for Transport,15/11/2016,Subsidies Private Se,Local,BRECKS INTERNATIONAL,2000014520,1269.75,BRECKS INTERNATIONAL,S65 3BS,,
Department for Transport,Department for Transport,15/11/2016,Subsidies Private Se,Local,Brighton & Hove Bus & Coach Co Ltd,2000014521,740662.01,BRIGHTON AND HOVE BUS AND COACH CO LTD,RH10 9UA,,
Department for Transport,Department for Transport,15/11/2016,Subsidies Private Se,Local,Britannia Bus Ltd t/a Meridian,2000014659,4618.66,Britannia Bus Ltd t/a Meridian,NN5 7UW,,
Department for Transport,Department for Transport,15/11/2016,Subsidies Private Se,Local,BURNLEY & PENDLE TRAVEL LTD,2000014523,167610.15,Burnley & Pendle Travel Limited,BD21 2JX,,
Department for Transport,Department for Transport,15/11/2016,Subsidies Private Se,Local,Centaur Overland Travel Ltd,2000014648,25161.32,Centaur Overland Travel Ltd,DA1 4AL,,
Department for Transport,Department for Transport,15/11/2016,Subsidies Private Se,Local,Centrebus Ltd,2000014583,39039.06,Centrebus East Ltd,LE4 9HR,,
Department for Transport,Department for Transport,15/11/2016,Subsidies Private Se,Local,Centrebus Ltd,2000014583,118090.48,CENTREBUS LTD,LE4 9HR,,
Department for Transport,Department for Transport,15/11/2016,Subsidies Private Se,Local,CHELTENHAM & GLOUCESTER OMNIBUS,2000014525,504529.63,Cheltenham & Gloucester Omnibus Co Ltd,SK3 0DU,,
Department for Transport,Department for Transport,15/11/2016,Subsidies Private Se,Local,CITY OF CHICHESTER COACHES LTD,2000014650,1719.97,City of Chichester Coaches Ltd,RH12 4TB,,
Department for Transport,Department for Transport,15/11/2016,Subsidies Private Se,Local,COACH SERVICES LTD,2000014526,25081.38,Coach Services Ltd,IP24 1HZ,,
Department for Transport,Department for Transport,15/11/2016,Subsidies Private Se,Local,COASTAL & COUNTRY COACHES,2000014527,1455.46,Coastal and Country Coaches Ltd,YO22 4PU,,
Department for Transport,Department for Transport,15/11/2016,Subsidies Private Se,Local,Coastal Red Ltd T/A Lynx,2000014658,15366.85,Coastal Red Ltd t/a Lynx,PE34 3HN,,
Department for Transport,Department for Transport,15/11/2016,Subsidies Private Se,Local,COMPASS TRAVEL (SUSSEX) LTD,2000014529,60710.34,COMPASS TRAVEL (SUSSEX) LTD,BN13 3RB,,
Department for Transport,Department for Transport,15/11/2016,Subsidies Private Se,Local,COURTNEY COACHES LTD,2000014530,42439.53,COURTNEY COACHES LTD,RG40 4QQ,,
Department for Transport,Department for Transport,15/11/2016,Subsidies Private Se,Local,CROSSVILLE MOTOR SERVICES LIMITED,2000014646,20030.52,Crosville Motor Services Ltd,BS24 9AD,,
Department for Transport,Department for Transport,15/11/2016,Subsidies Private Se,Local,CRUISERS LTD,2000014531,1992.11,Cruisers Ltd,RH1 4DP,,
Department for Transport,Department for Transport,15/11/2016,Subsidies Private Se,Local,Cuckmere Community Bus,2000014532,2572.35,CUCKMERE COMMUNITY BUS,BN20 0JR,,
Department for Transport,Department for Transport,15/11/2016,Subsidies Private Se,Local,CUMFYBUS LTD,2000014533,21191.33,CUMFYBUS LTD,PR9 7PL,,
Department for Transport,Department for Transport,15/11/2016,Subsidies Private Se,Local,D & FD ATKINSON T/A,2000014513,830.05,D & FD ATKINSON t/a ATKINSON COACHES,HG4 3SH,,
Department for Transport,Department for Transport,15/11/2016,Subsidies Private Se,Local,D JONES & SON,2000014534,2172.84,D Jones & Sons,LL14 1TP,,
Department for Transport,Department for Transport,15/11/2016,Subsidies Private Se,Local,Diamond Bus Ltd,2000014536,315701.26,DIAMOND BUS LTD,B69 3HW,,
Department for Transport,Department for Transport,15/11/2016,Subsidies Private Se,Local,EAST MIDLAND MOTOR SERVICE,2000014537,196147.44,Stagecoach Yorkshire,SK3 0DU,,
Department for Transport,Department for Transport,15/11/2016,Subsidies Private Se,Local,EAST SURREY RURAL TRANSPORT P'SHIP,2000014538,1388.08,East Surrey Rural Transport Partnership,RM8 0BT,,
Department for Transport,Department for Transport,15/11/2016,Subsidies Private Se,Local,EAST YORKS MOTOR SERVICES LTD,2000014539,383029.64,EAST YORKS MOTOR SERVICES LTD,HU3 2RS,,
Department for Transport,Department for Transport,15/11/2016,Subsidies Private Se,Local,F HUNT (COACH HIRE) LTD,2000014541,2842,F Hunt Coach Hire Ltd,LN13 9JB,,
Department for Transport,Department for Transport,15/11/2016,Subsidies Private Se,Local,FARESAVER BUSES,2000014559,63410.35,FARESAVER BUSES,SN14 6NQ,,
Department for Transport,Department for Transport,15/11/2016,Subsidies Private Se,Local,FELLRUNNER VILLAGE BUS LTD,2000014542,570.83,Fellrunner Village Bus Ltd,CA10 1JQ,,
Department for Transport,Department for Transport,15/11/2016,Subsidies Private Se,Local,First Badgerline,2000014543,556885.06,First Bristol Buses Ltd t/a Badgerline,SA5 7BN,,
Department for Transport,Department for Transport,15/11/2016,Subsidies Private Se,Local,First Badgerline,2000014543,654282.94,FIRST BRISTOL BUSES LTD T/A CITY LINE,SA5 7BN,,
Department for Transport,Department for Transport,15/11/2016,Subsidies Private Se,Local,First Beeline Buses Ltd,2000014544,152079.83,FIRST BEELINE BUSES LTD,SA5 7BN,,
Department for Transport,Department for Transport,15/11/2016,Subsidies Private Se,Local,FIRST COACHES,2000014557,31091.96,First Coaches,LE4 0DA,,
Department for Transport,Department for Transport,15/11/2016,Subsidies Private Se,Local,First Devon & Cornwall Ltd,2000014545,234452.87,FIRST DEVON & CORNWALL LTD,SA5 7BN,,
Department for Transport,Department for Transport,15/11/2016,Subsidies Private Se,Local,FIRST EASTERN COUNTIES BUSES LTD,2000014546,635926.16,FIRST EASTERN COUNTIES BUSES LTD,LE4 0DA,,
Department for Transport,Department for Transport,15/11/2016,Subsidies Private Se,Local,FIRST ESSEX BUSES,2000014547,712372.21,FIRST ESSEX BUSES LTD,LE4 0DA,,
Department for Transport,Department for Transport,15/11/2016,Subsidies Private Se,Local,First Hampshire & Dorset Ltd,2000014548,137687.53,FIRST HAMPSHIRE & DORSET LTD,SA5 7BN,,
Department for Transport,Department for Transport,15/11/2016,Subsidies Private Se,Local,First Hampshire & Dorset Ltd,2000014550,162819.35,FIRST SOUTHAMPTON,SA5 7BN,,
Department for Transport,Department for Transport,15/11/2016,Subsidies Private Se,Local,First Leeds,2000014551,1917743.25,FIRST LEEDS,LS10 1PL,,
Department for Transport,Department for Transport,15/11/2016,Subsidies Private Se,Local,First Manchester Ltd Oldham,2000014552,1313899.48,First Manchester Ltd (Oldham),OL1 3TR,,
Department for Transport,Department for Transport,15/11/2016,Subsidies Private Se,Local,FIRST PMT LTD,2000014554,318411.32,FIRST POTTERIES LIMITED,LE4 0DA,,
Department for Transport,Department for Transport,15/11/2016,Subsidies Private Se,Local,First Provincial,2000014549,271385.34,FIRST PROVINCIAL,SA5 7BN,,
Department for Transport,Department for Transport,15/11/2016,Subsidies Private Se,Local,First Somerset & Avon Ltd,2000014555,168873.81,FIRST SOMERSET & AVON,SA5 7BN,,
Department for Transport,Department for Transport,15/11/2016,Subsidies Private Se,Local,FIRST SOUTH YORKSHIRE LTD,2000014556,640544.36,FIRST SOUTH YORKSHIRE LTD,LS10 1PL,,
Department for Transport,Department for Transport,15/11/2016,Subsidies Private Se,Local,FIRST WYVERN,2000014553,121630.88,FIRST MIDLAND RED BUSES LTD,LE4 0DA,,
Department for Transport,Department for Transport,15/11/2016,Subsidies Private Se,Local,FIRST YORK (RIDER YORK) LTD,2000014558,175555.17,FIRST YORK (Rider York) Limited,LS10 1PL,,
Department for Transport,Department for Transport,15/11/2016,Subsidies Private Se,Local,G Abbott & Sons,2000014561,3598.79,G ABBOTT & SONS,DL7 9RZ,,
Department for Transport,Department for Transport,15/11/2016,Subsidies Private Se,Local,GO AHEAD NORTHERN,2000014562,860625.56,Go North East,NE8 2UA,,
Department for Transport,Department for Transport,15/11/2016,Subsidies Private Se,Local,GO AHEAD NORTHERN,2000014562,707578.48,GO NORTHERN,NE8 2UA,,
Department for Transport,Department for Transport,15/11/2016,Subsidies Private Se,Local,GO RIDE COMMUNITY,2000014643,2515.61,Go Ride Community Interest Company,OX14 3UY,,
Department for Transport,Department for Transport,15/11/2016,Subsidies Private Se,Local,GRAND PRIX SERVICES,2000014564,1531.86,GRAND PRIX SERVICES,CA17 4AY,,
Department for Transport,Department for Transport,15/11/2016,Subsidies Private Se,Local,GRANT PALMER LIMITED,2000014565,27256.23,Grant Palmer Limited,MK45 5BP,,
Department for Transport,Department for Transport,15/11/2016,Subsidies Private Se,Local,Grayline Coaches,2000014566,17169.52,GRAYLINE COACHES,OX25 1TL,,
Department for Transport,Department for Transport,15/11/2016,Subsidies Private Se,Local,H HULLEY & SONS LTD,2000014571,9950.69,H Hulley & Sons LTD T/A Hulleys Of Baslow,DE45 1RP,,
Department for Transport,Department for Transport,15/11/2016,Subsidies Private Se,Local,HALIFAX BUS CO LTD,2000014567,15739.83,HALIFAX BUS COMPANY LTD,HX6 2SB,,
Department for Transport,Department for Transport,15/11/2016,Subsidies Private Se,Local,HALTON BOROUGH TRANSPORT LTD,2000014568,72369.35,Halton Borough Transport Ltd,WA8 7AF,,
Department for Transport,Department for Transport,15/11/2016,Subsidies Private Se,Local,HARROGATE & DISTRICT TRAVEL LTD,2000014569,140205.35,Harrogate & District Travel Ltd,HG2 7NY,,
Department for Transport,Department for Transport,15/11/2016,Subsidies Private Se,Local,HARROGATE COACH TRAVEL LTD,2000014570,96717.45,HARROGATE COACH TRAVEL,YO26 8BE,,
Department for Transport,Department for Transport,15/11/2016,Subsidies Private Se,Local,HORNSBY TRAVEL SERVICES,2000014572,16485.15,HORNSBY TRAVEL SERVICES LIMITED,DN16 2NB,,
Department for Transport,Department for Transport,15/11/2016,Subsidies Private Se,Local,HUYTON TRAVEL LTD,2000014573,7782.31,Huyton Travel Ltd,L36 6AN,,
Department for Transport,Department for Transport,15/11/2016,Subsidies Private Se,Local,INVICTABUS LTD,2000014642,1316.01,Invictabus Limited,ME20 7SP,,
Department for Transport,Department for Transport,15/11/2016,Subsidies Private Se,Local,Ipswich Buses Ltd,2000014574,122092.68,Ipswich Buses Limited,IP1 2DL,,
Department for Transport,Department for Transport,15/11/2016,Subsidies Private Se,Local,IRVING OF DALSTON,2000014575,1391.16,IRVING OF DALSTON,CA5 7LB,,
Department for Transport,Department for Transport,15/11/2016,Subsidies Private Se,Local,J Dodsworth Coaches Ltd,2000014660,556.05,J Dodsworth Coaches Ltd,YO23 3QA,,
Department for Transport,Department for Transport,15/11/2016,Subsidies Private Se,Local,JACKIES COACHES,2000014577,834.65,JACKIES COACHES,GL2 7NG,,
Department for Transport,Department for Transport,15/11/2016,Subsidies Private Se,Local,KEIGHLEY & DISTRICT TRAVEL LTD,2000014578,137117.98,Keighley and District Travel Ltd,BD21 2JX,,
Department for Transport,Department for Transport,15/11/2016,Subsidies Private Se,Local,KETTLEWELL RETFORD LTD,2000014579,627.67,Kettlewell (Retford) Ltd,DN22 6LA,,
Department for Transport,Department for Transport,15/11/2016,Subsidies Private Se,Local,Kinchbus Ltd,2000014580,104264.14,KINCHBUS LTD,DE75 7BG,,
Department for Transport,Department for Transport,15/11/2016,Subsidies Private Se,Local,LANCASHIRE UNITED LTD (TRANSDEV),2000014582,177752.25,Transdev Lancashire United,BD21 2JX,,
Department for Transport,Department for Transport,15/11/2016,Subsidies Private Se,Local,MARCHANTS COACHES,2000014584,16180.13,MARCHANT'S COACHES LTD,GL50 3LB,,
Department for Transport,Department for Transport,15/11/2016,Subsidies Private Se,Local,MARSHALLS SUTTON ON TRENT,2000014585,32213.75,Marshalls of Sutton on Trent Ltd,NG23 6PF,,
Department for Transport,Department for Transport,15/11/2016,Subsidies Private Se,Local,MAS Special Engineering Ltd,2000014586,37993.25,MAS SPECIAL ENGINEERING LTD,S25 4JJ,,
Department for Transport,Department for Transport,15/11/2016,Subsidies Private Se,Local,MD Bus & Coach Ltd,2000014662,3793.92,M D Bus and Coach Ltd,WA9 2EQ,,
Department for Transport,Department for Transport,15/11/2016,Subsidies Private Se,Local,METROBUS LTD,2000014588,317477.62,Metrobus Ltd,RH10 9UA,,
Department for Transport,Department for Transport,15/11/2016,Subsidies Private Se,Local,Midland Bluebird Ltd,2000014656,4299.83,Midland Bluebird Ltd,FK5 3NJ,,
Department for Transport,Department for Transport,15/11/2016,Subsidies Private Se,Local,MIDLAND CLASSIC LTD,2000014589,100245.55,MIDLAND CLASSIC LTD,DE11 9RE,,
Department for Transport,Department for Transport,15/11/2016,Subsidies Private Se,Local,MORTONS TRAVEL LIMITED,2000014636,2576.04,MORTONS TRAVEL LTD,RG26 5AT,,
Department for Transport,Department for Transport,15/11/2016,Subsidies Private Se,Local,NATIONAL EXPRESS LTD,2000014593,520764.61,NATIONAL EXPRESS LTD,B5 6DD,,
Department for Transport,Department for Transport,15/11/2016,Subsidies Private Se,Local,NATIONAL EXPRESS LTD,2000014593,80064.75,NATIONAL EXPRESS LTD (AIRLINKS),B5 6DD,,
Department for Transport,Department for Transport,15/11/2016,Subsidies Private Se,Local,NATIONAL EXPRESS LTD,2000014593,178301.55,NATIONAL EXPRESS LTD (CAMBRIDGE COACH SERVICES),B5 6DD,,
Department for Transport,Department for Transport,15/11/2016,Subsidies Private Se,Local,Norfolk Green,2000014563,124889.79,NORFOLK GREEN,PE30 4NG,,
Department for Transport,Department for Transport,15/11/2016,Subsidies Private Se,Local,NOTTINGHAM CITY TRANSPORT LTD,2000014595,336724.81,Nottingham City Transport Ltd,N61 1GG,,
Department for Transport,Department for Transport,15/11/2016,Subsidies Private Se,Local,NOTTS & DERBY TRACTION CO LTD,2000014596,29724.63,Notts & Derby Traction Co Ltd,DE75 7BG,,
Department for Transport,Department for Transport,15/11/2016,Subsidies Private Se,Local,NU-VENTURE COACHES LTD,2000014597,5152.31,NU-VENTURE COACHES LTD,ME20 7JN,,
Department for Transport,Department for Transport,15/11/2016,Subsidies Private Se,Local,OXFORD BUS CO,2000014598,276325.02,City of Oxford Motor Sevices Ltd,OX4 6GA,,
Department for Transport,Department for Transport,15/11/2016,Subsidies Private Se,Local,Perryman Buses Ltd,2000014599,9207.96,PERRYMANS BUSES LTD,PA28 6DN,,
Department for Transport,Department for Transport,15/11/2016,Subsidies Private Se,Local,PONTEFRACT MOTORWAYS,2000014620,3899.56,STRINGERS PONTEFRACT MOTORWAYS,WF8 1PN,,
Department for Transport,Department for Transport,15/11/2016,Subsidies Private Se,Local,POWELLS BUS CO LTD,2000014600,23373.09,POWELLS BUS CO LTD,S66 8HN,,
Department for Transport,Department for Transport,15/11/2016,Subsidies Private Se,Local,R BULLOCK & CO TRANSPORT LTD,2000014601,5326.28,RALPH BULLOCK & CO (TRANSPORT) LTD,SK8 2AG,,
Department for Transport,Department for Transport,15/11/2016,Subsidies Private Se,Local,Reading Transport Ltd,2000014603,304914.38,READING TRANSPORT LIMITED,RG1 7HH,,
Department for Transport,Department for Transport,15/11/2016,Subsidies Private Se,Local,RED EAGLE *DONT USE*,2000014639,3077.33,Red Eagle,HP22 5EZ,,
Department for Transport,Department for Transport,15/11/2016,Subsidies Private Se,Local,REDLINE BUSES,2000014604,16316.25,REDLINE BUSES LTD,HP19 8DB,,
Department for Transport,Department for Transport,15/11/2016,Subsidies Private Se,Local,REGAL BUSWAYS LTD,2000014605,12210.6,REGAL BUSWAYS LTD,SS3 9WB,,
Department for Transport,Department for Transport,15/11/2016,Subsidies Private Se,Local,RELIANCE MOTOR SERVICES,2000014606,20160.85,Reliance Motor Services,YO61 1ES,,
Department for Transport,Department for Transport,15/11/2016,Subsidies Private Se,Local,ROSS TRAVEL,2000014608,13241.56,ROSS TRAVEL,WF7 5BL,,
Department for Transport,Department for Transport,15/11/2016,Subsidies Private Se,Local,SANDWELL TRAVEL LTD,2000014635,14731.48,Sandwell Travel Ltd,B71 1HA,,
Department for Transport,Department for Transport,15/11/2016,Subsidies Private Se,Local,SHERWOOD TRAVEL,2000014640,2491.45,Sherwood Travel,DN40 1QR,,
Department for Transport,Department for Transport,15/11/2016,Subsidies Private Se,Local,SHOREYS TRAVEL,2000014609,2000.81,SHOREY'S TRAVEL,MK45 2AE,,
Department for Transport,Department for Transport,15/11/2016,Subsidies Private Se,Local,SIMONDS,2000014610,17620.62,Simonds of Botesdale Ltd,IP22 4GX,,
Department for Transport,Department for Transport,15/11/2016,Subsidies Private Se,Local,STAGECOACH CAMBUS,2000014611,806204.65,Stagecoach CAMBUS- Bio diesel,SK3 0DU,,
Department for Transport,Department for Transport,15/11/2016,Subsidies Private Se,Local,Stagecoach Devon Ltd,2000014535,785726.97,Stagecoach Devon Ltd,EX1 2LB,,
Department for Transport,Department for Transport,15/11/2016,Subsidies Private Se,Local,STAGECOACH EAST KENT,2000014612,890555.62,STAGECOACH IN EAST KENT,SK3 0DU,,
Department for Transport,Department for Transport,15/11/2016,Subsidies Private Se,Local,STAGECOACH EAST MIDLANDS,2000014613,985496.18,STAGECOACH IN LINCOLNSHIRE,SK3 0DU,,
Department for Transport,Department for Transport,15/11/2016,Subsidies Private Se,Local,STAGECOACH IN CUMBRIA,2000014614,532903.63,STAGECOACH IN CUMBRIA,SK3 0DU,,
Department for Transport,Department for Transport,15/11/2016,Subsidies Private Se,Local,Stagecoach Manchester,2000014615,1378936.81,STAGECOACH MANCHESTER,M12 6JS,,
Department for Transport,Department for Transport,15/11/2016,Subsidies Private Se,Local,Stagecoach Merseyside,2000014616,734638.74,STAGECOACH MERSEYSIDE,L11 0BB,,
Department for Transport,Department for Transport,15/11/2016,Subsidies Private Se,Local,Stagecoach Midland Red South Ltd,2000014591,349527.37,STAGECOACH MIDLAND RED (SOUTH) LTD,NN4 8ES,,
Department for Transport,Department for Transport,15/11/2016,Subsidies Private Se,Local,STAGECOACH S WALES T/A RHONDDA BUSE,2000014617,6840.73,Red & White Services Ltd T/A Stagecoach In S Wales,SK3 0DU,,
Department for Transport,Department for Transport,15/11/2016,Subsidies Private Se,Local,Stagecoach Services Ltd,2000014651,1212.35,Western Buses Ltd - Stagecoach West Scotland,SK3 0DU,,
Department for Transport,Department for Transport,15/11/2016,Subsidies Private Se,Local,STAGECOACH SOUTH,2000014618,837355.23,STAGECOACH SOUTH,SK3 0DU,,
Department for Transport,Department for Transport,15/11/2016,Subsidies Private Se,Local,Stagecoach Yorkshire,2000014633,500551.9,STAGECOACH YORKSHIRE,SK3 0DU,,
Department for Transport,Department for Transport,15/11/2016,Subsidies Private Se,Local,STEPHENSONS OF EASINGWOLD LTD,2000014619,5365.31,STEPHENSONS OF EASINGWOLD LTD,YO61 1SR,,
Department for Transport,Department for Transport,15/11/2016,Subsidies Private Se,Local,STREAMLINE,2000014649,1528.3,Streamline,HD1 5DX,,
Department for Transport,Department for Transport,15/11/2016,Subsidies Private Se,Local,SUSSEX COACHES,2000014645,6132.09,Sussex Coaches,RH13 8PB,,
Department for Transport,Department for Transport,15/11/2016,Subsidies Private Se,Local,Swallow Coach Company Ltd,2000014657,23846.2,Vigar Travel Ltd,RM13 8BT,,
Department for Transport,Department for Transport,15/11/2016,Subsidies Private Se,Local,TANAT VALLEY COACHES,2000014621,7945.61,R E MORRIS & SONS LTD T/A TANAT VALLEY COACHES,SY10 0AD,,
Department for Transport,Department for Transport,15/11/2016,Subsidies Private Se,Local,TELFORD & WREKIN COUNCIL,2000014622,1119.38,TELFORD & WREKIN COUNCIL T/A INTERGRATED TRANSPORT,TF2 7RA,,
Department for Transport,Department for Transport,15/11/2016,Subsidies Private Se,Local,Telfords Coaches Ltd,2000014654,1423.59,Telfords Coaches Ltd,TD9 0QP,,
Department for Transport,Department for Transport,15/11/2016,Subsidies Private Se,Local,THE KINGS FERRY TRAVEL GROUP,2000014581,61614.38,THE KING'S FERRY LTD,ME8 6HW,,
Department for Transport,Department for Transport,15/11/2016,Subsidies Private Se,Local,THE VILLAGER COMMUNITY,2000014627,927.61,THE VILLAGER COMMUNITY BUS SERVICES LTD,OX7 6NU,,
Department for Transport,Department for Transport,15/11/2016,Subsidies Private Se,Local,TM TRAVEL,2000014623,53905.52,T M Travel Ltd,S20 3GZ,,
Department for Transport,Department for Transport,15/11/2016,Subsidies Private Se,Local,TRAVELLERS CHOICE,2000014624,3898.2,TRAVELLERS CHOICE,LA5 9RQ,,
Department for Transport,Department for Transport,15/11/2016,Subsidies Private Se,Local,TRENT BUSES,2000014625,426484.97,Trent Buses,DE75 7BG,,
Department for Transport,Department for Transport,15/11/2016,Subsidies Private Se,Local,TRENT BUSES,2000014625,10890.25,Trent Buses - BBA,DE75 7BG,,
Department for Transport,Department for Transport,15/11/2016,Subsidies Private Se,Local,UTOPIA COACHES LTD,2000014626,6319.85,UTOPIA COACHES LTD,LS25 6EZ,,
Department for Transport,Department for Transport,15/11/2016,Subsidies Private Se,Local,WEST MIDLANDS TRAVEL LTD,2000014628,3942135.82,West Midlands Travel Ltd,B9 4BZ,,
Department for Transport,Department for Transport,15/11/2016,Subsidies Private Se,Local,WESTWARD TRAVEL,2000014629,3754.85,Westward Travel,GL12 8RT,,
Department for Transport,Department for Transport,15/11/2016,Subsidies Private Se,Local,Wheelers Travel Ltd,2000014652,5432.87,Wheelers Travel Ltd,SO52 9EJ,,
Department for Transport,Department for Transport,15/11/2016,Subsidies Private Se,Local,WHIPPET COACHES LTD,2000014630,14403.25,Whippet Coaches Ltd,CB24 4UG,,
Department for Transport,Department for Transport,15/11/2016,Subsidies Private Se,Local,YORKSHIRE COASTLINER LTD,2000014632,101110.61,Yorkshire Coastliner Ltd,HG2 7NY,,
Department for Transport,Department for Transport,15/11/2016,Subsidies Private Se,Local,Your Bus Dunn Motor Traction,2000014637,91332.48,YourBus (Dunn Motor Traction Ltd),DE75 7RJ,,
Department for Transport,Department for Transport,15/11/2016,Support Services,Aviation,Civil Aviation Authority,2000014708,315880.28,#,RH6 0YR,,
Department for Transport,Department for Transport,15/11/2016,Support Services,"Road Safety, Standards and Services",Environmental Scientifics Group,2000014706,2976,#,OX9 3SZ,,
Department for Transport,Department for Transport,15/11/2016,Telephone charges,Group Commercial Services,VERIZON BUSINESS,2000014714,17387.33,Verizon - internet charges - 01.11 to 30.11.2016,RG2 6DA,,
Department for Transport,Department for Transport,15/11/2016,Trade Plate Expenses,Local,Minibus Options Limited,2000014744,34972.12,Community Transport Minibus Fund Round 1,SK23 7LY,,
Department for Transport,Department for Transport,15/11/2016,Trade Plate Expenses,Local,Minibus Options Limited,2000014744,34972.12,Community Transport Minibus Fund Round 1,SK23 7LY,,
Department for Transport,Department for Transport,15/11/2016,Trade Plate Expenses,Local,Minibus Options Limited,2000014744,17601.6,Community Transport Minibus Fund Round 1,SK23 7LY,,
Department for Transport,Department for Transport,15/11/2016,Trade Plate Expenses,Local,Minibus Options Limited,2000014744,17558.4,Community Transport Minibus Fund Round 1,SK23 7LY,,
Department for Transport,Department for Transport,15/11/2016,Trade Plate Expenses,Local,Minibus Options Limited,2000014744,17415.6,Community Transport Minibus Fund Round 1,SK23 7LY,,
Department for Transport,Department for Transport,15/11/2016,Trade Plate Expenses,Local,Minibus Options Limited,2000014744,25771.13,Community Transport Minibus Fund Round 1,SK23 7LY,,
Department for Transport,Department for Transport,15/11/2016,Trade Plate Expenses,Local,Minibus Options Limited,2000014744,24696.06,Community Transport Minibus Fund Round 1,SK23 7LY,,
Department for Transport,Department for Transport,15/11/2016,Training,HSR Strategy,Language Services Direct Ltd,2000014738,702.45,#,SE1 1HJ,,
Department for Transport,Department for Transport,15/11/2016,Transport  Consult,"Energy, Technology and International",AECOM INFRASTRUCTURE &,2000014712,33811.86,#,RG21 7PP,,
Department for Transport,Department for Transport,16/11/2016,Agency Staff Costs,Local,CAPITA BUSINESS SERVICES LTD,2000014783,2854.85,Agency Staff Costs ,DL1 9HN,,
Department for Transport,Department for Transport,16/11/2016,Agency Staff Costs,Group Commercial Services,CAPITA BUSINESS SERVICES LTD,2000014783,2355.36,#,DL1 9HN,,
Department for Transport,Department for Transport,16/11/2016,Agency Staff Costs,Local,BROOK STREET (UK) LIMITED,2000014793,653.56,Agency Staff Costs ,AL1 4JB,,
Department for Transport,Department for Transport,16/11/2016,Agency Staff Costs,Local,BROOK STREET (UK) LIMITED,2000014793,-653.56,Agency Staff Costs ,AL1 4JB,,
Department for Transport,Department for Transport,16/11/2016,Agency Staff Costs,Marine Accident Investigation Branch,BROOK STREET (UK) LIMITED,2000014793,800.26,#,AL1 4JB,,
Department for Transport,Department for Transport,16/11/2016,Agency Staff Costs,Marine Accident Investigation Branch,BROOK STREET (UK) LIMITED,2000014793,681.52,#,AL1 4JB,,
Department for Transport,Department for Transport,16/11/2016,Agency Staff Costs,Marine Accident Investigation Branch,BROOK STREET (UK) LIMITED,2000014793,795.1,#,AL1 4JB,,
Department for Transport,Department for Transport,16/11/2016,Agency Staff Costs,Major Projects,Experis Ltd,2000014788,6040.02,Interim resource,EC2M 2RB,,
Department for Transport,Department for Transport,16/11/2016,Agency Staff Costs,Major Projects,Experis Ltd,2000014788,5050.86,Interim resource,EC2M 2RB,,
Department for Transport,Department for Transport,16/11/2016,Agency Staff Costs,Strategic Roads,BROOK STREET (UK) LIMITED,2000014793,506.93,#,AL1 4JB,,
Department for Transport,Department for Transport,16/11/2016,Agency Staff Costs,DG_Rail - Passenger Services,Experis Ltd,2000014788,2999.7,#,EC2M 2RB,,
Department for Transport,Department for Transport,16/11/2016,Cap Grt Pri Sec-Cos.,Local,Lanteglos Community Bus,2000014812,67116.2,Community Transport Minibus Fund Round 1,PL23 1NB,,
Department for Transport,Department for Transport,16/11/2016,Cap Grt Pri Sec-Cos.,"Energy, Technology and International",Nova Pangaea Technologies (UK) Ltd,2000014810,195749.69,Nove Pangaea Technologies Ltd  November,CV33 9LW,,
Department for Transport,Department for Transport,16/11/2016,Cap Grt Pri Sec-Cos.,"Energy, Technology and International",Airco Refrigeration,2000014808,9800,Airco Apr 15 #9800,HU3 4DL,,
Department for Transport,Department for Transport,16/11/2016,Cap Grt Pri Sec-Cos.,"Energy, Technology and International",Blythe Electrical (Warwickshire),2000014806,1000,Blythe Elec Sep 16 #1000,B46 2JA,,
Department for Transport,Department for Transport,16/11/2016,Cap Grt Pri Sec-Cos.,"Energy, Technology and International",BMW UK Ltd,2000014804,3435500,"""PICG BMW October 2016 #3,435,500""",RG12 8TA,,
Department for Transport,Department for Transport,16/11/2016,Cap Grt Pri Sec-Cos.,"Energy, Technology and International",Chargemaster,2000014801,5500,Chargemaster May 16 #5500,LU1 3LU,,
Department for Transport,Department for Transport,16/11/2016,Cap Grt Pri Sec-Cos.,"Energy, Technology and International",CSS Electrica Ltd,2000014807,2800,CSS Electrical Feb 16 #2800,CF72 9GT,,
Department for Transport,Department for Transport,16/11/2016,Cap Grt Pri Sec-Cos.,"Energy, Technology and International",CSS Electrica Ltd,2000014807,500,CSS Electrical Apr 16 #500,CF72 9GT,,
Department for Transport,Department for Transport,16/11/2016,Cap Grt Pri Sec-Cos.,"Energy, Technology and International",Fusion Electrical Services Ltd,2000014817,1000,Fusion Electrical May 16 #1000,CR2 0BS,,
Department for Transport,Department for Transport,16/11/2016,Cap Grt Pri Sec-Cos.,"Energy, Technology and International",Just Energy Solutions Ltd,2000014816,500,Just Energy Sep 16 #500,AL2 1DL,,
Department for Transport,Department for Transport,16/11/2016,Cap Grt Pri Sec-Cos.,"Energy, Technology and International",LA Bristol Ltd - T/A LA Electrical,2000014809,500,LA Bristol Ltd May 2016 #500,BS35 5RE,,
Department for Transport,Department for Transport,16/11/2016,Cap Grt Pri Sec-Cos.,"Energy, Technology and International",Munro Wilson Limited,2000014811,700,Munro Wilson Nov 15 #700,SL1 4LP,,
Department for Transport,Department for Transport,16/11/2016,Cap Grt Pri Sec-Cos.,"Energy, Technology and International",Munro Wilson Limited,2000014811,1000,Munro Wilson Mar 16 #1000,SL1 4LP,,
Department for Transport,Department for Transport,16/11/2016,Cap Grt Pri Sec-Cos.,"Energy, Technology and International",Munro Wilson Limited,2000014811,1000,Munro Wilson Apr 16 #1000,SL1 4LP,,
Department for Transport,Department for Transport,16/11/2016,Cap Grt Pri Sec-Cos.,"Energy, Technology and International",NISSAN MOTOR GB LTD,2000014798,2557373.27,"""PICG Nissan September 2016 #2,557,373.27""",WD3 9YS,,
Department for Transport,Department for Transport,16/11/2016,Cap Grt Pri Sec-Cos.,"Energy, Technology and International",Pod Point,2000014800,2100,POD Point Feb 16 #2100,E1 1EE,,
Department for Transport,Department for Transport,16/11/2016,Cap Grt Pri Sec-Cos.,"Energy, Technology and International",Pod Point,2000014800,3000,POD Point Mar 16 #3000,E1 1EE,,
Department for Transport,Department for Transport,16/11/2016,Cap Grt Pri Sec-Cos.,"Energy, Technology and International",Pod Point,2000014800,500,POD Point May 16 #500,E1 1EE,,
Department for Transport,Department for Transport,16/11/2016,Cap Grt Pri Sec-Cos.,"Energy, Technology and International",Pod Point,2000014800,4500,POD Point Jun 16 #4500,E1 1EE,,
Department for Transport,Department for Transport,16/11/2016,Cap Grt Pri Sec-Cos.,"Energy, Technology and International",Rolec Services Limited,2000014799,500,ROLEC APR 2016 #500,PE20 1Q,,
Department for Transport,Department for Transport,16/11/2016,Cap Grt Pri Sec-Cos.,"Energy, Technology and International",Rolec Services Limited,2000014799,1500,ROLEC May 2016 #1500,PE20 1Q,,
Department for Transport,Department for Transport,16/11/2016,Cap Grt Pri Sec-Cos.,"Energy, Technology and International",THE COLT CAR COMPANY LTD,2000014797,2581965.68,"""PICG Mitsubishi October 2016 #2,581,965.68""",GL7 1LF,,
Department for Transport,Department for Transport,16/11/2016,Cap Grt Pri Sec-Cos.,"Energy, Technology and International",University of South Wales,2000014819,281960.79,Payment to USW as part of HRS Grants Scheme,SA12 7AX,,
Department for Transport,Department for Transport,16/11/2016,CurrGrt Las in AEF/A,Local,Cheshire West & Chester Council,2000014796,29943,HMEP Payment for Q1 & Q2 of FY 2016-17,CH1 1SE,,
Department for Transport,Department for Transport,16/11/2016,CurrGrt Las in AEF/A,Local,Lincolnshire County Council,2000014803,10100,HMEP Payment for Q2 of FY 2016 - 17,LN1 1YL,,
Department for Transport,Department for Transport,16/11/2016,CurrGrt Las in AEF/A,Local,SURREY COUNTY COUNCIL,2000014821,178899,HMEP Payment for Q1 & Q2 of FY 2016-17,KT1 2DN,,
Department for Transport,Department for Transport,16/11/2016,EU Cap Grt NDPBs,International and regulatory reform,"Ministere De L 'Environment, De L",2000014824,583302.23,#,92055,,
Department for Transport,Department for Transport,16/11/2016,Gas,DG_IS - Rail Accident Investigation Branch,CORONA ENERGY RETAIL 4 LTD,2000014787,513.47,#,WD17 1JW,,
Department for Transport,Department for Transport,16/11/2016,Management Consultan,Group Commercial Services,MACE Limited,2000014820,13500,#,EC2M 6X,,
Department for Transport,Department for Transport,16/11/2016,Other Professional F,Group Human Resources,Arvato Ltd,2000014802,5765,#,HU10 6FE,,
Department for Transport,Department for Transport,16/11/2016,Other Professional F,Group Human Resources,Arvato Ltd,2000014802,2590,#,HU10 6FE,,
Department for Transport,Department for Transport,16/11/2016,Prog&ProjMgmt Consul,Group Commercial Services,MACE Limited,2000014820,13500,#,EC2M 6X,,
Department for Transport,Department for Transport,16/11/2016,Research,Analysis & Strategy,NATIONAL CENTRE FOR SOCIAL RESEARCH,2000014790,7433,#,EC1V 0AX,,
Department for Transport,Department for Transport,16/11/2016,Secondments,Analysis & Strategy,Newcastle University,2000014805,10205.93,#,NE1 7RU,,
Department for Transport,Department for Transport,16/11/2016,Security,Aviation,Civil Aviation Authority,2000014786,68500,#,RH6 0YR,,
Department for Transport,Department for Transport,16/11/2016,Telephone charges,Group Commercial Services,BT Payment SVCS Ltd (T/phone Bills),2000014792,2357.24,BT Call Charges Nov 16,DH98 1BT,,
Department for Transport,Department for Transport,16/11/2016,Telephone charges,Group Commercial Services,BT Payment SVCS Ltd (T/phone Bills),2000014792,609.63,B T Call Charges 10.11.2016,DH98 1BT,,
Department for Transport,Department for Transport,16/11/2016,Transport  Consult,DG_Rail - Passenger Services,STEER DAVIES & GLEAVE LTD,2000014791,65404.8,#,SE1 9PD,,
Department for Transport,Department for Transport,17/11/2016,Agency Staff Costs,Local,BROOK STREET (UK) LIMITED,2000014879,641.58,Agency Staff Costs ,AL1 4JB,,
Department for Transport,Department for Transport,17/11/2016,Agency Staff Costs,Group Communications,CAPITA BUSINESS SERVICES LTD,2000014868,1705.38,#,DL1 9HN,,
Department for Transport,Department for Transport,17/11/2016,Agency Staff Costs,DG_RAIL - Network Services,CAPITA BUSINESS SERVICES LTD,2000014868,5140.32,Database development,DL1 9HN,,
Department for Transport,Department for Transport,17/11/2016,Agency Staff Costs,Group Finance,CAPITA BUSINESS SERVICES LTD,2000014868,4524.77,#,DL1 9HN,,
Department for Transport,Department for Transport,17/11/2016,Agency Staff Costs,Group Finance,CAPITA BUSINESS SERVICES LTD,2000014868,2089.04,#,DL1 9HN,,
Department for Transport,Department for Transport,17/11/2016,Agency Staff Costs,Group Finance,CAPITA BUSINESS SERVICES LTD,2000014868,4564.92,#,DL1 9HN,,
Department for Transport,Department for Transport,17/11/2016,Agency Staff Costs,DG_Rail - Passenger Services,BROOK STREET (UK) LIMITED,2000014879,781.54,#,AL1 4JB,,
Department for Transport,Department for Transport,17/11/2016,Agency Staff Costs,DG_Rail - Passenger Services,BROOK STREET (UK) LIMITED,2000014879,976.92,#,AL1 4JB,,
Department for Transport,Department for Transport,17/11/2016,Agency Staff Costs,DG_Rail - Passenger Services,BROOK STREET (UK) LIMITED,2000014879,976.92,#,AL1 4JB,,
Department for Transport,Department for Transport,17/11/2016,Agency Staff Costs,DG_Rail - Passenger Services,BROOK STREET (UK) LIMITED,2000014879,976.92,#,AL1 4JB,,
Department for Transport,Department for Transport,17/11/2016,Agency Staff Costs,DG_Rail - Passenger Services,BROOK STREET (UK) LIMITED,2000014879,976.92,#,AL1 4JB,,
Department for Transport,Department for Transport,17/11/2016,Agency Staff Costs,DG_Rail - Passenger Services,BROOK STREET (UK) LIMITED,2000014879,976.92,#,AL1 4JB,,
Department for Transport,Department for Transport,17/11/2016,Agency Staff Costs,DG_Rail - Passenger Services,CAPITA BUSINESS SERVICES LTD,2000014868,5650.37,#,DL1 9HN,,
Department for Transport,Department for Transport,17/11/2016,Agency Staff Costs,DG_Rail - Passenger Services,CAPITA BUSINESS SERVICES LTD,2000014868,1051.1,#,DL1 9HN,,
Department for Transport,Department for Transport,17/11/2016,Agency Staff Costs,DG_Rail - Passenger Services,CAPITA BUSINESS SERVICES LTD,2000014868,7652.28,#,DL1 9HN,,
Department for Transport,Department for Transport,17/11/2016,Agency Staff Costs,HSR Phase 1 Sponsor,CAPITA BUSINESS SERVICES LTD,2000014868,7012.32,#,DL1 9HN,,
Department for Transport,Department for Transport,17/11/2016,Agency Staff Costs,Group Commercial Services,CAPITA BUSINESS SERVICES LTD,2000014868,2996.88,#,DL1 9HN,,
Department for Transport,Department for Transport,17/11/2016,Agency Staff Costs,DG_Rail - Passenger Services,CAPITA BUSINESS SERVICES LTD,2000014868,4052.93,#,DL1 9HN,,
Department for Transport,Department for Transport,17/11/2016,Agency Staff Costs,DG_Rail - Passenger Services,CAPITA BUSINESS SERVICES LTD,2000014868,9827.03,#,DL1 9HN,,
Department for Transport,Department for Transport,17/11/2016,Agency Staff Costs,DG_Rail - Passenger Services,CAPITA BUSINESS SERVICES LTD,2000014868,2712.1,#,DL1 9HN,,
Department for Transport,Department for Transport,17/11/2016,Agency Staff Costs,DG_Rail - Passenger Services,CAPITA BUSINESS SERVICES LTD,2000014868,1969.15,#,DL1 9HN,,
Department for Transport,Department for Transport,17/11/2016,Agency Staff Costs,DG_Rail - Passenger Services,CAPITA BUSINESS SERVICES LTD,2000014868,3893.33,#,DL1 9HN,,
Department for Transport,Department for Transport,17/11/2016,Agency Staff Costs,Group Finance,CAPITA BUSINESS SERVICES LTD,2000014868,2955.74,#,DL1 9HN,,
Department for Transport,Department for Transport,17/11/2016,Agency Staff Costs,DG_Rail - Passenger Services,CAPITA BUSINESS SERVICES LTD,2000014868,3333.06,#,DL1 9HN,,
Department for Transport,Department for Transport,17/11/2016,Agency Staff Costs,DG_Rail - Passenger Services,CAPITA BUSINESS SERVICES LTD,2000014868,4874.64,#,DL1 9HN,,
Department for Transport,Department for Transport,17/11/2016,Agency Staff Costs,DG_Rail - Passenger Services,CAPITA BUSINESS SERVICES LTD,2000014868,2642.16,#,DL1 9HN,,
Department for Transport,Department for Transport,17/11/2016,Agency Staff Costs,DG_Rail - Passenger Services,CAPITA BUSINESS SERVICES LTD,2000014868,3254.3,#,DL1 9HN,,
Department for Transport,Department for Transport,17/11/2016,Agency Staff Costs,DG_Rail - Passenger Services,CAPITA BUSINESS SERVICES LTD,2000014868,6314.16,#,DL1 9HN,,
Department for Transport,Department for Transport,17/11/2016,Agency Staff Costs,DG_Rail - Passenger Services,CAPITA BUSINESS SERVICES LTD,2000014868,2642.16,#,DL1 9HN,,
Department for Transport,Department for Transport,17/11/2016,Agency Staff Costs,DG_Rail - Passenger Services,CAPITA BUSINESS SERVICES LTD,2000014868,3240.1,#,DL1 9HN,,
Department for Transport,Department for Transport,17/11/2016,Agency Staff Costs,DG_Rail - Passenger Services,CAPITA BUSINESS SERVICES LTD,2000014868,4922.88,#,DL1 9HN,,
Department for Transport,Department for Transport,17/11/2016,Agency Staff Costs,DG_Rail - Passenger Services,CAPITA BUSINESS SERVICES LTD,2000014868,2642.16,#,DL1 9HN,,
Department for Transport,Department for Transport,17/11/2016,Agency Staff Costs,DG_Rail - Passenger Services,CAPITA BUSINESS SERVICES LTD,2000014868,3848.75,#,DL1 9HN,,
Department for Transport,Department for Transport,17/11/2016,Agency Staff Costs,DG_Rail - Passenger Services,CAPITA BUSINESS SERVICES LTD,2000014868,785.94,#,DL1 9HN,,
Department for Transport,Department for Transport,17/11/2016,Agency Staff Costs,DG_RAIL - Network Services,CAPITA BUSINESS SERVICES LTD,2000014868,5825.16,Interim resource,DL1 9HN,,
Department for Transport,Department for Transport,17/11/2016,Agency Staff Costs,One Railway,CAPITA BUSINESS SERVICES LTD,2000014868,6636.29,#,DL1 9HN,,
Department for Transport,Department for Transport,17/11/2016,Agency Staff Costs,DG_RAIL - Network Services,CAPITA BUSINESS SERVICES LTD,2000014868,4451.28,Interim resource,DL1 9HN,,
Department for Transport,Department for Transport,17/11/2016,Agency Staff Costs,DG_Rail - Passenger Services,CAPITA BUSINESS SERVICES LTD,2000014868,4093.44,#,DL1 9HN,,
Department for Transport,Department for Transport,17/11/2016,Agency Staff Costs,DG_Rail - Passenger Services,CAPITA BUSINESS SERVICES LTD,2000014868,2574.72,#,DL1 9HN,,
Department for Transport,Department for Transport,17/11/2016,Agency Staff Costs,DG_Rail - Passenger Services,CAPITA BUSINESS SERVICES LTD,2000014868,5430.07,#,DL1 9HN,,
Department for Transport,Department for Transport,17/11/2016,Agency Staff Costs,One Railway,CAPITA BUSINESS SERVICES LTD,2000014868,1451.63,#,DL1 9HN,,
Department for Transport,Department for Transport,17/11/2016,Agency Staff Costs,DG_RAIL - Network Services,CAPITA BUSINESS SERVICES LTD,2000014868,3961.14,Interim resource,DL1 9HN,,
Department for Transport,Department for Transport,17/11/2016,Agency Staff Costs,DG_Rail - Passenger Services,CAPITA BUSINESS SERVICES LTD,2000014868,1322.16,#,DL1 9HN,,
Department for Transport,Department for Transport,17/11/2016,Agency Staff Costs,DG_Rail - Passenger Services,CAPITA BUSINESS SERVICES LTD,2000014868,2574.72,#,DL1 9HN,,
Department for Transport,Department for Transport,17/11/2016,Car Tax & Insurance,"Road Safety, Standards and Services",THE PCC FOR AVON & SOMERSET,2000014888,521.54,#,BS20 8QJ,,
Department for Transport,Department for Transport,17/11/2016,Cars Maintenance,"Road Safety, Standards and Services",Harwoods Limited,2000014891,607.24,#,RH20 1AS,,
Department for Transport,Department for Transport,17/11/2016,Cars Maintenance,"Road Safety, Standards and Services",Silgo Lubricants Ltd,2000014886,553.85,#,RM15 4YG,,
Department for Transport,Department for Transport,17/11/2016,Electricity,Group Commercial Services,EDF ENERGY,2000014872,576,EDF - GMH - 1.11.16,DA6 8ET,,
Department for Transport,Department for Transport,17/11/2016,Gas,Group Commercial Services,CORONA ENERGY RETAIL 4 LTD,2000014871,1487.03,Corona Meter Read 01.11.2016,WD17 1JW,,
Department for Transport,Department for Transport,17/11/2016,Grt Aid to NDPBs,Rail NDPB's,RAIL PASSENGER COUNCIL,2000014835,585000,Transport Focus November 2016 Grant,M1 2WD,,
Department for Transport,Department for Transport,17/11/2016,IT Consultancy,Marine Accident Investigation Branch,Softeco Sismat SRL,2000014836,6406.45,#,16149,,
Department for Transport,Department for Transport,17/11/2016,IT Ser Running Costs,Group Commercial Services,SOFTWARE BOX LTD,2000014875,902370,#,YO61 1ET,,
Department for Transport,Department for Transport,17/11/2016,Legal Consultancy,HSR Phase 1 Sponsor,Counsel,2000014883,11370,#,EC4A 2HG,,
Department for Transport,Department for Transport,17/11/2016,Recruitment Fees,Group Human Resources,HM REVENUE & CUSTOMS,2000014874,227738.4,HMRC Q1  RECRUITMENT SERVICE CHARGES,BN12 4XH,,
Department for Transport,Department for Transport,17/11/2016,Recruitment Fees,Group Human Resources,HM REVENUE & CUSTOMS,2000014874,134709.6,HMRC - Q4 RECRUITMENT SERVICE CHARGES,BN12 4XH,,
Department for Transport,Department for Transport,17/11/2016,Research,Aviation,Civil Aviation Authority,2000014870,66977,#,RH6 0YR,,
Department for Transport,Department for Transport,17/11/2016,Research,Analysis & Strategy,WEST OF ENGLAND UNIVERSITY,2000014878,1200,#,BS16 1QY,,
Department for Transport,Department for Transport,17/11/2016,Security,Group Commercial Services,FCO Services,2000014873,2509.51,#,MK19 7BH,,
Department for Transport,Department for Transport,17/11/2016,Trade Plate Expenses,Local,Minibus Options Limited,2000014890,21901.2,Community Transport Minibus Fund Round 1,SK23 7LY,,
Department for Transport,Department for Transport,17/11/2016,Trade Plate Expenses,Local,Minibus Options Limited,2000014890,30810,Community Transport Minibus Fund Round 1,SK23 7LY,,
Department for Transport,Department for Transport,17/11/2016,Transport  Consult,Airport Capacity,Oakdene Hollins Limited,2000014892,12997.2,#,HP19 8HT,,
Department for Transport,Department for Transport,17/11/2016,Transport  Consult,Airport Capacity,Oakdene Hollins Limited,2000014892,4491.6,#,HP19 8HT,,
Department for Transport,Department for Transport,17/11/2016,Transport  Consult,DG_Rail - Passenger Services,ATKINS LTD (TRANSPORT PLANNING),2000014869,45421.13,#,WR5 1TX,,
Department for Transport,Department for Transport,17/11/2016,Transport  Consult,DG_Rail - Passenger Services,STEER DAVIES & GLEAVE LTD,2000014876,3076.03,#,SE1 9PD,,
Department for Transport,Department for Transport,17/11/2016,Transport  Consult,DG_Rail - Passenger Services,Steer Davies Gleaves (Bikeability),2000014882,4061,#,SE1 9PD,,
Department for Transport,Department for Transport,17/11/2016,Transport  Consult,DG_Rail - Passenger Services,TRANSPORT RESEARCH LABORATORY,2000014877,24181.79,#,RG40 3GA,,
Department for Transport,Department for Transport,18/11/2016,Agency Staff Costs,Group Commercial Services,BROOK STREET (UK) LIMITED,2000014943,747.7,#,AL1 4JB,,
Department for Transport,Department for Transport,18/11/2016,Agency Staff Costs,Group Commercial Services,BROOK STREET (UK) LIMITED,2000014943,733.97,#,AL1 4JB,,
Department for Transport,Department for Transport,18/11/2016,Agency Staff Costs,Group Commercial Services,BROOK STREET (UK) LIMITED,2000014943,815.64,#,AL1 4JB,,
Department for Transport,Department for Transport,18/11/2016,Agency Staff Costs,DG_Rail - Passenger Services,BROOK STREET (UK) LIMITED,2000014943,985.32,#,AL1 4JB,,
Department for Transport,Department for Transport,18/11/2016,Agency Staff Costs,DG_RAIL - Network Services,BROOK STREET (UK) LIMITED,2000014943,647.46,Interim resource,AL1 4JB,,
Department for Transport,Department for Transport,18/11/2016,Agency Staff Costs,DG_Rail - Passenger Services,CAPITA BUSINESS SERVICES LTD,2000014932,5986.93,#,DL1 9HN,,
Department for Transport,Department for Transport,18/11/2016,Agency Staff Costs,DG_Rail - Passenger Services,CAPITA BUSINESS SERVICES LTD,2000014932,4491.67,#,DL1 9HN,,
Department for Transport,Department for Transport,18/11/2016,Agency Staff Costs,DG_Rail - Passenger Services,CAPITA BUSINESS SERVICES LTD,2000014932,4704.02,#,DL1 9HN,,
Department for Transport,Department for Transport,18/11/2016,Building Service Cha,Group Commercial Services,Amey Community Ltd,2000014966,222173.29,#,OX4 4DQ,,
Department for Transport,Department for Transport,18/11/2016,Building Service Cha,Group Commercial Services,Amey Community Ltd,2000014966,13332,#,OX4 4DQ,,
Department for Transport,Department for Transport,18/11/2016,Cap Grt Pri Sec-Cos.,HSR Programme and Funding,Eversheds LLP,2000014960,2662500,#,CF10 5BT,,
Department for Transport,Department for Transport,18/11/2016,Grt Aid to NDPBs,Rail NDPB's,NETWORK RAIL INFRASTRUCTURE LTD,2000014947,1578359,NR Cash funded Cambridge North,M60 7WY,,
Department for Transport,Department for Transport,18/11/2016,IT Ser Running Costs,Group Commercial Services,Basware Holdings Limited,2000014953,3058.8,#,SW1E 5RS,,
Department for Transport,Department for Transport,18/11/2016,Legal Consultancy,DG_RAIL - Network Services,Fieldfisher LLP,2000014959,18849,Legal advice,EC4R 3T,,
Department for Transport,Department for Transport,18/11/2016,Legal Consultancy,DG_Rail - Passenger Services,Fieldfisher LLP,2000014959,4024.8,#,EC4R 3T,,
Department for Transport,Department for Transport,18/11/2016,Other Advertising,Local,Penna Communications,2000014949,10592.6,Statutory Advertising ,EC4M 7RD,,
Department for Transport,Department for Transport,18/11/2016,Postage,Air Accident Investigation Branch,Pitney Bowes Limited,2000014938,1013,#,AL10 9UJ,,
Department for Transport,Department for Transport,18/11/2016,Printing,Group Communications,Williams Lea,2000014954,427.9,#,NR3 1PD,,
Department for Transport,Department for Transport,18/11/2016,Printing,Group Communications,Williams Lea,2000014954,7923.24,#,NR3 1PD,,
Department for Transport,Department for Transport,18/11/2016,Publicity,Group Communications,ABBOTT MEAD VICKERS BBDO LTD,2000014933,4975.75,#,NW1 5QE,,
Department for Transport,Department for Transport,18/11/2016,Research,Transport Security Co-ordination & Response,Civil Aviation Authority,2000014935,83769.66,#,RH6 0YR,,
Department for Transport,Department for Transport,18/11/2016,Research Grant-CG,"Road Safety, Standards and Services",City of York Council,2000014964,4987.5,City of York Council Initial 30% ITS T-TRIG Grant,YO1 6GA,,
Department for Transport,Department for Transport,18/11/2016,Research Grant-CG,"Road Safety, Standards and Services",Nicander Limited,2000014965,7479.6,Transfaction Initial 30% ITS T-TRIG Grant Payment,TS23 4EG,,
Department for Transport,Department for Transport,18/11/2016,Services prov by OGD,"Road Safety, Standards and Services",VEHICLE CERTIFICATION AGENCY,2000014942,14687.66,#,BS5 6XX,,
Department for Transport,Department for Transport,18/11/2016,Services prov by OGD,Local,Driver and Vehicle Standards Agency,2000014968,175315.74,Punctuality Q2 charges,SA1 8AN,,
Department for Transport,Department for Transport,18/11/2016,Telecom Equipment,Group Commercial Services,Azzurri Communications Ltd,2000014952,2544,"Azzuri,Maintenace & Software Ass 14.11.16-13.11.17",BB11 5FH,,
Department for Transport,Department for Transport,18/11/2016,Training,Air Accident Investigation Branch,SYNERGY AVIATION LTD,2000014940,1148.56,#,GU24 8HX,,
Department for Transport,Department for Transport,18/11/2016,Training,Air Accident Investigation Branch,SYNERGY AVIATION LTD,2000014940,622.5,#,GU24 8HX,,
Department for Transport,Department for Transport,18/11/2016,Transport  Consult,DG_Rail - Passenger Services,LEND LEASE CONSULTING (EMEA) LTD,2000014945,23760,#,NW1 3BF,,
Department for Transport,Department for Transport,18/11/2016,Treasury Solicitors,HSR Programme and Funding,Government Legal Department,2000014931,12684.4,#,WC2B 4TS,,
Department for Transport,Department for Transport,18/11/2016,Treasury Solicitors,HSR Programme and Funding,Government Legal Department,2000014931,12794.4,#,WC2B 4TS,,
Department for Transport,Department for Transport,18/11/2016,Treasury Solicitors,HSR Programme and Funding,Government Legal Department,2000014931,-12684.4,#,WC2B 4TS,,
Department for Transport,Department for Transport,21/11/2016,Agents Fees,Group Communications,Carat,2000015013,62.59,#,NW31 3BF,,
Department for Transport,Department for Transport,21/11/2016,Cap Grt Pri Sec-Cos.,"Energy, Technology and International",Go Green Fuels Ltd,2000015039,497526,Go Green Fuels 2016 November,SN3 4DE,,
Department for Transport,Department for Transport,21/11/2016,Cap Grt Pri Sec-Cos.,"Energy, Technology and International",BMM Contracts Ltd,2000015035,7500,BMM Energy Solutions Aug 16 #7500,ML6 8NY,,
Department for Transport,Department for Transport,21/11/2016,Cap Grt Pri Sec-Cos.,"Energy, Technology and International",Cawoods Electricians,2000015029,2500,Cawood Jul 2016 #2500,PE6 9NF,,
Department for Transport,Department for Transport,21/11/2016,Cap Grt Pri Sec-Cos.,"Energy, Technology and International",Cawoods Electricians,2000015029,1000,Cawood Aug 2016 #1000,PE6 9NF,,
Department for Transport,Department for Transport,21/11/2016,Cap Grt Pri Sec-Cos.,"Energy, Technology and International",Chargemaster,2000015026,142000,Chargemaster Sep 16 #142000,LU1 3LU,,
Department for Transport,Department for Transport,21/11/2016,Cap Grt Pri Sec-Cos.,"Energy, Technology and International",Doyle Electrical Services Ltd,2000015034,500,Doyle Elec Jul 16 #500,IP5 3RY,,
Department for Transport,Department for Transport,21/11/2016,Cap Grt Pri Sec-Cos.,"Energy, Technology and International",Earth Electrical (Southern) Ltd,2000015033,1986.9,Earth Electrical Aug 16 #1986.90,GU14 8DS,,
Department for Transport,Department for Transport,21/11/2016,Cap Grt Pri Sec-Cos.,"Energy, Technology and International",EV Charging Solutions,2000015028,2500,EV Charging Solutions Sep 16 #2500,NG7 3EN,,
Department for Transport,Department for Transport,21/11/2016,Cap Grt Pri Sec-Cos.,"Energy, Technology and International",ITM Power Plc,2000015040,875290.38,Payment to ITM as part of Hydrogen Grant Scheme,S4 7QQ,,
Department for Transport,Department for Transport,21/11/2016,Cap Grt Pri Sec-Cos.,"Energy, Technology and International",KVA Electrical Contractors Ltd,2000015043,500,KVA Electrical Aug 16 #500,CF72 8ST,,
Department for Transport,Department for Transport,21/11/2016,Cap Grt Pri Sec-Cos.,"Energy, Technology and International",LA Bristol Ltd - T/A LA Electrical,2000015036,2000,LA Bristol Ltd Jun 2016 #2000,BS35 5RE,,
Department for Transport,Department for Transport,21/11/2016,Cap Grt Pri Sec-Cos.,"Energy, Technology and International",LA Bristol Ltd - T/A LA Electrical,2000015036,500,LA Bristol Ltd Jul 2016 #500,BS35 5RE,,
Department for Transport,Department for Transport,21/11/2016,Cap Grt Pri Sec-Cos.,"Energy, Technology and International",Lamonbys Ltd,2000015038,1000,Lamonby Elec Jun 16 #1000,PO6 1RN,,
Department for Transport,Department for Transport,21/11/2016,Cap Grt Pri Sec-Cos.,"Energy, Technology and International",Macken & Cleare Ltd,2000015041,500,Macken & Cleare Oct 16 #500,EN1 3UJ,,
Department for Transport,Department for Transport,21/11/2016,Cap Grt Pri Sec-Cos.,"Energy, Technology and International",Mercedes-Benz UK Limited,2000015020,817500,"""PICG Mercedes October 2016 #817,500""",MK15 8BA,,
Department for Transport,Department for Transport,21/11/2016,Cap Grt Pri Sec-Cos.,Rail NDPB's,Network Rail Infstrcture (Treasury),2000015011,250000000,#,NW1 2DN,,
Department for Transport,Department for Transport,21/11/2016,Cap Grt Pri Sec-Cos.,Rail NDPB's,Network Rail Infstrcture (Treasury),2000015011,100000000,#,NW1 2DN,,
Department for Transport,Department for Transport,21/11/2016,Cap Grt Pri Sec-Cos.,"Energy, Technology and International",NISSAN MOTOR GB LTD,2000015019,3337171.39,"""PICG Nissan October 2016 #3,337,171.39""",WD3 9YS,,
Department for Transport,Department for Transport,21/11/2016,Cap Grt Pri Sec-Cos.,"Energy, Technology and International",Phoenix Renewables Ltd,2000015031,6500,Phoenix Sep 2016 #6500,LS28 5LY,,
Department for Transport,Department for Transport,21/11/2016,Cap Grt Pri Sec-Cos.,"Energy, Technology and International",Pod Point,2000015025,13500,POD Point Jul 16 #13500,E1 1EE,,
Department for Transport,Department for Transport,21/11/2016,Cap Grt Pri Sec-Cos.,"Energy, Technology and International",Tesla Motors Limited GBP,2000015030,994500,"""PICG TESLA October 2016 #994,500""",UB7 8JD,,
Department for Transport,Department for Transport,21/11/2016,Cap Grt Pri Sec-Cos.,"Energy, Technology and International",Volvo Car UK Limited,2000015027,317500,"""PICG Volvo October 2016 #317,500""",SL6 4FL,,
Department for Transport,Department for Transport,21/11/2016,CurrGrtPriSec-P&NPIS,"Energy, Technology and International",LOW CARBON VEHICLE PARTNERSHIP,2000015018,34000,LowCVP October 16 #34k DfT payment,SW1H 9JJ,,
Department for Transport,Department for Transport,21/11/2016,Maintenance Other,Strategic Roads,TDC SYSTEMS LIMITED,2000015015,619.2,#,BS24 9BP,,
Department for Transport,Department for Transport,21/11/2016,Maintenance Other,Strategic Roads,TDC SYSTEMS LIMITED,2000015015,7549,#,BS24 9BP,,
Department for Transport,Department for Transport,21/11/2016,Maintenance Other,Strategic Roads,TDC SYSTEMS LIMITED,2000015015,5960,#,BS24 9BP,,
Department for Transport,Department for Transport,21/11/2016,Publicity,Airport Capacity,ABBOTT MEAD VICKERS BBDO LTD,2000015012,2698,#,NW1 5QE,,
Department for Transport,Department for Transport,21/11/2016,Publicity,Airport Capacity,ABBOTT MEAD VICKERS BBDO LTD,2000015012,11559.45,#,NW1 5QE,,
Department for Transport,Department for Transport,21/11/2016,Publicity,Group Communications,Carat,2000015013,78249.87,#,NW31 3BF,,
Department for Transport,Department for Transport,21/11/2016,Research,Air Accident Investigation Branch,name removed ,2000015037,1784.5,#,SP4 6ER,,
Department for Transport,Department for Transport,21/11/2016,Research Grant-CG,Local,TRANSPORT FOR LONDON,2000015016,31568.77,Cycleways and Footways UKRLG research projects,SE10 1AJ,,
Department for Transport,Department for Transport,21/11/2016,Research Grant-PS,Strategic Roads,Vivacity Labs Limited,2000015044,7500,M4 Junction 18a Road Study Grant,EC1A 2BN,,
Department for Transport,Department for Transport,21/11/2016,Stationery (Non-stk),DG_Rail - Passenger Services,Banner Business Services Ltd,2000015021,1.01,0483006 BANNER PENCIL SHARPENER DBL HOLE,S9 1XU,,
Department for Transport,Department for Transport,21/11/2016,Stationery (Non-stk),DG_Rail - Passenger Services,Banner Business Services Ltd,2000015021,5.33,0505050 WB STYLO STIK BALLPOINT PEN BLAC,S9 1XU,,
Department for Transport,Department for Transport,21/11/2016,Stationery (Non-stk),DG_Rail - Passenger Services,Banner Business Services Ltd,2000015021,5.33,0505051 WB STYLO STIK BALLPOINT PEN BLUE,S9 1XU,,
Department for Transport,Department for Transport,21/11/2016,Stationery (Non-stk),DG_Rail - Passenger Services,Banner Business Services Ltd,2000015021,120.1,0510149 RAPESCO AV-79 HD STAPLER SILV 07,S9 1XU,,
Department for Transport,Department for Transport,21/11/2016,Stationery (Non-stk),DG_Rail - Passenger Services,Banner Business Services Ltd,2000015021,5.62,0540031 RECYCLED SCISSORS 203MM 8IN E-10,S9 1XU,,
Department for Transport,Department for Transport,21/11/2016,Stationery (Non-stk),DG_Rail - Passenger Services,Banner Business Services Ltd,2000015021,6.14,0570010 RAPESCO STAPLES 923 SERIES 8MM B,S9 1XU,,
Department for Transport,Department for Transport,21/11/2016,Stationery (Non-stk),DG_Rail - Passenger Services,Banner Business Services Ltd,2000015021,46.7,0570466 RAPESCO FLAT CLINCH TOP STAPLER,S9 1XU,,
Department for Transport,Department for Transport,21/11/2016,Stationery (Non-stk),DG_Rail - Passenger Services,Banner Business Services Ltd,2000015021,1.32,0590024 BANNER BAR TAG 76MM GREEN PK100,S9 1XU,,
Department for Transport,Department for Transport,21/11/2016,Stationery (Non-stk),DG_Rail - Passenger Services,Banner Business Services Ltd,2000015021,2.39,0985286 LE BLOC INTERCON MONITOR STAND 1,S9 1XU,,
Department for Transport,Department for Transport,21/11/2016,Stationery (Non-stk),DG_Rail - Passenger Services,Banner Business Services Ltd,2000015021,4.3,0985287 LE BLOC INTERCON MONITOR STAND 2,S9 1XU,,
Department for Transport,Department for Transport,21/11/2016,Stationery (Non-stk),DG_Rail - Passenger Services,Banner Business Services Ltd,2000015021,7.63,1190303 WASHING UP LIQUID 550ML BLUE,S9 1XU,,
Department for Transport,Department for Transport,21/11/2016,Stationery (Non-stk),DG_Rail - Passenger Services,Banner Business Services Ltd,2000015021,37.03,1230106 NATURALE P&S OYSTER 120G 110X220,S9 1XU,,
Department for Transport,Department for Transport,21/11/2016,Stationery (Non-stk),DG_Rail - Passenger Services,Banner Business Services Ltd,2000015021,29.52,1230521 BANNER BRIGHT SOLID ID WALLET A4,S9 1XU,,
Department for Transport,Department for Transport,21/11/2016,Stationery (Non-stk),DG_Rail - Passenger Services,Banner Business Services Ltd,2000015021,169.68,5000504 GRAFFICO PP TWIN-WIRE NOTEBOOK A,S9 1XU,,
Department for Transport,Department for Transport,21/11/2016,Stationery (Non-stk),DG_Rail - Passenger Services,Banner Business Services Ltd,2000015021,80.64,5000505 GRAFFICO PP TWIN-WIRE NOTEBOOK A,S9 1XU,,
Department for Transport,Department for Transport,21/11/2016,Stationery (Non-stk),DG_Rail - Passenger Services,Banner Business Services Ltd,2000015021,2.23,8300002 HIMARK DRYWIPE BULLET TIP MKR BL,S9 1XU,,
Department for Transport,Department for Transport,21/11/2016,Stationery (Non-stk),DG_Rail - Passenger Services,Banner Business Services Ltd,2000015021,2.23,8300004 HIMARK DRYWIPE BULLET TIP MKR BL,S9 1XU,,
Department for Transport,Department for Transport,21/11/2016,Stationery (Non-stk),DG_Rail - Passenger Services,Banner Business Services Ltd,2000015021,2.38,8300005 HIMARK DRYWIPE BULLET TIP MKR GR,S9 1XU,,
Department for Transport,Department for Transport,21/11/2016,Stationery (Non-stk),DG_Rail - Passenger Services,Banner Business Services Ltd,2000015021,9.12,8300006 HIMARK HIGHLIGHTER PEN YELLOW BO,S9 1XU,,
Department for Transport,Department for Transport,21/11/2016,Stationery (Non-stk),DG_Rail - Passenger Services,Banner Business Services Ltd,2000015021,5.47,8300007 HIMARK HIGHLIGHTER PEN PINK BOX1,S9 1XU,,
Department for Transport,Department for Transport,21/11/2016,Stationery (Non-stk),DG_Rail - Passenger Services,Banner Business Services Ltd,2000015021,5.47,8300008 HIMARK HIGHLIGHTER PEN BLUE BOX1,S9 1XU,,
Department for Transport,Department for Transport,21/11/2016,Stationery (Non-stk),DG_Rail - Passenger Services,Banner Business Services Ltd,2000015021,5.47,8300010 HIMARK HIGHLIGHTER PEN GREEN BOX,S9 1XU,,
Department for Transport,Department for Transport,21/11/2016,Stationery (Non-stk),DG_Rail - Passenger Services,Banner Business Services Ltd,2000015021,7.18,9012535 BANNER RCYC ENV C4 90G S/S WHT B,S9 1XU,,
Department for Transport,Department for Transport,21/11/2016,Stationery (Non-stk),DG_Rail - Passenger Services,Banner Business Services Ltd,2000015021,5.28,9090024 BANNER PAGE MARKER 38X20MM BRILL,S9 1XU,,
Department for Transport,Department for Transport,21/11/2016,Stationery (Non-stk),DG_Rail - Passenger Services,Banner Business Services Ltd,2000015021,6.19,9095020 CONTRACT SLF STCK NOTES 76X76 IV,S9 1XU,,
Department for Transport,Department for Transport,21/11/2016,Stationery (Non-stk),DG_Rail - Passenger Services,Banner Business Services Ltd,2000015021,9.36,9095021 CONTRACT SLF STCK NOTES 76X127 I,S9 1XU,,
Department for Transport,Department for Transport,21/11/2016,Stationery (Non-stk),DG_Rail - Passenger Services,Banner Business Services Ltd,2000015021,7.56,9100037 BANNER RCYC SPIRAL NOTEBOOK 203X,S9 1XU,,
Department for Transport,Department for Transport,21/11/2016,Stationery (Non-stk),DG_Rail - Passenger Services,Banner Business Services Ltd,2000015021,32.83,9240027 BANNER RUBBER GRIP GEL INK PEN B,S9 1XU,,
Department for Transport,Department for Transport,21/11/2016,Stationery (Non-stk),DG_Rail - Passenger Services,Banner Business Services Ltd,2000015021,33.26,9240028 BANNER RUBBER GRIP GEL INK PEN B,S9 1XU,,
Department for Transport,Department for Transport,21/11/2016,Stationery (Non-stk),DG_Rail - Passenger Services,Banner Business Services Ltd,2000015021,22.18,9240029 BANNER RUBBER GRIP GEL INK PEN R,S9 1XU,,
Department for Transport,Department for Transport,21/11/2016,Stationery (Non-stk),DG_Rail - Passenger Services,Banner Business Services Ltd,2000015021,2.3,9250002 BANNER OFFICE PENCIL ERS TIP HB,S9 1XU,,
Department for Transport,Department for Transport,21/11/2016,Stationery (Non-stk),DG_Rail - Passenger Services,Banner Business Services Ltd,2000015021,3.31,9250025 BANNER AUTOMATIC PENCIL HB 92500,S9 1XU,,
Department for Transport,Department for Transport,21/11/2016,Stationery (Non-stk),DG_Rail - Passenger Services,Banner Business Services Ltd,2000015021,1.92,9280001 BANNER PAPERCLIP LG PLAIN 30MM B,S9 1XU,,
Department for Transport,Department for Transport,21/11/2016,Stationery (Non-stk),DG_Rail - Passenger Services,Banner Business Services Ltd,2000015021,1.42,9280022 BANNER BAR TAG 100MM ORANGE PK10,S9 1XU,,
Department for Transport,Department for Transport,21/11/2016,Stationery (Non-stk),DG_Rail - Passenger Services,Banner Business Services Ltd,2000015021,1.7,9280025 BANNER BAR TAG 152MM BLUE PK100,S9 1XU,,
Department for Transport,Department for Transport,21/11/2016,Stationery (Non-stk),DG_Rail - Passenger Services,Banner Business Services Ltd,2000015021,2.16,9285001 FOLDBACK CLIP 19MM BOX10,S9 1XU,,
Department for Transport,Department for Transport,21/11/2016,Stationery (Non-stk),DG_Rail - Passenger Services,Banner Business Services Ltd,2000015021,5.28,9285002 FOLDBACK CLIP 32MM BOX10,S9 1XU,,
Department for Transport,Department for Transport,21/11/2016,Stationery (Non-stk),DG_Rail - Passenger Services,Banner Business Services Ltd,2000015021,2.52,9285003 FOLDBACK CLIP 41MM BOX10,S9 1XU,,
Department for Transport,Department for Transport,21/11/2016,Stationery (Non-stk),DG_Rail - Passenger Services,Banner Business Services Ltd,2000015021,3.96,9285004 FOLDBACK CLIP 51MM BOX10,S9 1XU,,
Department for Transport,Department for Transport,21/11/2016,Stationery (Non-stk),DG_Rail - Passenger Services,Banner Business Services Ltd,2000015021,1.01,9300003 CLEAR PLASTIC RULER 300MM,S9 1XU,,
Department for Transport,Department for Transport,21/11/2016,Stationery (Non-stk),DG_Rail - Passenger Services,Banner Business Services Ltd,2000015021,2.15,9310042 BANNER PP PACKAGING TAPE 66M BUF,S9 1XU,,
Department for Transport,Department for Transport,21/11/2016,Stationery (Non-stk),DG_Rail - Passenger Services,Banner Business Services Ltd,2000015021,1.99,9310109 BANNER EASY TEAR ADH TAPE 24MMX6,S9 1XU,,
Department for Transport,Department for Transport,21/11/2016,Stationery (Non-stk),DG_Rail - Passenger Services,Banner Business Services Ltd,2000015021,0.72,9372003 BANNER MEDIUM GLUE STICK 20G,S9 1XU,,
Department for Transport,Department for Transport,21/11/2016,Stationery (Non-stk),DG_Rail - Passenger Services,Banner Business Services Ltd,2000015021,0.6,9372005 BANNER STICKY TAC 70G,S9 1XU,,
Department for Transport,Department for Transport,21/11/2016,Stationery (Non-stk),DG_Rail - Passenger Services,Banner Business Services Ltd,2000015021,4.99,9400076 BANNER PPR RING BINDER A4 25MM B,S9 1XU,,
Department for Transport,Department for Transport,21/11/2016,Stationery (Non-stk),DG_Rail - Passenger Services,Banner Business Services Ltd,2000015021,4.42,9410001 BANNER PP MPCH POCKET A4 50MU PK,S9 1XU,,
Department for Transport,Department for Transport,21/11/2016,Stationery (Non-stk),DG_Rail - Passenger Services,Banner Business Services Ltd,2000015021,7.73,9410003 BANNER PP CUT FLUSH FOLDER A4 CL,S9 1XU,,
Department for Transport,Department for Transport,21/11/2016,Stationery (Non-stk),DG_Rail - Passenger Services,Banner Business Services Ltd,2000015021,11.23,9410403 BANNER PP CUT FLUSH FOLDER A4 AS,S9 1XU,,
Department for Transport,Department for Transport,21/11/2016,Support Services,HSR Strategy,Department Of Energy & Climate,2000015017,1242,#,YO1 7PX,,
Department for Transport,Department for Transport,21/11/2016,Training,Group Communications,Towards Outstanding Leadership LLP,2000015042,15800,#,CV8 1LQ,,
Department for Transport,Department for Transport,21/11/2016,Training Aids,DG_Rail - Passenger Services,TMS Development International Ltd,2000015032,32640,#,YO24 4FL,,
Department for Transport,Department for Transport,22/11/2016,Agency Staff Costs,Group Commercial Services,BROOK STREET (UK) LIMITED,2000015105,609.42,#,AL1 4JB,,
Department for Transport,Department for Transport,22/11/2016,Agency Staff Costs,DG_Rail - Passenger Services,BROOK STREET (UK) LIMITED,2000015105,752.26,#,AL1 4JB,,
Department for Transport,Department for Transport,22/11/2016,Agency Staff Costs,DG_Rail - Passenger Services,BROOK STREET (UK) LIMITED,2000015105,826.14,#,AL1 4JB,,
Department for Transport,Department for Transport,22/11/2016,Agency Staff Costs,DG_Rail - Passenger Services,BROOK STREET (UK) LIMITED,2000015105,826.14,#,AL1 4JB,,
Department for Transport,Department for Transport,22/11/2016,Agency Staff Costs,DG_Rail - Passenger Services,BROOK STREET (UK) LIMITED,2000015105,849.74,#,AL1 4JB,,
Department for Transport,Department for Transport,22/11/2016,Agency Staff Costs,DG_Rail - Passenger Services,BROOK STREET (UK) LIMITED,2000015105,985.32,#,AL1 4JB,,
Department for Transport,Department for Transport,22/11/2016,Agency Staff Costs,DG_Rail - Passenger Services,BROOK STREET (UK) LIMITED,2000015105,985.32,#,AL1 4JB,,
Department for Transport,Department for Transport,22/11/2016,Agency Staff Costs,HSR Programme and Funding,CAPITA BUSINESS SERVICES LTD,2000015093,3123.66,#,DL1 9HN,,
Department for Transport,Department for Transport,22/11/2016,Agency Staff Costs,DG_Rail - Passenger Services,CAPITA BUSINESS SERVICES LTD,2000015093,913.98,#,DL1 9HN,,
Department for Transport,Department for Transport,22/11/2016,Agency Staff Costs,HSR Programme and Funding,CAPITA BUSINESS SERVICES LTD,2000015093,2882.16,#,DL1 9HN,,
Department for Transport,Department for Transport,22/11/2016,Agency Staff Costs,HSR Programme and Funding,CAPITA BUSINESS SERVICES LTD,2000015093,2642.16,#,DL1 9HN,,
Department for Transport,Department for Transport,22/11/2016,Agency Staff Costs,HSR Programme and Funding,CAPITA BUSINESS SERVICES LTD,2000015093,3194.16,#,DL1 9HN,,
Department for Transport,Department for Transport,22/11/2016,Agency Staff Costs,HSR Programme and Funding,CAPITA BUSINESS SERVICES LTD,2000015093,3269.16,#,DL1 9HN,,
Department for Transport,Department for Transport,22/11/2016,Agency Staff Costs,HSR Programme and Funding,CAPITA BUSINESS SERVICES LTD,2000015093,1185.26,#,DL1 9HN,,
Department for Transport,Department for Transport,22/11/2016,Agents Fees,Group Communications,Carat,2000015096,4.61,#,NW31 3BF,,
Department for Transport,Department for Transport,22/11/2016,Agents Fees,Group Communications,Carat,2000015096,13.8,#,NW31 3BF,,
Department for Transport,Department for Transport,22/11/2016,Agents Fees,Group Communications,Carat,2000015096,18.57,#,NW31 3BF,,
Department for Transport,Department for Transport,22/11/2016,Cap Grt Pri Sec-Cos.,Rail NDPB's,Network Rail Infstrcture (Treasury),2000015092,150000000,Network Rail Loan Payment UR097,NW1 2DN,,
Department for Transport,Department for Transport,22/11/2016,Car Tax & Insurance,"Road Safety, Standards and Services",Ford Motor Company Limited,2000015120,55,#,CM13 3BW,,
Department for Transport,Department for Transport,22/11/2016,Car Tax & Insurance,"Road Safety, Standards and Services",Ford Motor Company Limited,2000015120,55,#,CM13 3BW,,
Department for Transport,Department for Transport,22/11/2016,Car Tax & Insurance,"Road Safety, Standards and Services",Ford Motor Company Limited,2000015120,55,#,CM13 3BW,,
Department for Transport,Department for Transport,22/11/2016,Car Tax & Insurance,"Road Safety, Standards and Services",Ford Motor Company Limited,2000015120,55,#,CM13 3BW,,
Department for Transport,Department for Transport,22/11/2016,Car Tax & Insurance,"Road Safety, Standards and Services",Ford Motor Company Limited,2000015120,55,#,CM13 3BW,,
Department for Transport,Department for Transport,22/11/2016,Cars Maintenance,"Road Safety, Standards and Services",Stapletons Tyre Services,2000015118,693.65,#,SG6 2HU,,
Department for Transport,Department for Transport,22/11/2016,Contract Cleaning,"Road Safety, Standards and Services",Southwark Hand Car Wash &,2000015122,1035,#,SE1 5HG,,
Department for Transport,Department for Transport,22/11/2016,Financial Consultanc,Maritime,KPMG,100021176,207744,Invoiced in error,WD17 1DE,,
Department for Transport,Department for Transport,22/11/2016,Financial Consultanc,Maritime,KPMG,100021176,-207744,Credit note in relation to 5106064114,WD17 1DE,,
Department for Transport,Department for Transport,22/11/2016,IT Ser Running Costs,Group Commercial Services,ITO World Ltd,2000015099,1248,#,IP4 1AQ,,
Department for Transport,Department for Transport,22/11/2016,IT Ser Running Costs,Group Communications,Kainos Software Ltd,2000015100,834,#,BT7 1NT,,
Department for Transport,Department for Transport,22/11/2016,Legal Consultancy,DG_Rail - Passenger Services,Eversheds LLP,2000015109,77035.56,#,EC2V 7WS,,
Department for Transport,Department for Transport,22/11/2016,Maintenance Other,Strategic Roads,TDC SYSTEMS LIMITED,2000015104,16250,#,BS24 9BP,,
Department for Transport,Department for Transport,22/11/2016,Maintenance Other,Strategic Roads,TDC SYSTEMS LIMITED,2000015104,575,#,BS24 9BP,,
Department for Transport,Department for Transport,22/11/2016,Maintenance Other,Strategic Roads,TDC SYSTEMS LIMITED,2000015104,862.56,#,BS24 9BP,,
Department for Transport,Department for Transport,22/11/2016,Maintenance Other,Strategic Roads,TDC SYSTEMS LIMITED,2000015104,2500,#,BS24 9BP,,
Department for Transport,Department for Transport,22/11/2016,Maintenance Other,Strategic Roads,TDC SYSTEMS LIMITED,2000015104,3945,#,BS24 9BP,,
Department for Transport,Department for Transport,22/11/2016,Maintenance Other,Strategic Roads,TDC SYSTEMS LIMITED,2000015104,12733,#,BS24 9BP,,
Department for Transport,Department for Transport,22/11/2016,Maintenance Other,Strategic Roads,TDC SYSTEMS LIMITED,2000015104,3710,#,BS24 9BP,,
Department for Transport,Department for Transport,22/11/2016,Maintenance Other,Strategic Roads,TDC SYSTEMS LIMITED,2000015104,2900,#,BS24 9BP,,
Department for Transport,Department for Transport,22/11/2016,Maintenance Other,Strategic Roads,TDC SYSTEMS LIMITED,2000015104,3705,#,BS24 9BP,,
Department for Transport,Department for Transport,22/11/2016,Maintenance Other,Strategic Roads,TDC SYSTEMS LIMITED,2000015104,3150,#,BS24 9BP,,
Department for Transport,Department for Transport,22/11/2016,Publicity,Group Communications,Carat,2000015096,6026.82,#,NW31 3BF,,
Department for Transport,Department for Transport,22/11/2016,Publicity,Group Communications,Carat,2000015096,17856.8,#,NW31 3BF,,
Department for Transport,Department for Transport,22/11/2016,Publicity,Group Communications,Carat,2000015096,24109.29,#,NW31 3BF,,
Department for Transport,Department for Transport,22/11/2016,Research Grant-PS,Analysis & Strategy,Modalgo Ltd,2000015127,7422,T-TRIG 30% Payments July Open Call,DE45 1LG,,
Department for Transport,Department for Transport,22/11/2016,Services prov by OGD,Air Accident Investigation Branch,Alseamar,2000015130,86847.6,#,13590,,
Department for Transport,Department for Transport,22/11/2016,Storage & Distributi,Group Finance,Iron Mountain (UK) Ltd,2000015098,2240.92,#,EH54 7DF,,
Department for Transport,Department for Transport,22/11/2016,Trade Plate Expenses,Local,Ford Motor Company Limited,2000015120,26107.68,Community Transport Minibus Fund Round 1,CM13 3BW,,
Department for Transport,Department for Transport,22/11/2016,Trade Plate Expenses,Local,Ford Motor Company Limited,2000015120,26107.68,Community Transport Minibus Fund Round 1,CM13 3BW,,
Department for Transport,Department for Transport,22/11/2016,Trade Plate Expenses,Local,Ford Motor Company Limited,2000015120,26107.68,Community Transport Minibus Fund Round 1,CM13 3BW,,
Department for Transport,Department for Transport,22/11/2016,Trade Plate Expenses,Local,Ford Motor Company Limited,2000015120,22824.96,Community Transport Minibus Fund Round 1,CM13 3BW,,
Department for Transport,Department for Transport,22/11/2016,Trade Plate Expenses,Local,Ford Motor Company Limited,2000015120,26107.68,Community Transport Minibus Fund Round 1,CM13 3BW,,
Department for Transport,Department for Transport,22/11/2016,Trade Plate Expenses,Local,Ford Motor Company Limited,2000015120,26647.68,Community Transport Minibus Fund Round 1,CM13 3BW,,
Department for Transport,Department for Transport,22/11/2016,Trade Plate Expenses,Local,Ford Motor Company Limited,2000015120,-23438.16,Community Transport Minibus Fund Round 1,CM13 3BW,,
Department for Transport,Department for Transport,22/11/2016,Trade Plate Expenses,Local,Ford Motor Company Limited,2000015120,-26358.48,Community Transport Minibus Fund Round 1,CM13 3BW,,
Department for Transport,Department for Transport,22/11/2016,Trade Plate Expenses,Local,Ford Motor Company Limited,2000015120,-26718.48,Community Transport Minibus Fund Round 1,CM13 3BW,,
Department for Transport,Department for Transport,22/11/2016,Trade Plate Expenses,Local,Ford Motor Company Limited,2000015120,-26994.48,Community Transport Minibus Fund Round 1,CM13 3BW,,
Department for Transport,Department for Transport,22/11/2016,Trade Plate Expenses,Local,Ford Motor Company Limited,2000015120,-26718.48,Community Transport Minibus Fund Round 1,CM13 3BW,,
Department for Transport,Department for Transport,22/11/2016,Trade Plate Expenses,Local,Ford Motor Company Limited,2000015120,-26718.48,Community Transport Minibus Fund Round 1,CM13 3BW,,
Department for Transport,Department for Transport,22/11/2016,Trade Plate Expenses,Local,Ford Motor Company Limited,2000015120,-23438.16,Community Transport Minibus Fund Round 1,CM13 3BW,,
Department for Transport,Department for Transport,22/11/2016,Trade Plate Expenses,Local,Ford Motor Company Limited,2000015120,-26358.48,Community Transport Minibus Fund Round 1,CM13 3BW,,
Department for Transport,Department for Transport,22/11/2016,Training,Air Accident Investigation Branch,Helitrain Ltd,2000015126,658,#,GL8 8DQ,,
Department for Transport,Department for Transport,22/11/2016,Training,Group Human Resources,Tavistock Institute,2000015103,21000,#,EC2A 4UE,,
Department for Transport,Department for Transport,22/11/2016,Training,Group Human Resources,KPMG LLP T/A CSL-KPMG LLP,2000015124,2384,#,E14 5GL,,
Department for Transport,Department for Transport,22/11/2016,Training,Group Human Resources,KPMG LLP T/A CSL-KPMG LLP,2000015124,2316,#,E14 5GL,,
Department for Transport,Department for Transport,22/11/2016,Training,Group Human Resources,KPMG LLP T/A CSL-KPMG LLP,2000015124,2316,#,E14 5GL,,
Department for Transport,Department for Transport,22/11/2016,Training,Group Human Resources,KPMG LLP T/A CSL-KPMG LLP,2000015124,2316,#,E14 5GL,,
Department for Transport,Department for Transport,22/11/2016,Training,Group Human Resources,KPMG LLP T/A CSL-KPMG LLP,2000015124,3816,#,E14 5GL,,
Department for Transport,Department for Transport,22/11/2016,Training,Group Human Resources,KPMG LLP T/A CSL-KPMG LLP,2000015124,5000,#,E14 5GL,,
Department for Transport,Department for Transport,22/11/2016,Training,Group Human Resources,KPMG LLP T/A CSL-KPMG LLP,2000015124,1500,#,E14 5GL,,
Department for Transport,Department for Transport,22/11/2016,Training,Group Human Resources,KPMG LLP T/A CSL-KPMG LLP,2000015124,4354,#,E14 5GL,,
Department for Transport,Department for Transport,22/11/2016,Training,Group Human Resources,KPMG LLP T/A CSL-KPMG LLP,2000015124,2500,#,E14 5GL,,
Department for Transport,Department for Transport,22/11/2016,Training,Group Human Resources,KPMG LLP T/A CSL-KPMG LLP,2000015124,732,#,E14 5GL,,
Department for Transport,Department for Transport,22/11/2016,Training,DG_RAIL - Network Services,EML Learning Ltd,2000015114,640,Econometrics for Policy Evaluation,LS1 9PX,,
Department for Transport,Department for Transport,22/11/2016,Transport  Consult,DG_Rail - Passenger Services,HALCROW GROUP LTD,2000015097,35490.17,#,W6 7EF,,
Department for Transport,Department for Transport,22/11/2016,Transport  Consult,DG_Rail - Passenger Services,Tracsis plc,2000015123,18036,#,DE24 8ZS,,
Department for Transport,Department for Transport,22/11/2016,Waste disposal/Refus,Air Accident Investigation Branch,Grundon Waste Management Ltd,2000015094,480,#,OX10 6LX,,
Department for Transport,Department for Transport,23/11/2016,Agency Staff Costs,Group Communications,CAPITA BUSINESS SERVICES LTD,2000015174,8624.23,#,DL1 9HN,,
Department for Transport,Department for Transport,23/11/2016,Agency Staff Costs,Major Projects,Experis Ltd,2000015180,12080.04,Interim resource,EC2M 2RB,,
Department for Transport,Department for Transport,23/11/2016,Agency Staff Costs,Major Projects,Experis Ltd,2000015180,4733.46,Interim resource,EC2M 2RB,,
Department for Transport,Department for Transport,23/11/2016,Agency Staff Costs,DG_Rail - Passenger Services,BROOK STREET (UK) LIMITED,2000015190,1024.63,#,AL1 4JB,,
Department for Transport,Department for Transport,23/11/2016,Agency Staff Costs,DG_Rail - Passenger Services,Experis Ltd,2000015180,5999.4,#,EC2M 2RB,,
Department for Transport,Department for Transport,23/11/2016,Cap Grt Loc Auth,DG_RAIL - Network Services,NEXUS,2000015192,2659000,NEXUS September Capital,NE1 4AX,,
Department for Transport,Department for Transport,23/11/2016,Cap Grt Loc Auth,DG_RAIL - Network Services,NEXUS,2000015192,2659000,NEXUS September Capital,NE1 4AX,,
Department for Transport,Department for Transport,23/11/2016,Cap Grt Pri Sec-Cos.,"Energy, Technology and International",Armstrong Renewables,2000015208,4000,Armstrong Re Sep 16 #4000,NE37 2SH,,
Department for Transport,Department for Transport,23/11/2016,Cap Grt Pri Sec-Cos.,"Energy, Technology and International",Baird Electrical Contractors Ltd,2000015222,500,Baird Electrical Aug 16 #500,BT42 1EL,,
Department for Transport,Department for Transport,23/11/2016,Cap Grt Pri Sec-Cos.,"Energy, Technology and International",Baird Electrical Contractors Ltd,2000015222,3000,Baird Electrical Sep 16 #3000,BT42 1EL,,
Department for Transport,Department for Transport,23/11/2016,Cap Grt Pri Sec-Cos.,"Energy, Technology and International",BMM Contracts Ltd,2000015214,2500,BMM Energy Solutions Sep 2016 #2500,ML6 8NY,,
Department for Transport,Department for Transport,23/11/2016,Cap Grt Pri Sec-Cos.,"Energy, Technology and International",Diamond Controls Ltd,2000015220,500,Diamond Controls Jul 16 #500,NR5 9JR,,
Department for Transport,Department for Transport,23/11/2016,Cap Grt Pri Sec-Cos.,"Energy, Technology and International",Earth Electrical (Southern) Ltd,2000015213,17500,Earth Electrical Oct 16 #17500,GU14 8DS,,
Department for Transport,Department for Transport,23/11/2016,Cap Grt Pri Sec-Cos.,"Energy, Technology and International",Earth Electrical (Southern) Ltd,2000015213,2500,Earth Electrical Sep 16 #2500,GU14 8DS,,
Department for Transport,Department for Transport,23/11/2016,Cap Grt Pri Sec-Cos.,"Energy, Technology and International",East Green Energy Limited,2000015224,500,East Green Energy Sep 16 #500,IP12 1BH,,
Department for Transport,Department for Transport,23/11/2016,Cap Grt Pri Sec-Cos.,"Energy, Technology and International",EV Charging Solutions,2000015206,15500,EV Charging Solutions Oct 16 #15500,NG7 3EN,,
Department for Transport,Department for Transport,23/11/2016,Cap Grt Pri Sec-Cos.,"Energy, Technology and International",Evergreen MAC,2000015210,500,EVERGREEN MAC Oct 2016 #500,DY10 4LX,,
Department for Transport,Department for Transport,23/11/2016,Cap Grt Pri Sec-Cos.,HSR Programme and Funding,Eversheds LLP,2000015205,385000,HS2 Property Purchase,CF10 5BT,,
Department for Transport,Department for Transport,23/11/2016,Cap Grt Pri Sec-Cos.,HSR Programme and Funding,Eversheds LLP,2000015205,702500,HS2 Property Purchase,CF10 5BT,,
Department for Transport,Department for Transport,23/11/2016,Cap Grt Pri Sec-Cos.,"Energy, Technology and International",LA Bristol Ltd - T/A LA Electrical,2000015215,3000,LA Bristol Ltd Sep 2016 #3000,BS35 5RE,,
Department for Transport,Department for Transport,23/11/2016,Cap Grt Pri Sec-Cos.,"Energy, Technology and International",LCS Energy Ltd,2000015223,500,LCS Energy Jun 16 #500,DE74 2XD,,
Department for Transport,Department for Transport,23/11/2016,Cap Grt Pri Sec-Cos.,"Energy, Technology and International",Munro Wilson Limited,2000015217,500,Munro Wilson May 16 #500,SL1 4LP,,
Department for Transport,Department for Transport,23/11/2016,Cap Grt Pri Sec-Cos.,"Energy, Technology and International",Norcroft Energy,2000015207,500,Norcroft Energy Sep 2016 #500,S36 7JA,,
Department for Transport,Department for Transport,23/11/2016,Cap Grt Pri Sec-Cos.,"Energy, Technology and International",Orton & Wenlock Developments Ltd,2000015218,990,Orton & Wenlock Sep 16 #990,CO7 0ST,,
Department for Transport,Department for Transport,23/11/2016,Cap Grt Pri Sec-Cos.,"Energy, Technology and International",Pod Point,2000015200,500,POD Point May 16 #500,E1 1EE,,
Department for Transport,Department for Transport,23/11/2016,Cap Grt Pri Sec-Cos.,"Energy, Technology and International",Pod Point,2000015200,80500,POD Point Sep 16 #80500,E1 1EE,,
Department for Transport,Department for Transport,23/11/2016,Cap Grt Pri Sec-Cos.,"Energy, Technology and International",Puragen,2000015209,500,Puragen Oct 16 #500,DT1 3AR,,
Department for Transport,Department for Transport,23/11/2016,Cap Grt Pri Sec-Cos.,"Energy, Technology and International",Rolec Services Limited,2000015199,1500,ROLEC Sep 2016 #1500,PE20 1Q,,
Department for Transport,Department for Transport,23/11/2016,Cap Grt Pri Sec-Cos.,"Energy, Technology and International",Schneider Electric,2000015201,29000,SCHNEIDER ELEC #29000 Apr 2016,W1W 6XX,,
Department for Transport,Department for Transport,23/11/2016,Cap Grt Pri Sec-Cos.,"Energy, Technology and International",Schneider Electric,2000015201,11500,SCHNEIDER ELEC #11500 Sep 2016,W1W 6XX,,
Department for Transport,Department for Transport,23/11/2016,Cap Grt Pri Sec-Cos.,"Energy, Technology and International",SRG Electrical Ltd,2000015216,8500,SRG Elec Oct 16 #8500,CR8 1HA,,
Department for Transport,Department for Transport,23/11/2016,Cap Grt Pri Sec-Cos.,"Energy, Technology and International",SRG Electrical Ltd,2000015216,2500,SRG Elec Sep 16 #2500,CR8 1HA,,
Department for Transport,Department for Transport,23/11/2016,Conferences / Semina,Maritime,CORPORATION OF TRINITY HOUSE,2000015177,1650,#,EC3N 4DH,,
Department for Transport,Department for Transport,23/11/2016,CurrGrt Las in AEF/A,Local,BRISTOL CITY COUNCIL,2000015226,1650000,STTY Payment to Bristol - 75%,BS99 7BL,,
Department for Transport,Department for Transport,23/11/2016,Financial Consultanc,Airport Capacity,ERNST & YOUNG LLP,2000015181,65028,#,SE1 2AF,,
Department for Transport,Department for Transport,23/11/2016,Financial Consultanc,Group Finance,Crawford & Co Adjusters (UK) Ltd,2000015203,13920,#,B2 2PF,,
Department for Transport,Department for Transport,23/11/2016,Financial Consultanc,DG_Rail - Passenger Services,GRANT THORNTON UK LLP,2000015193,75498.32,#,NN4 7YE,,
Department for Transport,Department for Transport,23/11/2016,Investigation Servic,Group Assurance,Procordia Ltd,2000015202,1887.6,#,TN39 4SR,,
Department for Transport,Department for Transport,23/11/2016,Investigation Servic,Group Assurance,Procordia Ltd,2000015202,8377.2,#,TN39 4SR,,
Department for Transport,Department for Transport,23/11/2016,Legal Consultancy,Major Projects,DLA PIPER UK LLP,2000015178,8022.16,Legal advice,M2 3DL,,
Department for Transport,Department for Transport,23/11/2016,Legal Consultancy,DG_Rail - Passenger Services,Fieldfisher LLP,2000015204,9322.58,#,EC4R 3T,,
Department for Transport,Department for Transport,23/11/2016,Legal Consultancy,"Road Safety, Standards and Services",Government Legal Department,2000015172,1735.97,#,WC2B 4TS,,
Department for Transport,Department for Transport,23/11/2016,Legal Consultancy,HSR Phase 1 Sponsor,Counsel,2000015212,11040.01,#,EC4Y 7BY,,
Department for Transport,Department for Transport,23/11/2016,Maintenance Other,Strategic Roads,TDC SYSTEMS LIMITED,2000015188,7160,#,BS24 9BP,,
Department for Transport,Department for Transport,23/11/2016,Occup Health Scheme,Group Human Resources,Health Management Ltd,2000015182,3308.42,#,BN8 5NN,,
Department for Transport,Department for Transport,23/11/2016,Occup Health Scheme,Group Human Resources,Health Management Ltd,2000015182,1647.3,#,BN8 5NN,,
Department for Transport,Department for Transport,23/11/2016,Property Consultancy,Maritime,FAITHFUL & GOULD LTD,2000015171,8030.63,#,CF24 0AD,,
Department for Transport,Department for Transport,23/11/2016,Publications for Res,Group Communications,CSM Sport & Entertainment LLP,2000015219,450,#,DA14 5HS,,
Department for Transport,Department for Transport,23/11/2016,Publications for Res,Group Communications,Domarn Limited,2000015186,1260,#,EC1A 4EN,,
Department for Transport,Department for Transport,23/11/2016,Publications for Res,Group Human Resources,CSM Sport & Entertainment LLP,2000015219,1443,#,DA14 5HS,,
Department for Transport,Department for Transport,23/11/2016,Publications for Res,Principal Priv. Secretary & Head of Private Office,CSM Sport & Entertainment LLP,2000015219,858,#,DA14 5HS,,
Department for Transport,Department for Transport,23/11/2016,Publications for Res,"Energy, Technology and International",CSM Sport & Entertainment LLP,2000015219,1075,#,DA14 5HS,,
Department for Transport,Department for Transport,23/11/2016,Publicity,Group Communications,ABBOTT MEAD VICKERS BBDO LTD,2000015175,21000,#,NW1 5QE,,
Department for Transport,Department for Transport,23/11/2016,Recruitment,DG_Rail - Passenger Services,PENNA PLC,2000015185,22827.5,#,EC4M 7RD,,
Department for Transport,Department for Transport,23/11/2016,Research,HSR Strategy,OVE ARUP & PARTNERS,2000015184,66393.79,#,NE1 3PL,,
Department for Transport,Department for Transport,23/11/2016,Research Grant-PS,Analysis & Strategy,WaveReach Ltd,2000015225,7500,T-TRIG 30% Payments July Open Call,SY22 5HG,,
Department for Transport,Department for Transport,23/11/2016,Secondments,Group Human Resources,Driver & Vehicle Licensing Agency,2000015179,2596.58,#,SA6 7JL,,
Department for Transport,Department for Transport,23/11/2016,Support Services,"Energy, Technology and International",VEHICLE CERTIFICATION AGENCY,2000015189,30564.6,#,BS5 6XX,,
Department for Transport,Department for Transport,23/11/2016,Trade Plate Expenses,Local,Ford Motor Company Limited,2000015198,26718.48,Community Transport Minibus Fund Round 1,CM13 3BW,,
Department for Transport,Department for Transport,23/11/2016,Trade Plate Expenses,Local,Ford Motor Company Limited,2000015198,-26718.48,Community Transport Minibus Fund Round 1,CM13 3BW,,
Department for Transport,Department for Transport,23/11/2016,Trade Plate Expenses,Local,Ford Motor Company Limited,2000015198,-26388.48,Community Transport Minibus Fund Round 1,CM13 3BW,,
Department for Transport,Department for Transport,23/11/2016,Trade Plate Expenses,Local,Ford Motor Company Limited,2000015198,-26718.48,Community Transport Minibus Fund Round 1,CM13 3BW,,
Department for Transport,Department for Transport,23/11/2016,Trade Plate Expenses,Local,Ford Motor Company Limited,2000015198,-26388.48,Community Transport Minibus Fund Round 1,CM13 3BW,,
Department for Transport,Department for Transport,23/11/2016,Trade Plate Expenses,Local,Ford Motor Company Limited,2000015198,-26994.48,Community Transport Minibus Fund Round 1,CM13 3BW,,
Department for Transport,Department for Transport,23/11/2016,Trade Plate Expenses,Local,Ford Motor Company Limited,2000015198,-26718.48,Community Transport Minibus Fund Round 1,CM13 3BW,,
Department for Transport,Department for Transport,23/11/2016,Trade Plate Expenses,Local,Ford Motor Company Limited,2000015198,26317.68,Community Transport Minibus Fund Round 1,CM13 3BW,,
Department for Transport,Department for Transport,23/11/2016,Trade Plate Expenses,Local,Ford Motor Company Limited,2000015198,26923.68,Community Transport Minibus Fund Round 1,CM13 3BW,,
Department for Transport,Department for Transport,23/11/2016,Trade Plate Expenses,Local,Ford Motor Company Limited,2000015198,26647.68,Community Transport Minibus Fund Round 1,CM13 3BW,,
Department for Transport,Department for Transport,23/11/2016,Trade Plate Expenses,Local,Ford Motor Company Limited,2000015198,23364.96,Community Transport Minibus Fund Round 1,CM13 3BW,,
Department for Transport,Department for Transport,23/11/2016,Trade Plate Expenses,Local,Ford Motor Company Limited,2000015198,26647.68,Community Transport Minibus Fund Round 1,CM13 3BW,,
Department for Transport,Department for Transport,23/11/2016,Trade Plate Expenses,Local,Ford Motor Company Limited,2000015198,26287.68,Community Transport Minibus Fund Round 1,CM13 3BW,,
Department for Transport,Department for Transport,23/11/2016,Trade Plate Expenses,Local,Ford Motor Company Limited,2000015198,26317.68,Community Transport Minibus Fund Round 1,CM13 3BW,,
Department for Transport,Department for Transport,23/11/2016,Trade Plate Expenses,Local,Ford Motor Company Limited,2000015198,26647.68,Community Transport Minibus Fund Round 1,CM13 3BW,,
Department for Transport,Department for Transport,23/11/2016,Trade Plate Expenses,Local,Ford Motor Company Limited,2000015198,26647.68,Community Transport Minibus Fund Round 1,CM13 3BW,,
Department for Transport,Department for Transport,23/11/2016,Training,DG_RAIL - Network Services,Systra Ltd,2000015183,2500,Training in the Passenger Demand Forecasting Handbook,GU21 5BH,,
Department for Transport,Department for Transport,23/11/2016,Transport  Consult,Environment & International Transport Analysis,ATKINS LTD (TRANSPORT PLANNING),2000015176,7599.9,#,WR5 1TX,,
Department for Transport,Department for Transport,23/11/2016,Transport  Consult,DG_Rail - Passenger Services,ATKINS LTD (TRANSPORT PLANNING),2000015176,103910.32,#,WR5 1TX,,
Department for Transport,Department for Transport,23/11/2016,Transport  Consult,DG_Rail - Passenger Services,STEER DAVIES & GLEAVE LTD,2000015187,2788.2,#,SE1 9PD,,
Department for Transport,Department for Transport,23/11/2016,Treasury Solicitors,Corporate Finance,Government Legal Department,2000015172,2747.64,#,WC2B 4TS,,
Department for Transport,Department for Transport,24/11/2016,Agency Staff Costs,Local,BROOK STREET (UK) LIMITED,2000015282,641.58,Agency Staff Costs ,AL1 4JB,,
Department for Transport,Department for Transport,24/11/2016,Agency Staff Costs,Group Communications,CAPITA BUSINESS SERVICES LTD,2000015270,1686.66,#,DL1 9HN,,
Department for Transport,Department for Transport,24/11/2016,Agency Staff Costs,Major Projects,CAPITA BUSINESS SERVICES LTD,2000015270,6655.82,Interim resource,DL1 9HN,,
Department for Transport,Department for Transport,24/11/2016,Agency Staff Costs,DG_Rail - Passenger Services,Buena Vista Solutions Limited,2000015299,21630,#,SW1P 4RW,,
Department for Transport,Department for Transport,24/11/2016,Agency Staff Costs,DG_RAIL - Network Services,CAPITA BUSINESS SERVICES LTD,2000015270,5140.32,Database development,DL1 9HN,,
Department for Transport,Department for Transport,24/11/2016,Agency Staff Costs,DG_RAIL - Network Services,CAPITA BUSINESS SERVICES LTD,2000015270,973.33,Interim resource,DL1 9HN,,
Department for Transport,Department for Transport,24/11/2016,Agency Staff Costs,DG_RAIL - Network Services,Steer Davies Gleaves (Bikeability),2000015288,14904,Technical advice,SE1 9PD,,
Department for Transport,Department for Transport,24/11/2016,Agency Staff Costs,DG_RAIL - Network Services,Steer Davies Gleaves (Bikeability),2000015288,24591.6,Technical advice,SE1 9PD,,
Department for Transport,Department for Transport,24/11/2016,Agency Staff Costs,Strategic Roads,BROOK STREET (UK) LIMITED,2000015282,506.93,#,AL1 4JB,,
Department for Transport,Department for Transport,24/11/2016,Agency Staff Costs,DG_Rail - Passenger Services,BROOK STREET (UK) LIMITED,2000015282,985.32,#,AL1 4JB,,
Department for Transport,Department for Transport,24/11/2016,Agency Staff Costs,DG_Rail - Passenger Services,BROOK STREET (UK) LIMITED,2000015282,967.26,#,AL1 4JB,,
Department for Transport,Department for Transport,24/11/2016,Agency Staff Costs,DG_Rail - Passenger Services,CAPITA BUSINESS SERVICES LTD,2000015270,2430.07,#,DL1 9HN,,
Department for Transport,Department for Transport,24/11/2016,Agency Staff Costs,DG_RAIL - Network Services,CAPITA BUSINESS SERVICES LTD,2000015270,4451.28,Interim resource,DL1 9HN,,
Department for Transport,Department for Transport,24/11/2016,Agency Staff Costs,DG_Rail - Passenger Services,CAPITA BUSINESS SERVICES LTD,2000015270,4866.66,#,DL1 9HN,,
Department for Transport,Department for Transport,24/11/2016,Agency Staff Costs,DG_Rail - Passenger Services,CAPITA BUSINESS SERVICES LTD,2000015270,5650.37,#,DL1 9HN,,
Department for Transport,Department for Transport,24/11/2016,Agency Staff Costs,DG_Rail - Passenger Services,CAPITA BUSINESS SERVICES LTD,2000015270,1585.3,#,DL1 9HN,,
Department for Transport,Department for Transport,24/11/2016,Agency Staff Costs,DG_Rail - Passenger Services,CAPITA BUSINESS SERVICES LTD,2000015270,3333.06,#,DL1 9HN,,
Department for Transport,Department for Transport,24/11/2016,Agency Staff Costs,HSR Phase 1 Sponsor,CAPITA BUSINESS SERVICES LTD,2000015270,15003.07,#,DL1 9HN,,
Department for Transport,Department for Transport,24/11/2016,Agency Staff Costs,Group Finance,CAPITA BUSINESS SERVICES LTD,2000015270,3284.16,#,DL1 9HN,,
Department for Transport,Department for Transport,24/11/2016,Agency Staff Costs,DG_Rail - Passenger Services,CAPITA BUSINESS SERVICES LTD,2000015270,2574.72,#,DL1 9HN,,
Department for Transport,Department for Transport,24/11/2016,Agency Staff Costs,DG_Rail - Passenger Services,CAPITA BUSINESS SERVICES LTD,2000015270,4430.59,#,DL1 9HN,,
